Workbook

Sheet Set-up
B2: Windows Version: | C2: Win 7/10 64-bit | E2: Filename: | F2: C:\AP10\ExSitu-AP10.bkp | N2: Full Results Import
B3: Aspen Version: | C3: Aspen Plus V10.0 | E3: File Directory: | F3: C:\AP10\
E4: File Base: | F4: ExSitu-AP10
E5: File Extension: | F5: .bkp
E6: Toolkit DLL: | F6: ="C:\Program Files" & IF(ISNUMBER(FIND("64",C2))," (x86)","") & "\AspenTech\" & SUBSTITUTE(C3,"Aspen Plus","AprSystem") & "\Engine\Xeq\" -> C:\Program Files (x86)\AspenTech\AprSystem V10.0\Engine\Xeq\
E7: Toolkit Directory: | F7: ="C:\Program Files" & IF(ISNUMBER(FIND("64",C2))," (x86)","") & "\AspenTech\" & C3& "\Engine\Toolkit\" -> C:\Program Files (x86)\AspenTech\Aspen Plus V10.0\Engine\Toolkit\
B9: Unit | C9: Desired Units | E9: Identifier String: | F9: =G10&" "&G11&" Case: "&G12&" model "&IF(G14="",G13,G14) -> Woody Biomass Template Worksheet Case: 2019 model National Renewable Energy Laboratory | N9: © 2016-2019 Alliance for Sustainable Energy, LLC
B10: Type | C10: (Defaults to SI) | E10: Input: | F10: Feedstock: | G10: Woody Biomass
B11: MASS-FLOW | C11: lb/hr | F11: Report Type: | G11: Template Worksheet | N11: This program is free software: you can redistribute it and/or modify
B12: ENTHALPY-FLO | C12: Btu/hr | F12: Year modeled: | G12: 2019 | N12: it under the terms of the GNU General Public License as published by
B13: MOLE-FLOW | C13: lbmol/hr | F13: Case ID: Auto: | G13: =IF(G14<>"",G14,FILEBASE) -> National Renewable Energy Laboratory | N13: the Free Software Foundation, either version 3 of the License, or
B14: VOLUME-FLOW | C14: cuft/hr | F14: or override: | G14: National Renewable Energy Laboratory | N14: (at your option) any later version.
B15: TEMPERATURE | C15: C
B16: PRESSURE | C16: psi | N16: This program is distributed in the hope that it will be useful,
B17: MOLE-ENTHALP | C17: J/kmol | E17: LOOKUP strings | N17: but WITHOUT ANY WARRANTY; without even the implied warranty of
B18: MASS-ENTHALP | C18: kcal/kg | E18: Data Set | F18: Sheet | G18: Start Col | H18: Start Row | I18: End Col | J18: End row | K18: Lookup String | L18: Name | N18: MERCHANTABILITY or FITNESS FOR A PARTICULAR PURPOSE. See the
B19: MOLE-ENTROPY | C19: cal/mol-K | E19: Sensitivity | F19: aspen | G19: C | H19: 7 | I19: E | J19: 2000 | K19: =F19&"!"&G19&H19&":"&I19&J19 -> aspen!C7:E2000 | L19: LU_SENS | N19: GNU General Public License for more details.
B20: MASS-ENTROPY | C20: cal/gm-K | E20: Heat streams | F20: aspenqw | G20: C | H20: 7 | I20: E | J20: 400 | K20: =F20&"!"&G20&H20&":"&I20&J20 -> aspenqw!C7:E400 | L20: LU_HEAT
B21: MOLE-DENSITY | C21: kmol/cum | E21: Work Streams | F21: aspenqw | G21: G | H21: 7 | I21: I | J21: 400 | K21: =F21&"!"&G21&H21&":"&I21&J21 -> aspenqw!G7:I400 | L21: LU_WORK | N21: You should have received a copy of the GNU General Public License
B22: MASS-DENSITY | C22: gm/cc | N22: along with this program. If not, see <https://www.gnu.org/licenses/>.
B23: POWER | C23: hp
B24: VISCOSITY | C24: cp | E24: Index-Capital | F24: INDICES | G24: C | H24: 60 | I24: F | J24: 87 | K24: =F24&"!"&G24&H24&":"&I24&J24 -> INDICES!C60:F87 | L24: IX_CAP | N24: You will need a separate license to use the Aspen Plus and
B25: MASS-HEAT-CA | C25: J/kg-K | E25: Index-Chemical | F25: INDICES | G25: M | H25: 60 | I25: P | J25: 96 | K25: =F25&"!"&G25&H25&":"&I25&J25 -> INDICES!M60:P96 | L25: IX_CHEM | N25: Microsoft Excel software packages in order to run the models.
B26: THERMAL-COND | C26: Watt/m-K | E26: Index-Labor | F26: INDICES | G26: W | H26: 60 | I26: Z | J26: 96 | K26: =F26&"!"&G26&H26&":"&I26&J26 -> INDICES!W60:Z96 | L26: IX_LABOR
B27: SURFACE-TENS | C27: dyne/cm | E27: Index-Electricity | F27: INDICES | G27: AG | H27: 60 | I27: AH | J27: 74 | K27: =F27&"!"&G27&H27&":"&I27&J27 -> INDICES!AG60:AH74 | L27: IX_ELEC | N27: Base version of Aspen Plus model (supporting the design report NREL/TP-5100-62455)
N28: by Abhijit Dutta
E29: Color Codes: | G29: Detail/Description | N29: Model simplified by Avantika Singh to allow running
E30: Requires Manual Entry | G30: Applies to sections below/lookup tables for sheet | N30: without a Fortran compiler in Aspen Plus V10
E31: Okay, needs improvement | G31: mostly commented, indicates less than perfect solution
E32: Non standard Calculation | G32: one off sizing, etc. | N32: Base version of economic spreadsheet by David Humbird
E33: Error…check everything | G33: sometimes these are automated | N33: Economic spreadsheet simplified and adapted for use with Aspen Plus V10
N34: by Matt Wiatrowski using modified VBA code by Nick Grundl

Sheet INDICES
C6: Plant Cost Indices | M6: Inorganic Chemical Index | W6: Labor Index | AG6: Electricity
B7: Graph: Index vs. Time | L7: Graph: Index vs. Time | V7: Graph: Index vs. Time | AF7: Graph: Index vs. Time
C36: Linear Regression Results | M36: Linear Regression Results | W36: Linear Regression Results | AG36: Linear Regression Results
C37: =LINEST(D66:D73,C66:C73,TRUE,TRUE) -> 2.242857143 | D37: -4093.175 | M37: =LINEST(N82:N91,M82:M91,TRUE,TRUE) -> 10.30545455 | N37: -20476.09455 | W37: =LINEST(X84:X91,W84:W91,TRUE,TRUE) -> 0.2985714286 | X37: -579.3421429
C38: 0.2079554396 | D38: 415.5992192 | M38: 0.5165775272 | N38: 1036.51387 | W38: 0.06361822782 | X38: 127.7136755
C39: 0.9509492196 | D39: 1.347705281 | M39: 0.9802946865 | N39: 4.692048399 | W39: 0.7859121986 | X39: 0.4122932382
C40: 116.3222128 | D40: 6 | M40: 397.981868 | N40: 8 | W40: 22.02588453 | X40: 6
C41: 211.2771429 | D41: 10.89785714 | M41: 8761.697455 | N41: 176.1225455 | W41: 3.744085714 | X41: 1.019914286
B43: Source Details | L43: Source Details | V43: Source Details | AF43: Source Details
C45: Source: | D45: (0) Chemical Engineering Magazine, Jan 1991 | M45: Source: | N45: SRI International Chemical Economics Handbook, Economic Environment of the Chemical Industry 2004 | W45: Source: | X45: Bureau of Labor Statistics | AG45: Source: | AH45: EIA Average Wholesale price, cents/kWh
D46: (1) Chemical Engineering Magazine, March, 1997
D47: (2) Chemical Engineering Magazine, March, 2000 | W47: Series ID: | X47: CEU3232500008
D48: (3) Chemical Engineering Magazine, January, 2001 | M48: Current indices @ | O48: https://www.sriconsulting.com/CEH/Private/EECI/EECI.pdf | W48: Chemicals
D49: (4) Chemical Engineering Magazine, April, 2002 | W49: Average Hourly Earnings of Production Workers
D50: (5) Chemical Engineering Magazine, December, 2003 | W50: Current indices @ | Y50: http://data.bls.gov/cgi-bin/srgate
D51: (6) Chemical Engineering Magazine, May 2005
D52: (7) Chemical Engineering Magazine, April 2009
C53: Current indices @ | E53: http://www.che.com/ei
A57: © 2016-2019 Alliance for Sustainable Energy, LLC | B57: Data | L57: Data | V57: Data | AF57: Data
C58: Method: | D58: Reported | E58: Regression | F58: Manual | M58: Method: | N58: Reported | O58: Regression | P58: Manual | W58: Method: | X58: Reported | Y58: Regression | Z58: Manual | AG58: Method: | AH58: Reported | AI58: Regression | AJ58: Manual
A59: This program is free software: you can redistribute it and/or modify | B59: Source | C59: Year | D59: CE Annual | E59: LINEST | F59: In Use | H59: Comments | M59: Year | N59: US Producer Price | O59: LINEST | P59: In Use | R59: Comments | W59: Year | X59: BLS | Y59: LINEST | Z59: In Use | AB59: Comments | AG59: Year | AH59: EIA | AI59: LINEST | AJ59: IN Use | AL59: Comments
A60: it under the terms of the GNU General Public License as published by | B60: (0) | C60: 1981 | D60: 297 | F60: 297 | M60: 1980 | N60: 89 | P60: 89 | W60: 1980 | Z60: 0 | AG60: 2001 | AH60: 5.242793975 | AJ60: 5.242793975
A61: the Free Software Foundation, either version 3 of the License, or | B61: (1) | C61: 1990 | D61: 357.6 | F61: 357.6 | M61: 1981 | N61: 98.4 | P61: 98.4 | W61: 1981 | Z61: 0 | AG61: 2002 | AH61: 3.559262187 | AJ61: 3.559262187
A62: (at your option) any later version. | B62: (1) | C62: 1991 | D62: 361.3 | F62: 361.3 | M62: 1982 | N62: 100 | P62: 100 | W62: 1982 | Z62: 0 | AG62: 2003 | AH62: 3.988516943 | AJ62: 3.988516943
B63: (1) | C63: 1992 | D63: 358.2 | F63: 358.2 | M63: 1983 | N63: 100.3 | P63: 100.3 | W63: 1983 | Z63: 0 | AG63: 2004 | AH63: 3.893850176 | AJ63: 3.893850176
A64: This program is distributed in the hope that it will be useful, | B64: (1) | C64: 1993 | D64: 359.2 | F64: 359.2 | M64: 1984 | N64: 102.9 | P64: 102.9 | W64: 1984 | Z64: 0 | AG64: 2005 | AH64: 5.010122573 | AJ64: 5.010122573
A65: but WITHOUT ANY WARRANTY; without even the implied warranty of | B65: (1) | C65: 1994 | D65: 368.1 | F65: 368.1 | M65: 1985 | N65: 103.7 | P65: 103.7 | W65: 1985 | Z65: 0 | AG65: 2006 | AH65: 5.298636211 | AJ65: 5.298636211
A66: MERCHANTABILITY or FITNESS FOR A PARTICULAR PURPOSE. See the | B66: (1) | C66: 1995 | D66: 381.1 | E66: =(C66*$C$37)+$D$37 -> 381.325 | F66: 381.1 | M66: 1986 | N66: 102.6 | P66: 102.6 | W66: 1986 | Z66: 0 | AG66: 2007 | AH66: 5.716754912 | AJ66: 5.716754912
A67: GNU General Public License for more details. | B67: (1) | C67: 1996 | D67: 381.7 | E67: 383.5678571 | F67: 381.7 | M67: 1987 | N67: 106.4 | P67: 106.4 | W67: 1987 | Z67: 0 | AG67: 2008 | AJ67: 5.716754912
B68: (2) | C68: 1997 | D68: 386.5 | E68: 385.8107143 | F68: 386.5 | M68: 1988 | N68: 116.3 | P68: 116.3 | W68: 1988 | Z68: 0 | AG68: 2009 | AJ68: 5.716754912
A69: You should have received a copy of the GNU General Public License | B69: (2) | C69: 1998 | D69: 389.5 | E69: 388.0535714 | F69: 389.5 | M69: 1989 | N69: 123 | P69: 123 | W69: 1989 | Z69: 0 | AG69: 2010 | AJ69: 5.716754912
A70: along with this program. If not, see <https://www.gnu.org/licenses/>. | B70: (3) | C70: 1999 | D70: 390.6 | E70: 390.2964286 | F70: 390.6 | M70: 1990 | N70: 123.6 | P70: 123.6 | W70: 1990 | X70: 12.85 | Z70: 12.85 | AG70: 2011 | AJ70: 5.716754912
B71: (4) | C71: 2000 | D71: 394.1 | E71: 392.5392857 | F71: 394.1 | M71: 1991 | N71: 125.6 | P71: 125.6 | W71: 1991 | X71: 13.3 | Z71: 13.3 | AG71: 2012 | AJ71: 5.716754912
B72: (5) | C72: 2001 | D72: 394.3 | E72: 394.7821429 | F72: 394.3 | M72: 1992 | N72: 125.9 | P72: 125.9 | W72: 1992 | X72: 13.7 | Z72: 13.7 | AG72: 2013 | AJ72: 5.716754912
B73: (5) | C73: 2002 | D73: 395.6 | E73: 397.025 | F73: 395.6 | M73: 1993 | N73: 128.2 | P73: 128.2 | W73: 1993 | X73: 13.97 | Z73: 13.97 | AG73: 2014 | AJ73: 5.716754912
B74: (6) | C74: 2003 | D74: 402 | F74: 402 | M74: 1994 | N74: 132.1 | P74: 132.1 | W74: 1994 | X74: 14.33 | Z74: 14.33 | AG74: 2015 | AJ74: 5.716754912
B75: (6) | C75: 2004 | D75: 444.2 | F75: 444.2 | M75: 1995 | N75: 139.5 | P75: 139.5 | W75: 1995 | X75: 14.86 | Z75: 14.86
B76: (6) | C76: 2005 | D76: 468.2 | F76: 468.2 | M76: 1996 | N76: 142.1 | P76: 142.1 | W76: 1996 | X76: 15.37 | Z76: 15.37
B77: (7) | C77: 2006 | D77: 499.6 | F77: 499.6 | M77: 1997 | N77: 147.1 | P77: 147.1 | W77: 1997 | X77: 15.78 | Z77: 15.78
B78: (7) | C78: 2007 | D78: 525.4 | F78: 525.4 | M78: 1998 | N78: 148.7 | P78: 148.7 | W78: 1998 | X78: 16.23 | Z78: 16.23
B79: (7) | C79: 2008 | D79: 575.4 | F79: 575.4 | M79: 1999 | N79: 149.7 | P79: 149.7 | W79: 1999 | X79: 16.4 | Z79: 16.4
B80: (7) | C80: 2009 | D80: 521.9 | F80: 521.9 | M80: 2000 | N80: 156.7 | P80: 156.7 | W80: 2000 | X80: 17.09 | Z80: 17.09
C81: 2010 | D81: 550.8 | F81: 550.8 | H81: 40391 | M81: 2001 | N81: 158.4 | P81: 158.4 | W81: 2001 | X81: 17.57 | Z81: 17.57
C82: 2011 | D82: 585.7 | F82: 585.7 | M82: 2002 | N82: 157.3 | O82: 155.4254545 | P82: 157.3 | W82: 2002 | X82: 17.97 | Z82: 17.97
C83: 2012 | D83: 584.6 | F83: 584.6 | M83: 2003 | N83: 164.6 | O83: 165.7309091 | P83: 164.6 | W83: 2003 | X83: 18.5 | Z83: 18.5
C84: 2013 | D84: 567.3 | F84: 567.3 | M84: 2004 | N84: 172.8 | O84: 176.0363636 | P84: 172.8 | W84: 2004 | X84: 19.17 | Y84: 18.995 | Z84: 19.17
C85: 2014 | D85: 576.1 | F85: 576.1 | M85: 2005 | N85: 187.3 | O85: 186.3418182 | P85: 187.3 | W85: 2005 | X85: 19.67 | Y85: 19.29357143 | Z85: 19.67
C86: 2015 | D86: 556.8 | F86: 556.8 | M86: 2006 | N86: 196.8 | O86: 196.6472727 | P86: 196.8 | W86: 2006 | X86: 19.6 | Y86: 19.59214286 | Z86: 19.6
C87: 2016 | D87: 541.7 | F87: 541.7 | M87: 2007 | N87: 203.3 | O87: 206.9527273 | P87: 203.3 | W87: 2007 | X87: 19.55 | Y87: 19.89071429 | Z87: 19.55
M88: 2008 | N88: 228.2 | O88: 217.2581818 | P88: 228.2 | W88: 2008 | X88: 19.5 | Y88: 20.18928571 | Z88: 19.5
M89: 2009 | N89: 224.7 | O89: 227.5636364 | P89: 224.7 | W89: 2009 | X89: 20.3 | Y89: 20.48785714 | Z89: 20.3 | AB89: Jun 09
M90: 2010 | N90: 233.7 | O90: 237.8690909 | P90: 233.7 | W90: 2010 | X90: 21.07 | Y90: 20.78642857 | Z90: 21.07
M91: 2011 | N91: 249.3 | O91: 248.1745455 | P91: 252.1 | R91: 252.1 for 2014 | W91: 2011 | X91: 21.46 | Y91: 21.085 | Z91: 21.46
M92: 2012 | N92: 260.3 | P92: 260.3 | W92: 2012 | X92: 21.45 | Z92: 21.45
M93: 2013 | N93: 263.9 | P93: 263.9 | W93: 2013 | X93: 21.4 | Z93: 21.4
M94: 2014 | N94: 269.2 | P94: 269.2 | W94: 2014 | X94: 21.49 | Z94: 21.49
M95: 2015 | N95: 264.8 | P95: 264.8 | W95: 2015 | X95: 21.76 | Z95: 21.76
M96: 2016 | N96: 267.1 | P96: 267.1 | W96: 2016 | X96: 22.71 | Z96: 22.71

Sheet aspen
G1: © 2016-2019 Alliance for Sustainable Energy, LLC
B2: Sensitivity Block: | C2: MASSFLOW
B3: Filename: | C3: C:\AP10\ExSitu-AP10.bkp | G3: This program is free software: you can redistribute it and/or modify
B4: Date: | C4: 2019-02-20 | G4: it under the terms of the GNU General Public License as published by
B5: Time: | C5: 09:28:45 | G5: the Free Software Foundation, either version 3 of the License, or
B6: USERKEY LIST | C6: ASPEN ID | D6: Value | E6: Units | G6: (at your option) any later version.
B7: CMIX.SO2.A100.112 | C7: CEFFHC | D7: 97.2117574 | E7: Check Sensitivity Block
B8: CMIX.WATER.A100.100 | C8: CEFFHT | D8: 97.3095263 | E8: Check Sensitivity Block | G8: This program is distributed in the hope that it will be useful,
B9: CMIX.WATER.A100.123 | C9: CEFFHYP | D9: 94.1526197 | E9: Check Sensitivity Block | G9: but WITHOUT ANY WARRANTY; without even the implied warranty of
B10: CMIX.WATER.A100.124 | C10: CEFFORG | D10: 44.1823414 | E10: Check Sensitivity Block | G10: MERCHANTABILITY or FITNESS FOR A PARTICULAR PURPOSE. See the
B11: CMIX.WATER.A600.600 | C11: CLOSSAQU | D11: 1.30473579 | E11: Check Sensitivity Block | G11: GNU General Public License for more details.
B12: CMIX.WATER.a600.618 | C12: CMIX.SO2.A100.112 | D12: 107.080189 | E12: LB/HR
B13: CMIX.WATER.a600.635 | C13: CMIX.WATER.A100.100 | D13: 20413.1481 | E13: LB/HR | G13: You should have received a copy of the GNU General Public License
B14: CMIX.WATER.A700.600 | C14: CMIX.WATER.A100.123 | D14: 30000 | E14: LB/HR | G14: along with this program. If not, see <https://www.gnu.org/licenses/>.
B15: CMIX.WATER.a700.704 | C15: CMIX.WATER.A100.124 | D15: 23506.6687 | E15: LB/HR
B16: CMIX.WATER.A700.710 | C16: CMIX.WATER.A600.600 | D16: 6477.00742 | E16: LB/HR
B17: CMIX.WATER.a700.713 | C17: CMIX.WATER.A600.618 | D17: 6474.74047 | E17: LB/HR
B18: CMIX.WATER.A800.334 | C18: CMIX.WATER.A600.635 | D18: 2.2669526 | E18: LB/HR
B19: CMIX.WATER.A800.377 | C19: CMIX.WATER.A700.600 | D19: 6477.00742 | E19: LB/HR
B20: CMIX.WATER.A800.424 | C20: CMIX.WATER.A700.704 | D20: 5310.39048 | E20: LB/HR
B21: CMIX.WATER.A800.474 | C21: CMIX.WATER.A700.710 | D21: 54285.4053 | E21: LB/HR
B22: CMIX.WATER.A800.576 | C22: CMIX.WATER.A700.713 | D22: 11090.5107 | E22: LB/HR
B23: CMIX.WATER.A800.813 | C23: CMIX.WATER.A800.334 | D23: 75951.6211 | E23: LB/HR
B24: CMIX.WATER.A800.815 | C24: CMIX.WATER.A800.377 | D24: 20641.3283 | E24: LB/HR
B25: CMIX.WATER.A800.823 | C25: CMIX.WATER.A800.424 | D25: 2866.76708 | E25: LB/HR
B26: CMIX.WATER.A800.825 | C26: CMIX.WATER.A800.474 | D26: 135.874152 | E26: LB/HR
B27: CMIX_MOLE.hydrogen.A200.a201.202 | C27: CMIX.WATER.A800.576 | D27: 15654.6727 | E27: LB/HR
B28: CMIX_MOLE.Hydrogen.A200.a211.202p | C28: CMIX.WATER.A800.813 | D28: 30657.652 | E28: LB/HR
B29: CMIX_MOLE.hydrogen.A200.a261.264 | C29: CMIX.WATER.A800.815 | D29: 1788.49527 | E29: LB/HR
B30: CMIX_MOLE.hydrogen.a300.a310.321 | C30: CMIX.WATER.A800.823 | D30: 45273.3703 | E30: LB/HR
B31: CMIX_MOLE.hydrogen.a300.a360.a385.388 | C31: CMIX.WATER.A800.825 | D31: 1809.09326 | E31: LB/HR
B32: CMIX_MOLE.hydrogen.a300.a360.a385.390 | C32: CMIX_MOLE.HYDROGEN.A200.A201.202 | D32: 0 | E32: Missing Stream
B33: CMIX_MOLE.hydrogen.a400.a410.422 | C33: CMIX_MOLE.HYDROGEN.A200.A211.202P | D33: 12160.2155 | E33: LBMOL/HR
B34: CMIX_MOLE.hydrogen.a400.a410.435 | C34: CMIX_MOLE.HYDROGEN.A200.A261.264 | D34: 12160.2161 | E34: LBMOL/HR
B35: CMIX_MOLE.hydrogen.a400.a410.443 | C35: CMIX_MOLE.HYDROGEN.A300.A310.321 | D35: 10535.5668 | E35: LBMOL/HR
B36: CMIX_MOLE.hydrogen.a400.a460.472 | C36: CMIX_MOLE.HYDROGEN.A300.A360.A385.388 | D36: 3513.76883 | E36: LBMOL/HR
B37: CMIX_MOLE.hydrogen.a400.a460.485 | C37: CMIX_MOLE.HYDROGEN.A300.A360.A385.390 | D37: 2951.56582 | E37: LBMOL/HR
B38: CMIX_MOLE.hydrogen.a400.a460.493 | C38: CMIX_MOLE.HYDROGEN.A400.A410.422 | D38: 2988.53023 | E38: LBMOL/HR
B39: moleflmx.a200.a201.202 | C39: CMIX_MOLE.HYDROGEN.A400.A410.435 | D39: 906.241959 | E39: LBMOL/HR
B40: moleflmx.a200.a211.202p | C40: CMIX_MOLE.HYDROGEN.A400.A410.443 | D40: 3532.18752 | E40: LBMOL/HR
B41: moleflmx.A200.a261.264 | C41: CMIX_MOLE.HYDROGEN.A400.A460.472 | D41: 780.506499 | E41: LBMOL/HR
B42: moleflmx.a300.a310.321 | C42: CMIX_MOLE.HYDROGEN.A400.A460.485 | D42: 321.014106 | E42: LBMOL/HR
B43: moleflmx.a300.a360.a385.388 | C43: CMIX_MOLE.HYDROGEN.A400.A460.493 | D43: 1040.3607 | E43: LBMOL/HR
B44: moleflmx.a300.a360.a385.390 | C44: D301AFT2 | D44: 110.154953 | E44: Check Sensitivity Block
B45: moleflmx.a400.a410.422 | C45: D301DFT | D45: 11.8428592 | E45: Check Sensitivity Block
B46: moleflmx.a400.a410.443 | C46: D302AFT2 | D46: 128.066269 | E46: Check Sensitivity Block
B47: MOLEFLMX.A500.590 | C47: D302DFT | D47: 12.7694423 | E47: Check Sensitivity Block
B48: MOLEFLMX.A800.A830.836 | C48: DENAQPRD | D48: 0 | E48: Check Sensitivity Block
B49: PRES.A200.A201.207 | C49: DENLQPRD | D49: 0 | E49: Check Sensitivity Block
B50: pres.a200.a201.208 | C50: EFFHHV | D50: 56.5210399 | E50: Check Sensitivity Block
B51: PRES.A200.A201.CHAR-COM.226 | C51: EFFLHV | D51: 56.6394495 | E51: Check Sensitivity Block
B52: PRES.A200.A211.211p | C52: EFHHVNG | D52: 56.4397987 | E52: Check Sensitivity Block
B53: pres.a200.a211.211p | C53: EFHVNGEL | D53: 57.128922 | E53: Check Sensitivity Block
B54: PRES.A200.A211.CHAR-COM.226p | C54: EFLHVNG | D54: 56.5609023 | E54: Check Sensitivity Block
B55: pres.a200.a261.261 | C55: EFLVNGEL | D55: 57.3008941 | E55: Check Sensitivity Block
B56: PRES.A200.A261.268 | C56: ELECHV | D56: -10875615.2 | E56: Check Sensitivity Block
B57: PRES.A200.A261.CATREGEN.286 | C57: FCEFNGFR | D57: 0 | E57: Missing Value
B58: pres.a300.a310.312 | C58: FDMSTR | D58: 0.1 | E58: Check Sensitivity Block
B59: pres.a300.a310.321 | C59: FEEDA | D59: 0.92 | E59: Check Sensitivity Block
B60: pres.a300.a360.a365.372 | C60: FEEDC | D60: 50.94 | E60: Check Sensitivity Block
B61: pres.a400.a410.418 | C61: FEEDH | D61: 6.04 | E61: Check Sensitivity Block
B62: pres.a400.A410.435 | C62: FEEDN | D62: 0.17 | E62: Check Sensitivity Block
B63: pres.a400.A410.440 | C63: FEEDO | D63: 41.9 | E63: Check Sensitivity Block
B64: pres.a400.A410.442 | C64: FEEDS | D64: 0.03 | E64: Check Sensitivity Block
B65: pres.a400.A410.443 | C65: FUELCEFF | D65: 41.5369353 | E65: Check Sensitivity Block
B66: pres.a400.A460.485 | C66: FUELCEFN | D66: 41.5030212 | E66: Check Sensitivity Block
B67: pres.a400.A460.490 | C67: HCRATORG | D67: 1.56904464 | E67: Check Sensitivity Block
B68: pres.a400.A460.492 | C68: IFLAGSOT | D68: 0 | E68: Check Sensitivity Block
B69: pres.a400.A460.493 | C69: INCIS | D69: 0 | E69: Check Sensitivity Block
B70: pres.a500.590 | C70: INMIX | D70: 20413.1481 | E70: Check Sensitivity Block
B71: STRM.502 | C71: INNC | D71: 183718.333 | E71: Check Sensitivity Block
B72: STRM.A100.100 | C72: INWAT | D72: 20413.1481 | E72: Check Sensitivity Block
B73: STRM.A100.101 | C73: MOLEFLMX.A200.A201.202 | D73: 0 | E73: Missing Stream
B74: STRM.A100.112 | C74: MOLEFLMX.A200.A211.202P | D74: 15755.9774 | E74: LBMOL/HR
B75: strm.A100.HV-100.basis | C75: MOLEFLMX.A200.A261.264 | D75: 19698.5498 | E75: LBMOL/HR
B76: STRM.A200.200 | C76: MOLEFLMX.A300.A310.321 | D76: 15552.1172 | E76: LBMOL/HR
B77: strm.a200.a201.201 | C77: MOLEFLMX.A300.A360.A385.388 | D77: 4952.88803 | E77: LBMOL/HR
B78: strm.A200.a201.202 | C78: MOLEFLMX.A300.A360.A385.390 | D78: 2981.37961 | E78: LBMOL/HR
B79: strm.A200.a201.205 | C79: MOLEFLMX.A400.A410.422 | D79: 3425.06116 | E79: LBMOL/HR
B80: STRM.A200.a201.210 | C80: MOLEFLMX.A400.A410.443 | D80: 3924.91012 | E80: LBMOL/HR
B81: STRM.A200.A201.217 | C81: MOLEFLMX.A500.590 | D81: 3014.02936 | E81: LBMOL/HR
B82: STRM.A200.A201.CHAR-COM.220 | C82: MOLEFLMX.A800.A830.836 | D82: 2860.20274 | E82: LBMOL/HR
B83: STRM.A200.A201.CHAR-COM.235 | C83: PCTODIES | D83: 0.000227314816 | E83: Check Sensitivity Block
B84: strm.a200.a211.201p | C84: PCTOGASL | D84: 0.81984253 | E84: Check Sensitivity Block
B85: strm.A200.a211.202p | C85: PCTOPROD | D85: 0.367454007 | E85: Check Sensitivity Block
B86: strm.A200.a211.205p | C86: PRES.A200.A201.207 | D86: 0 | E86: Missing Stream
B87: STRM.A200.A211.217P | C87: PRES.A200.A201.208 | D87: 0 | E87: Missing Stream
B88: STRM.A200.A211.CHAR-COM.220p | C88: PRES.A200.A201.CHAR-COM.226 | D88: 0 | E88: Missing Stream
B89: STRM.A200.A211.CHAR-COM.235P | C89: PRES.A200.A211.211P | D89: 121 | E89: PSI
B90: STRM.A200.A261.264 | C90: PRES.A200.A211.211P | D90: 121 | E90: PSI
B91: strm.A200.a261.265 | C91: PRES.A200.A211.CHAR-COM.226P | D91: 116.921963 | E91: PSI
B92: STRM.A200.a261.270 | C92: PRES.A200.A261.261 | D92: 118.921963 | E92: PSI
B93: STRM.A200.A261.277 | C93: PRES.A200.A261.268 | D93: 116.921963 | E93: PSI
B94: STRM.A200.A261.CATREGEN.280 | C94: PRES.A200.A261.CATREGEN.286 | D94: 112.843927 | E94: PSI
B95: STRM.A200.A261.CATREGEN.295 | C95: PRES.A300.A310.312 | D95: 109.843926 | E95: PSI
B96: STRM.A300.335 | C96: PRES.A300.A310.321 | D96: 96.8439264 | E96: PSI
B97: strm.a300.390 | C97: PRES.A300.A360.A365.372 | D97: 83.8439264 | E97: PSI
B98: strm.a300.a310.311 | C98: PRES.A400.A410.418 | D98: 1515 | E98: PSI
B99: strm.a300.a310.312 | C99: PRES.A400.A410.435 | D99: 245 | E99: PSI
B100: strm.a300.a310.318 | C100: PRES.A400.A410.440 | D100: 1495 | E100: PSI
B101: strm.a300.a310.321 | C101: PRES.A400.A410.442 | D101: 1493 | E101: PSI
B102: strm.a300.a310.322 | C102: PRES.A400.A410.443 | D102: 1600 | E102: PSI
B103: STRM.a300.a310.323 | C103: PRES.A400.A460.485 | D103: 245 | E103: PSI
B104: strm.a300.a310.327 | C104: PRES.A400.A460.490 | D104: 1995 | E104: PSI
B105: strm.a300.a310.333 | C105: PRES.A400.A460.492 | D105: 1893 | E105: PSI
B106: strm.a300.a310.334 | C106: PRES.A400.A460.493 | D106: 2000 | E106: PSI
B107: strm.a300.a310.337 | C107: PRES.A500.590 | D107: 265.506625 | E107: PSI
B108: strm.a300.a310.343 | C108: QA100 | D108: 0 | E108: Check Sensitivity Block
B109: strm.A300.A310.350 | C109: QA201 | D109: 0 | E109: Check Sensitivity Block
B110: STRM.a300.a360.a365.370 | C110: QA201CAT | D110: 0 | E110: Check Sensitivity Block
B111: strm.a300.a360.a365.813 | C111: QA211 | D111: 90941673.1 | E111: Check Sensitivity Block
B112: strm.a300.a360.a385.377 | C112: QA211SND | D112: 7359390.22 | E112: Check Sensitivity Block
B113: strm.a300.a360.a385.388 | C113: QA251 | D113: 0 | E113: Check Sensitivity Block
B114: STRM.a300.a360.a385.390 | C114: QA261 | D114: 156340938 | E114: Check Sensitivity Block
B115: strm.a400.453 | C115: QA261CAT | D115: 240239795 | E115: Check Sensitivity Block
B116: strm.a400.456 | C116: QA310 | D116: 68705487.2 | E116: Check Sensitivity Block
B117: STRM.a400.a410.410 | C117: QA360 | D117: 24716890.9 | E117: Check Sensitivity Block
B118: strm.a400.a410.412 | C118: QA410 | D118: 7587949.05 | E118: Check Sensitivity Block
B119: STRM.a400.a410.417 | C119: QA450 | D119: 20495775.4 | E119: Check Sensitivity Block
B120: strm.a400.a410.422 | C120: QA460 | D120: 4886137.59 | E120: Check Sensitivity Block
B121: strm.a400.a410.424 | C121: QA500 | D121: 135569754 | E121: Check Sensitivity Block
B122: strm.a400.a410.428 | C122: QA600 | D122: 253089422 | E122: Check Sensitivity Block
B123: strm.a400.a410.429 | C123: QA700 | D123: 0 | E123: Check Sensitivity Block
B124: strm.a400.a410.430 | C124: QA800 | D124: 50583814.9 | E124: Check Sensitivity Block
B125: strm.a400.a410.431 | C125: QPINCH | D125: 812917842 | E125: Check Sensitivity Block
B126: strm.a400.A410.435 | C126: QPNCBT | D126: 812917842 | E126: Check Sensitivity Block
B127: strm.a400.A410.442 | C127: STRM.502 | D127: 103.55 | E127: LB/HR
B128: strm.a400.a450.429 | C128: STRM.A100.100 | D128: 204131.481 | E128: LB/HR
B129: STRM.a400.a450.451 | C129: STRM.A100.101 | D129: 204131.481 | E129: LB/HR
B130: strm.a400.a450.452 | C130: STRM.A100.112 | D130: 777919.861 | E130: LB/HR
B131: strm.a400.a450.453 | C131: STRM.A100.HV-100.BASIS | D131: 183718.333 | E131: LB/HR
B132: strm.a400.a450.454 | C132: STRM.A200.200 | D132: 204131.481 | E132: LB/HR
B133: STRM.a400.a450.455 | C133: STRM.A200.A201.201 | D133: 0 | E133: Missing Stream
B134: strm.a400.a450.456 | C134: STRM.A200.A201.202 | D134: 0 | E134: Missing Stream
B135: strm.a400.a450.460 | C135: STRM.A200.A201.205 | D135: 0 | E135: Missing Stream
B136: strm.a400.a450.479 | C136: STRM.A200.A201.210 | D136: 0 | E136: Missing Stream
B137: STRM.a400.a460.460 | C137: STRM.A200.A201.217 | D137: 0 | E137: Missing Stream
B138: strm.a400.a460.462 | C138: STRM.A200.A201.CHAR-COM.220 | D138: 0 | E138: Missing Stream
B139: STRM.a400.a460.467 | C139: STRM.A200.A201.CHAR-COM.235 | D139: 0 | E139: Missing Stream
B140: strm.a400.a460.472 | C140: STRM.A200.A211.201P | D140: 204131.481 | E140: LB/HR
B141: strm.a400.a460.474 | C141: STRM.A200.A211.202P | D141: 140295.859 | E141: LB/HR
B142: strm.a400.a460.478 | C142: STRM.A200.A211.205P | D142: 1437757.18 | E142: LB/HR
B143: strm.a400.a460.479 | C143: STRM.A200.A211.217P | D143: 157.374827 | E143: LB/HR
B144: strm.a400.a460.481 | C144: STRM.A200.A211.CHAR-COM.220P | D144: 1.604276e-05 | E144: LB/HR
B145: strm.a400.A460.485 | C145: STRM.A200.A211.CHAR-COM.235P | D145: 2037.56998 | E145: LB/HR
B146: strm.a400.A460.492 | C146: STRM.A200.A261.264 | D146: 322397.731 | E146: LB/HR
B147: strm.A500.590 | C147: STRM.A200.A261.265 | D147: 918499.815 | E147: LB/HR
B148: STRM.a500.a560.a565.569 | C148: STRM.A200.A261.270 | D148: 2755.49942 | E148: LB/HR
B149: STRM.A600.600 | C149: STRM.A200.A261.277 | D149: 101.056959 | E149: LB/HR
B150: STRM.A600.604 | C150: STRM.A200.A261.CATREGEN.280 | D150: 1.604276e-05 | E150: LB/HR
B151: STRM.A600.633 | C151: STRM.A200.A261.CATREGEN.295 | D151: 102.263404 | E151: LB/HR
B152: STRM.A600.644 | C152: STRM.A300.335 | D152: 35.6578011 | E152: LB/HR
B153: STRM.A600.A600BF.627 | C153: STRM.A300.390 | D153: 7023.60028 | E153: LB/HR
B154: STRM.A600.A600BF.629 | C154: STRM.A300.A310.311 | D154: 310423.117 | E154: LB/HR
B155: STRM.A600.A600WTR.618 | C155: STRM.A300.A310.312 | D155: 373458.731 | E155: LB/HR
B156: STRM.A700.715 | C156: STRM.A300.A310.318 | D156: 19229.5756 | E156: LB/HR
B157: temp.a200.a201.208 | C157: STRM.A300.A310.321 | D157: 182513.458 | E157: LB/HR
B158: temp.a200.a201.char-com.205 | C158: STRM.A300.A310.322 | D158: 1106145.51 | E158: LB/HR
B159: temp.a200.a201.char-com.226 | C159: STRM.A300.A310.323 | D159: 1028334.88 | E159: LB/HR
B160: temp.a200.a211.205p | C160: STRM.A300.A310.327 | D160: 915200.24 | E160: LB/HR
B161: temp.a200.a211.211p | C161: STRM.A300.A310.333 | D161: 82265.1901 | E161: LB/HR
B162: temp.a200.a211.char-com.226p | C162: STRM.A300.A310.334 | D162: 77805.5621 | E162: LB/HR
B163: temp.a200.a261.261 | C163: STRM.A300.A310.337 | D163: 50068.364 | E163: LB/HR
B164: temp.a200.a261.265 | C164: STRM.A300.A310.343 | D164: 51596.7014 | E164: LB/HR
B165: temp.a200.a261.catregen.286 | C165: STRM.A300.A310.350 | D165: 11204.237 | E165: LB/HR
B166: temp.a300.a310.312 | C166: STRM.A300.A360.A365.370 | D166: 82346.0906 | E166: LB/HR
B167: temp.a300.a310.317 | C167: STRM.A300.A360.A365.813 | D167: 30749.3892 | E167: LB/HR
B168: temp.a300.a360.a365.370 | C168: STRM.A300.A360.A385.377 | D168: 20706.0195 | E168: LB/HR
B169: temp.a300.a360.a365.372 | C169: STRM.A300.A360.A385.388 | D169: 61640.0714 | E169: LB/HR
B170: VOLFLMX.453 | C170: STRM.A300.A360.A385.390 | D170: 7023.60028 | E170: LB/HR
B171: VOLFLMX.456 | C171: STRM.A400.453 | D171: 20231.6595 | E171: LB/HR
B172: VOLFLMX.A200.A201.207 | C172: STRM.A400.456 | D172: 24923.4894 | E172: LB/HR
B173: VOLFLMX.A200.A201.CHAR-COM.226 | C173: STRM.A400.A410.410 | D173: 50068.364 | E173: LB/HR
B174: VOLFLMX.A200.A211.211p | C174: STRM.A400.A410.412 | D174: 50068.364 | E174: LB/HR
B175: VOLFLMX.A200.A211.CHAR-COM.226p | C175: STRM.A400.A410.417 | D175: 67293.3645 | E175: LB/HR
B176: VOLFLMX.A200.A251.253 | C176: STRM.A400.A410.422 | D176: 17148.9973 | E176: LB/HR
B177: VOLFLMX.A200.A261.268 | C177: STRM.A400.A410.424 | D177: 2901.32913 | E177: LB/HR
B178: VOLFLMX.A200.A261.CATREGEN.286 | C178: STRM.A400.A410.428 | D178: 753.520978 | E178: LB/HR
B179: VOLFLMX.a300.a310.318 | C179: STRM.A400.A410.429 | D179: 46489.5169 | E179: LB/HR
B180: VOLFLMX.a300.a310.320 | C180: STRM.A400.A410.430 | D180: 0 | E180: LB/HR
B181: VOLFLMX.a300.a310.324 | C181: STRM.A400.A410.431 | D181: 2080.60918 | E181: LB/HR
B182: VOLFLMX.a300.a310.329 | C182: STRM.A400.A410.435 | D182: 2156.51003 | E182: LB/HR
B183: VOLFLMX.a300.a310.331 | C183: STRM.A400.A410.442 | D183: 17224.8982 | E183: LB/HR
B184: VOLFLMX.a300.a310.332 | C184: STRM.A400.A450.429 | D184: 46489.5169 | E184: LB/HR
B185: VOLFLMX.a300.a360.a385.376 | C185: STRM.A400.A450.451 | D185: 46489.5169 | E185: LB/HR
B186: VOLFLMX.a300.a360.a385.377 | C186: STRM.A400.A450.452 | D186: 1282.272 | E186: LB/HR
B187: VOLFLMX.a300.a360.a385.387 | C187: STRM.A400.A450.453 | D187: 20231.6595 | E187: LB/HR
B188: VOLFLMX.a400.a410.412 | C188: STRM.A400.A450.454 | D188: 38547.6582 | E188: LB/HR
B189: VOLFLMX.a400.a410.422 | C189: STRM.A400.A450.455 | D189: 38547.6582 | E189: LB/HR
B190: VOLFLMX.a400.a410.428 | C190: STRM.A400.A450.456 | D190: 24923.4894 | E190: LB/HR
B191: VOLFLMX.a400.a460.462 | C191: STRM.A400.A450.460 | D191: 13624.1689 | E191: LB/HR
B192: VOLFLMX.a400.a460.472 | C192: STRM.A400.A450.479 | D192: 13572.0727 | E192: LB/HR
B193: VOLFLMX.a400.a460.478 | C193: STRM.A400.A460.460 | D193: 13624.1689 | E193: LB/HR
B194: VOLFLMX.a500.a560.a575.576 | C194: STRM.A400.A460.462 | D194: 13624.1688 | E194: LB/HR
B195: VOLFLMX.A800.815 | C195: STRM.A400.A460.467 | D195: 18464.5602 | E195: LB/HR
B196: VOLFLMX.A800.866 | C196: STRM.A400.A460.472 | D196: 4423.10374 | E196: LB/HR
B197: VOLFLMX.A800.880 | C197: STRM.A400.A460.474 | D197: 135.881023 | E197: LB/HR
B198: VOLFLMX.A800.A810.810 | C198: STRM.A400.A460.478 | D198: 333.503067 | E198: LB/HR
B199: VOLFLMX.a800.a810.813 | C199: STRM.A400.A460.479 | D199: 13572.0724 | E199: LB/HR
B200: VOLFLMX.A800.A810.822A | C200: STRM.A400.A460.481 | D200: 346.602613 | E200: LB/HR
... 79 more rows

Sheet aspenqw
K1: © 2016-2019 Alliance for Sustainable Energy, LLC
B3: Filename: | C3: C:\AP10\ExSitu-AP10.bkp | K3: This program is free software: you can redistribute it and/or modify
B4: Date: | C4: 2019-02-20 | K4: it under the terms of the GNU General Public License as published by
B5: Time: | C5: 09:28:45 | K5: the Free Software Foundation, either version 3 of the License, or
C6: Heat Streams | D6: Value | E6: Units | G6: Work Streams | H6: Value | I6: Units | K6: (at your option) any later version.
C7: A100.A100DRYR.QM104 | D7: -16064081.7 | E7: BTU/HR | G7: A100.A100DWPT.W-K110 | H7: 390.259157 | I7: HP
C8: A100.A100DRYR.QM104B | D8: 74.9894739 | E8: BTU/HR | G8: A100.A100DWPT.W-P130 | H8: 17.4838993 | I8: HP | K8: This program is distributed in the hope that it will be useful,
C9: A100.A100DWPT.QB65 | D9: 7648334.14 | E9: BTU/HR | G9: A200.A211.CHAR-COM.W-K212 | H9: 13583.7186 | I9: HP | K9: but WITHOUT ANY WARRANTY; without even the implied warranty of
C10: A100.A121DWPT.Q-H125 | D10: 23201124.9 | E10: BTU/HR | G10: A200.A211.W-K211 | H10: 2886.26384 | I10: HP | K10: MERCHANTABILITY or FITNESS FOR A PARTICULAR PURPOSE. See the
C11: A100.HV-100.QCOMB | D11: 1571406190 | E11: BTU/HR | G11: A200.A261.CATREGEN.W-K262 | H11: 11035.79 | I11: HP | K11: GNU General Public License for more details.
C12: A100.HV-100.QGROSS | D12: 1575912970 | E12: BTU/HR | G12: A200.A261.STM-PREP.W-P270 | H12: 1.72055088 | I12: HP
C13: A100.HV-100.QNET | D13: 1467656020 | E13: BTU/HR | G13: A300.A310.W-P318 | H13: 1.35231482 | I13: HP | K13: You should have received a copy of the GNU General Public License
C14: A100.HV-100.QREJECT | D14: -1261698.47 | E14: BTU/HR | G14: A300.A310.W-P323 | H14: 42.0487245 | I14: HP | K14: along with this program. If not, see <https://www.gnu.org/licenses/>.
C15: A100.HV-100.QSHIFT | D15: 287185.335 | E15: BTU/HR | G15: A300.A310.W-P329 | H15: 2.61477295 | I15: HP
C16: A100.HV-100.QVAP-1 | D16: -104037355 | E16: BTU/HR | G16: A300.A310.W-P331 | H16: 1.24445861 | I16: HP
C17: A100.HV-100.QVAP-2 | D17: 108256952 | E17: BTU/HR | G17: A300.A310.W-P332 | H17: 0.543053638 | I17: HP
C18: A200.A211.CHAR-COM.Q217PDUM | D18: -32811.2089 | E18: BTU/HR | G18: A300.A360.A385.A390.W-F392 | H18: 52.1474842 | I18: HP
C19: A200.A211.CHAR-COM.QA-K212 | D19: 23147851.6 | E19: BTU/HR | G19: A300.A360.A385.A390.WFDFN410 | H19: 73.1009667 | I19: HP
C20: A200.A211.CHAR-COM.QC-M212 | D20: 459419.178 | E20: BTU/HR | G20: A300.A360.A385.A390.W-K390 | H20: 3028.37963 | I20: HP
C21: A200.A211.CHAR-COM.Q-H218 | D21: 76745518.8 | E21: BTU/HR | G21: A300.A360.A385.A390.W-K390A | H21: 1023.08904 | I21: HP
C22: A200.A211.CHAR-COM.Q-H218A | D22: 72384795.5 | E22: BTU/HR | G22: A300.A360.A385.A390.W-K390B | H22: 990.925495 | I22: HP
C23: A200.A211.CHAR-COM.Q-H218B | D23: 4360723.27 | E23: BTU/HR | G23: A300.A360.A385.A390.W-K390C | H23: 1014.36509 | I23: HP
C24: A200.A211.CHAR-COM.Q-H219 | D24: -18743980 | E24: BTU/HR | G24: A300.A360.A385.W-K390 | H24: 3028.37963 | I24: HP
C25: A200.A211.CHAR-COM.Q-H219A | D25: 128360.612 | E25: BTU/HR | G25: A300.A360.A385.W-P377 | H25: 0.328385698 | I25: HP
C26: A200.A211.CHAR-COM.Q-H219B | D26: -18872340.6 | E26: BTU/HR | G26: A400.A410.W-K412 | H26: 1192.47056 | I26: HP
C27: A200.A211.CHAR-COM.Q-R212 | D27: 14676560.2 | E27: BTU/HR | G27: A400.A410.W-K442 | H27: 176.908977 | I27: HP
C28: A200.A211.CHAR-COM.QS204 | D28: -2.54224362e-08 | E28: BTU/HR | G28: A400.A410.W-P410 | H28: 185.066736 | I28: HP
C29: A200.A211.CHAR-COM.Q-S213 | D29: 712.159972 | E29: BTU/HR | G29: A400.A450.W-P453 | H29: 0.367516963 | I29: HP
C30: A200.A211.CHAR-COM.Q-S215 | D30: 2.54224362e-08 | E30: BTU/HR | G30: A400.A450.W-P456 | H30: 1.91719117 | I30: HP
C31: A200.A211.CHAR-COM.Q-ST212 | D31: 7359390.22 | E31: BTU/HR | G31: A400.A460.W-K462 | H31: 494.737661 | I31: HP
C32: A200.A211.CHAR-COM.Q-ST212A | D32: -7359390.22 | E32: BTU/HR | G32: A400.A460.W-K492 | H32: 41.797394 | I32: HP
C33: A200.A211.CHAR-COM.Q-ST212B | D33: -7359390.22 | E33: BTU/HR | G33: A400.A460.W-P460 | H33: 117.041892 | I33: HP
C34: A200.A211.CHAR-COM.Q-ST212C | D34: -7359390.22 | E34: BTU/HR | G34: A500.A510.A530.A545.W-K545 | H34: 1085.36733 | I34: HP
C35: A200.A211.CHAR-COM.Q-STM212 | D35: -7359390.22 | E35: BTU/HR | G35: A500.A510.W-K511 | H35: 2915.43146 | I35: HP
C36: A200.A211.CHAR-COM.QU-200A | D36: -18259249.3 | E36: BTU/HR | G36: A500.A560.A575.A580.WAFAN410 | H36: 52.1474842 | I36: HP
C37: A200.A211.CHAR-COM.STMPINCH.Q-ST212C | D37: -7359390.22 | E37: BTU/HR | G37: A500.A560.A575.A580.WFDFN410 | H37: 73.1009667 | I37: HP
C38: A200.A211.CHAR-COM.STMPINCH.Q-ST212D | D38: 7359390.22 | E38: BTU/HR | G38: A500.A560.A575.A580.W-K580 | H38: 3242.22802 | I38: HP
C39: A200.A211.HV-FASTP.HV-FASTP.QCOMB | D39: 1243032170 | E39: BTU/HR | G39: A500.A560.A575.A580.W-K580A | H39: 1095.82876 | I39: HP
C40: A200.A211.HV-FASTP.HV-FASTP.QGROSS | D40: 1246136170 | E40: BTU/HR | G40: A500.A560.A575.A580.W-K580B | H40: 1061.06901 | I40: HP
C41: A200.A211.HV-FASTP.HV-FASTP.QNET | D41: 1172339760 | E41: BTU/HR | G41: A500.A560.A575.A580.W-K580C | H41: 1085.33024 | I41: HP
C42: A200.A211.HV-FASTP.HV-FASTP.QREJECT | D42: 72585348.1 | E42: BTU/HR | G42: A500.A560.A575.W-K580 | H42: 3242.22802 | I42: HP
C43: A200.A211.HV-FASTP.HV-FASTP.QSHIFT | D43: -3.65560329e-07 | E43: BTU/HR | G43: A500.A560.A575.W-P576 | H43: 0.274811777 | I43: HP
C44: A200.A211.HV-FASTP.HV-FASTP.QVAP-1 | D44: -70692417.5 | E44: BTU/HR | G44: A600.A600BF.WP603 | H44: 13.005761 | I44: HP
C45: A200.A211.HV-FASTP.HV-FASTP.QVAP-2 | D45: 73796408.6 | E45: BTU/HR | G45: A600.A600BL.WP604 | H45: 740.295623 | I45: HP
C46: A200.A211.HV-FASTP.SEP-HEAT | D46: 412536.571 | E46: BTU/HR | G46: A600.A600ST.W-602A | H46: -59354.2817 | I46: HP
C47: A200.A211.Q-H211 | D47: -79034457.2 | E47: BTU/HR | G47: A600.A600ST.WM602B | H47: -43563.7407 | I47: HP
C48: A200.A211.Q-H211A | D48: -14889307.7 | E48: BTU/HR | G48: A600.A600ST.WM602C | H48: -23443.8094 | I48: HP
C49: A200.A211.Q-H211B | D49: -64145149.5 | E49: BTU/HR | G49: A600.A600ST.WP602 | H49: 11.2856485 | I49: HP
C50: A200.A211.Q-R211 | D50: 14676560.2 | E50: BTU/HR | G50: A600.A600ST.WTOTGEN | H50: -59354.2817 | I50: HP
C51: A200.A211.Q-S211 | D51: -1265.95118 | E51: BTU/HR | G51: A600.A600WTR.WP601 | H51: 0.383018075 | I51: HP
C52: A200.A211.Q-S212 | D52: -633.137339 | E52: BTU/HR | G52: A600.WM602SFT | H52: -59354.2817 | I52: HP
C53: A200.A261.CATREGEN.Q-277DUM | D53: -21037.6923 | E53: BTU/HR | G53: A700.W700A | H53: 405.201339 | I53: HP
C54: A200.A261.CATREGEN.QA-K262 | D54: 18768952.7 | E54: BTU/HR | G54: A700.WM701 | H54: 149.506307 | I54: HP
C55: A200.A261.CATREGEN.QC-M262 | D55: 22387.5012 | E55: BTU/HR | G55: A700.WP701 | H55: 255.695032 | I55: HP
C56: A200.A261.CATREGEN.Q-H268 | D56: 53242532.2 | E56: BTU/HR | G56: A800.A810.A812.W-P812 | H56: 0.651851932 | I56: HP
C57: A200.A261.CATREGEN.Q-H268A | D57: 49796737.1 | E57: BTU/HR | G57: A800.A810.A822.W-P822 | H57: 0.0645542115 | I57: HP
C58: A200.A261.CATREGEN.Q-H268B | D58: 3445795.11 | E58: BTU/HR | G58: A800.A810.W-P810 | H58: 10.4860069 | I58: HP
C59: A200.A261.CATREGEN.Q-H269 | D59: -15564661 | E59: BTU/HR | G59: A800.A810.W-P814 | H59: 0.671422287 | I59: HP
C60: A200.A261.CATREGEN.Q-H269A | D60: -1623.72474 | E60: BTU/HR | G60: A800.A830.W-K831 | H60: 1048.02166 | I60: HP
C61: A200.A261.CATREGEN.Q-H269B | D61: -15563037.3 | E61: BTU/HR | G61: A800.A860.W-P860 | H61: 9.90946824 | I61: HP
C62: A200.A261.CATREGEN.Q-H271 | D62: 147307254 | E62: BTU/HR | G62: A800.W-P815 | H62: 1.19928613 | I62: HP
C63: A200.A261.CATREGEN.Q-R262 | D63: 7338280.1 | E63: BTU/HR | G63: A800.W-P866 | H63: 1.96221153 | I63: HP
C64: A200.A261.CATREGEN.Q-S263 | D64: 600.384806 | E64: BTU/HR | G64: A900.W100 | H64: 407.743057 | I64: HP
C65: A200.A261.CATREGEN.Q-S264 | D65: 2.54224362e-08 | E65: BTU/HR | G65: A900.W200 | H65: 30551.3194 | I65: HP
C66: A200.A261.CATREGEN.Q-S265 | D66: 0 | E66: BTU/HR | G66: A900.W300 | H66: 5294.36039 | I66: HP
C67: A200.A261.CATREGEN.Q-ST262 | D67: 92932540.3 | E67: BTU/HR | G67: A900.W400 | H67: 2395.01118 | I67: HP
C68: A200.A261.CATREGEN.Q-ST262A | D68: -92932540.3 | E68: BTU/HR | G68: A900.W500 | H68: 7869.46991 | I68: HP
C69: A200.A261.CATREGEN.Q-ST262B | D69: -92932540.3 | E69: BTU/HR | G69: A900.W600 | H69: 1959.20387 | I69: HP
C70: A200.A261.CATREGEN.Q-ST262C | D70: -92932540.3 | E70: BTU/HR | G70: A900.W700 | H70: 443.99996 | I70: HP
C71: A200.A261.CATREGEN.Q-STM262 | D71: -92932540.3 | E71: BTU/HR | G71: A900.W800 | H71: 1152.48814 | I71: HP
C72: A200.A261.CATREGEN.QU-200A | D72: 9100069.71 | E72: BTU/HR | G72: A900.WGEN | H72: -59354.2817 | I72: HP
C73: A200.A261.CATREGEN.STMPINCH.Q-ST262C | D73: -92932540.3 | E73: BTU/HR | G73: A900.WK601FAN | H73: 1137.53894 | I73: HP
C74: A200.A261.CATREGEN.STMPINCH.Q-ST262D | D74: 92932540.3 | E74: BTU/HR | G74: A900.WKMXHOUT | H74: 1137.53894 | I74: HP
C75: A200.A261.HV-VPUOU.HV-VPUOU.QCOMB | D75: 91255478.8 | E75: BTU/HR | G75: A900.WMISC | H75: 5007.35959 | I75: HP
C76: A200.A261.HV-VPUOU.HV-VPUOU.QGROSS | D76: 91473783.5 | E76: BTU/HR | G76: A900.WNET | H76: -4273.3262 | I76: HP
C77: A200.A261.HV-VPUOU.HV-VPUOU.QNET | D77: 86984111 | E77: BTU/HR | G77: A900.WPLANT | H77: 55080.9555 | I77: HP
C78: A200.A261.HV-VPUOU.HV-VPUOU.QREJECT | D78: 3943998.98 | E78: BTU/HR | G78: WNET | H78: -4273.3262 | I78: HP
C79: A200.A261.HV-VPUOU.HV-VPUOU.QSHIFT | D79: -4.05715766e-09 | E79: BTU/HR
C80: A200.A261.HV-VPUOU.HV-VPUOU.QVAP-1 | D80: -4271367.79 | E80: BTU/HR
C81: A200.A261.HV-VPUOU.HV-VPUOU.QVAP-2 | D81: 4489672.43 | E81: BTU/HR
C82: A200.A261.HV-VPUOU.SEP-HEAT | D82: 393205.039 | E82: BTU/HR
C83: A200.A261.Q-H261 | D83: 0 | E83: BTU/HR
C84: A200.A261.Q-R261 | D84: 7338293.62 | E84: BTU/HR
C85: A200.A261.Q-S261 | D85: -1560.97451 | E85: BTU/HR
C86: A200.A261.Q-S262 | D86: -780.64308 | E86: BTU/HR
C87: A200.A261.STM-PREP.Q-H270 | D87: -3365208.6 | E87: BTU/HR
C88: A200.A261.STM-PREP.Q-H270B | D88: -672732.229 | E88: BTU/HR
C89: A200.A261.STM-PREP.Q-H270C | D89: -2467121.14 | E89: BTU/HR
C90: A200.A261.STM-PREP.Q-H270C1 | D90: -225355.224 | E90: BTU/HR
C91: A200.A261.STM-PREP.Q-H270D | D91: -269679.731 | E91: BTU/HR
C92: A300.A310.HV-ORGLQ.QCOMB | D92: 91781494.8 | E92: BTU/HR
C93: A300.A310.HV-ORGLQ.QGROSS | D93: 92001137.8 | E93: BTU/HR
C94: A300.A310.HV-ORGLQ.QNET | D94: 87435343 | E94: BTU/HR
C95: A300.A310.HV-ORGLQ.QREJECT | D95: 192370.294 | E95: BTU/HR
C96: A300.A310.HV-ORGLQ.QSHIFT | D96: 2.45870267e-08 | E96: BTU/HR
C97: A300.A310.HV-ORGLQ.QVAP-1 | D97: -4346151.86 | E97: BTU/HR
C98: A300.A310.HV-ORGLQ.QVAP-2 | D98: 4565794.83 | E98: BTU/HR
C99: A300.A310.HV-PRGAS.QCOMB | D99: 641045218 | E99: BTU/HR
C100: A300.A310.HV-PRGAS.QGROSS | D100: 641921424 | E100: BTU/HR
C101: A300.A310.HV-PRGAS.QNET | D101: 568726507 | E101: BTU/HR
C102: A300.A310.HV-PRGAS.QREJECT | D102: 1000094.71 | E102: BTU/HR
C103: A300.A310.HV-PRGAS.QSHIFT | D103: 2.05386216e-07 | E103: BTU/HR
C104: A300.A310.HV-PRGAS.QVAP-1 | D104: -72318710.6 | E104: BTU/HR
C105: A300.A310.HV-PRGAS.QVAP-2 | D105: 73194917.2 | E105: BTU/HR
C106: A300.A310.QA-H313 | D106: 76518913.2 | E106: BTU/HR
C107: A300.A310.QA-H320 | D107: 285947.037 | E107: BTU/HR
C108: A300.A310.QC-H314 | D108: 11984151.5 | E108: BTU/HR
C109: A300.A310.QCH-H316 | D109: 10281000.1 | E109: BTU/HR
C110: A300.A310.QCH-H326 | D110: 13802398.6 | E110: BTU/HR
C111: A300.A310.Q-H310 | D111: 90563713.3 | E111: BTU/HR
C112: A300.A310.Q-H312 | D112: 43823616.6 | E112: BTU/HR
C113: A300.A310.Q-H312A | D113: 18276310.8 | E113: BTU/HR
C114: A300.A310.Q-H312B | D114: 25547305.8 | E114: BTU/HR
C115: A300.A310.Q-H318 | D115: 3023644.51 | E115: BTU/HR
C116: A300.A310.Q-H318A | D116: 1797230.57 | E116: BTU/HR
C117: A300.A310.Q-H318B | D117: 1226413.94 | E117: BTU/HR
C118: A300.A310.Q-H330 | D118: 0 | E118: BTU/HR
C119: A300.A310.Q-S316 | D119: 944.240302 | E119: BTU/HR
C120: A300.A310.Q-S322 | D120: -36.1803544 | E120: BTU/HR
C121: A300.A310.QX-H315 | D121: 4839262.75 | E121: BTU/HR
C122: A300.A310.QX-H321 | D122: -4839262.75 | E122: BTU/HR
C123: A300.A360.A365.QA-H373 | D123: 9365878.19 | E123: BTU/HR
C124: A300.A360.A365.QC-H374 | D124: 3638525.96 | E124: BTU/HR
C125: A300.A360.A365.Q-H366 | D125: -10475348.1 | E125: BTU/HR
C126: A300.A360.A365.Q-H366A | D126: -6440744.62 | E126: BTU/HR
C127: A300.A360.A365.Q-H366B | D127: -4034603.46 | E127: BTU/HR
C128: A300.A360.A365.Q-H367 | D128: -760381.073 | E128: BTU/HR
C129: A300.A360.A365.Q-H369 | D129: -3379621.85 | E129: BTU/HR
C130: A300.A360.A365.Q-H372 | D130: 34818430.8 | E130: BTU/HR
C131: A300.A360.A365.Q-H372A | D131: 16933118.2 | E131: BTU/HR
C132: A300.A360.A365.Q-H372B | D132: 13356067.4 | E132: BTU/HR
C133: A300.A360.A365.Q-H372B1 | D133: 4529245.2 | E133: BTU/HR
C134: A300.A360.A385.A390.Q-410AIR | D134: -19474543.9 | E134: BTU/HR
C135: A300.A360.A385.A390.Q-410FDA | D135: -27299648.4 | E135: BTU/HR
C136: A300.A360.A385.A390.QA-K390 | D136: 4178697.94 | E136: BTU/HR
C137: A300.A360.A385.A390.QAK-410A | D137: 0 | E137: BTU/HR
C138: A300.A360.A385.A390.QAK-410B | D138: 1413712.54 | E138: BTU/HR
C139: A300.A360.A385.A390.QAK-410C | D139: 1346178.87 | E139: BTU/HR
C140: A300.A360.A385.A390.QAK-410D | D140: 1418806.54 | E140: BTU/HR
C141: A300.A360.A385.A390.QC-K390 | D141: 4368397.37 | E141: BTU/HR
C142: A300.A360.A385.A390.QHK-410A | D142: 0 | E142: BTU/HR
C143: A300.A360.A385.A390.QHK410A1 | D143: 0 | E143: BTU/HR
C144: A300.A360.A385.A390.QHK410A2 | D144: 0 | E144: BTU/HR
C145: A300.A360.A385.A390.QHK-410B | D145: 0 | E145: BTU/HR
C146: A300.A360.A385.A390.QHK-410C | D146: -3.18931029e-08 | E146: BTU/HR
C147: A300.A360.A385.A390.QHK-410D | D147: 0 | E147: BTU/HR
C148: A300.A360.A385.A390.QHK410D1 | D148: 0 | E148: BTU/HR
C149: A300.A360.A385.A390.QHK410D2 | D149: 0 | E149: BTU/HR
C150: A300.A360.A385.A390.QKCW410A | D150: 0 | E150: BTU/HR
C151: A300.A360.A385.A390.QKCW410B | D151: 1553006.81 | E151: BTU/HR
C152: A300.A360.A385.A390.QKCW410C | D152: 1447216.91 | E152: BTU/HR
C153: A300.A360.A385.A390.QKCW410D | D153: 1368173.65 | E153: BTU/HR
C154: A300.A360.A385.QA-K390 | D154: 4178697.94 | E154: BTU/HR
C155: A300.A360.A385.QC-K390 | D155: 4368397.37 | E155: BTU/HR
C156: A300.Q0-M335 | D156: -1504.70112 | E156: BTU/HR
C157: A400.A410.H-410.QX-H410 | D157: -22872133.2 | E157: BTU/HR
C158: A400.A410.QA-H413 | D158: 2065803.74 | E158: BTU/HR
C159: A400.A410.QA-K412 | D159: 2838869.07 | E159: BTU/HR
C160: A400.A410.QC-H410 | D160: 13100713.5 | E160: BTU/HR
C161: A400.A410.QC-H413 | D161: 1695857.06 | E161: BTU/HR
C162: A400.A410.QC-H4445 | D162: 424672.128 | E162: BTU/HR
C163: A400.A410.QF-H411 | D163: -14895323 | E163: BTU/HR
C164: A400.A410.Q-H412 | D164: 15175898.1 | E164: BTU/HR
C165: A400.A410.Q-H412A | D165: 6754154.23 | E165: BTU/HR
C166: A400.A410.Q-H412B | D166: 8421743.86 | E166: BTU/HR
C167: A400.A410.Q-S411 | D167: 1523379.53 | E167: BTU/HR
C168: A400.A410.Q-S412 | D168: 135470.564 | E168: BTU/HR
C169: A400.A410.QW-R410 | D169: 12676041.4 | E169: BTU/HR
C170: A400.A450.D-450-CN.QCN-D450 | D170: 7344412.35 | E170: BTU/HR
C171: A400.A450.D-450-CN.QCNMD450 | D171: -7344412.35 | E171: BTU/HR
C172: A400.A450.D-450-CN.QMCND450 | D172: -7344412.35 | E172: BTU/HR
C173: A400.A450.D-450-RB.QRB-D450 | D173: -4736007.84 | E173: BTU/HR
C174: A400.A450.D-450-RB.QRBMD450 | D174: 4736007.84 | E174: BTU/HR
C175: A400.A450.D-451-CN.QCN-D451 | D175: 5265796.62 | E175: BTU/HR
C176: A400.A450.D-451-CN.QCNMD451 | D176: -5265796.62 | E176: BTU/HR
C177: A400.A450.D-451-RB.QRB-D451 | D177: -4140908.56 | E177: BTU/HR
C178: A400.A450.D-451-RB.QRBMD451 | D178: 4140908.56 | E178: BTU/HR
C179: A400.A450.HV-DIESL.QCOMB | D179: 490955515 | E179: BTU/HR
C180: A400.A450.HV-DIESL.QGROSS | D180: 491925046 | E180: BTU/HR
C181: A400.A450.HV-DIESL.QNET | D181: 459427746 | E181: BTU/HR
C182: A400.A450.HV-DIESL.QREJECT | D182: 0.326978863 | E182: BTU/HR
C183: A400.A450.HV-DIESL.QSHIFT | D183: -0.00274819335 | E183: BTU/HR
C184: A400.A450.HV-DIESL.QVAP-1 | D184: -31527768.7 | E184: BTU/HR
C185: A400.A450.HV-DIESL.QVAP-2 | D185: 32497300.1 | E185: BTU/HR
C186: A400.A450.HV-GASOL.QCOMB | D186: 398019815 | E186: BTU/HR
C187: A400.A450.HV-GASOL.QGROSS | D187: 398797354 | E187: BTU/HR
C188: A400.A450.HV-GASOL.QNET | D188: 371844544 | E188: BTU/HR
C189: A400.A450.HV-GASOL.QREJECT | D189: 81107.8324 | E189: BTU/HR
C190: A400.A450.HV-GASOL.QSHIFT | D190: 1454.41952 | E190: BTU/HR
C191: A400.A450.HV-GASOL.QVAP-1 | D191: -26176725.8 | E191: BTU/HR
C192: A400.A450.HV-GASOL.QVAP-2 | D192: 26952809.7 | E192: BTU/HR
C193: A400.A450.Q0-H455 | D193: 446493.139 | E193: BTU/HR
C194: A400.A450.Q0-H458 | D194: 529599.893 | E194: BTU/HR
C195: A400.A450.QA-H457 | D195: 0 | E195: BTU/HR
C196: A400.A450.QC-H454 | D196: 890687.577 | E196: BTU/HR
C197: A400.A450.QC-H457 | D197: 748243.103 | E197: BTU/HR
C198: A400.A450.QC-H459 | D198: 190312.198 | E198: BTU/HR
C199: A400.A450.QCN-D450 | D199: 7344412.35 | E199: BTU/HR
C200: A400.A450.QCN-D451 | D200: 5265796.62 | E200: BTU/HR
C201: A400.A450.Q-H450 | D201: -10584202.7 | E201: BTU/HR
... 135 more rows

Sheet DCFROR
B2: Based on DOE targeting assumptions | G2: Total Capital Investment
A3: Assumptions | B3: Value | G3: Process Area | H3: Description | J3: Purchased Cost | K3: Installed Cost | L3: ISBL
A4: Fixed Capital Investment | B4: =FCI -> 562845887.6 | G4: A100 | H4: Feed Handling & Drying | J4: =CAPEX!S23 -> 218273.7356 | K4: =CAPEX!R23 -> 428968.3907 | L4: =K4 -> 428968.3907
A5: General Plant | B5: =B4-B6 -> 515679479.6 | G5: A200 | H5: Fast Pyrolysis & Vapor Upgrading | J5: =CAPEX!S38+CAPEX!S55 -> 40632005.66 | K5: =CAPEX!R38+CAPEX!R55 -> 126964820.5 | L5: =K5 -> 126964820.5
A6: Steam Plant | B6: =K9 -> 47166408.09 | G6: A300 | H6: Pyrolysis Vapor Quench | J6: =CAPEX!S77+CAPEX!S88 -> 13189818.44 | K6: =CAPEX!R77+CAPEX!R88 -> 24194705.37 | L6: =K6 -> 24194705.37
G7: A400 | H7: Hydroprocessing and Separation | J7: =CAPEX!S105+CAPEX!S121+CAPEX!S136 -> 16419185.8 | K7: =CAPEX!R105+CAPEX!R121+CAPEX!R136 -> 30310776.95 | L7: 30310776.95
A8: Equity | B8: 0.4 | G8: A500 | H8: Hydrogen Plant | J8: =CAPEX!S151 -> 34500726.94 | K8: =CAPEX!R151 -> 66755213.4
A9: Loan Interest | B9: 0.08 | G9: A600 | H9: Steam System and Power Generation | J9: =CAPEX!S171 -> 26129540.39 | K9: =CAPEX!R171 -> 47166408.09
A10: Loan Term, years | B10: 10 | G10: A700 | H10: Cooling Water and Other Utilities | J10: =CAPEX!S197 -> 4636620.495 | K10: =CAPEX!R197 -> 9286179.508
A11: Annual Loan Payment | B11: =-PMT(B9,B10,FCI*(1-B8)) -> 50328380.91 | G11: A800 | H11: Water Management | J11: =CAPEX!S223 -> 5435217.089 | K11: =CAPEX!R223 -> 13020242.43
A13: Land Requirement | B13: 132 | C13: Acres
A14: Land Cost | B14: 14000 | C14: /acre
A17: Working Capital (% of FCI) | B17: 0.05
A18: Salvage Value
A19: General Plant | B19: 0 | C19: Not permitted since 2002 | G19: Subtotal | J19: =SUM(J4:J18) -> 141161388.5 | K19: =SUM(K4:K18) -> 318127314.6 | L19: =SUM(L4:L18) -> 181899271.2
A20: Steam Plant | B20: 0 | C20: Not permitted since 2002 | G20: Warehouse | I20: 0.04 | J20: of ISBL | K20: =I20*ISBL -> 7275970.847
A21: Depreciation Period (Years) | B21: MACR (IRS publication 946, Table A1, Page 76. http://www.irs.gov/pub/irs-pdf/p946.pdf ) | G21: Site Development | I21: 0.1 | J21: of ISBL | K21: =I21*ISBL -> 18189927.12
A22: General Plant | B22: 7 | C22: IRS Pub 946 | G22: Additional Piping | I22: 0.045 | J22: of ISBL | K22: =I22*ISBL -> 8185467.203
A23: Steam/Electricity System | B23: 20 | C23: IRS Pub 946 | G23: Total Direct Costs (TDC) | K23: =SUM(K19:K22) -> 351778679.8
A24: Construction Period (Years) | B24: 3 | D24: © 2016-2019 Alliance for Sustainable Energy, LLC | G24: Prorateable Expenses | I24: 0.1 | J24: of TDC | K24: =I24*$K$23 -> 35177867.98
A25: % Spent in Year -2 | B25: 0.08 | G25: Field Expenses | I25: 0.1 | J25: of TDC | K25: =I25*$K$23 -> 35177867.98
A26: % Spent in Year -1 | B26: 0.6 | D26: This program is free software: you can redistribute it and/or modify | G26: Home Office & Construction Fee | I26: 0.2 | J26: of TDC | K26: =I26*$K$23 -> 70355735.96
A27: % Spent in Year 0 | B27: =1-SUM(B25:B26) -> 0.32 | D27: it under the terms of the GNU General Public License as published by | G27: Project Contingency | I27: 0.1 | J27: of TDC | K27: =I27*$K$23 -> 35177867.98
A28: Start-up Time (Years) | B28: 0.5 | D28: the Free Software Foundation, either version 3 of the License, or | G28: Other Costs (Start-Up, Permits, etc.) | I28: 0.1 | J28: of TDC | K28: =I28*$K$23 -> 35177867.98
A29: EtOH production/Feedstock use (% of Normal) | B29: 0.5 | D29: (at your option) any later version. | G29: Total Indirect Costs | K29: =SUM(K24:K28) -> 211067207.9
A30: Variable Costs (% of Normal) | B30: 0.75 | G30: Fixed Capital Investment (FCI) | K30: =K23+K29 -> 562845887.6
A31: Fixed Cost (% of Normal) | B31: 1 | D31: This program is distributed in the hope that it will be useful, | G31: Land | K31: =B13*B14 -> 1848000
A32: Discount Rate (Internal Rate of Return [IRR]) | B32: 0.1 | C32: Short et. al | D32: but WITHOUT ANY WARRANTY; without even the implied warranty of | G32: Working Capital | I32: 0.05 | J32: of FCI | K32: =I32*K30 -> 28142294.38
A33: Income Tax Rate | B33: 0.35 | D33: MERCHANTABILITY or FITNESS FOR A PARTICULAR PURPOSE. See the | G33: Total Capital Investment (TCI) | K33: =SUM(K30:K32) -> 592836182
A34: Cost Year for Analysis | B34: 2011 | D34: GNU General Public License for more details.
A36: Total Fuel Production Rate (MM GGE/yr) | B36: =ANNUALGGE -> 56.4540506 | D36: You should have received a copy of the GNU General Public License
A37: Minimum Fuel Selling Price ($/GGE) | B37: =B38 -> 3.296661559 | D37: along with this program. If not, see <https://www.gnu.org/licenses/>.
A38: MFSP (Gasoline-Equivalent Basis) | B38: 3.296661559 | C38: Manipulated Value
A39: Net Present Value | B39: =B78 -> 0 | C39: Targeted Value
A41: Discounted Cash Flow Rate of Return Analysis
A42: Year | B42: Cumulative | C42: -2 | D42: -1 | E42: 0 | F42: 1 | G42: 2 | H42: 3 | I42: 4 | J42: 5 | K42: 6 | L42: 7 | M42: 8 | N42: 9 | O42: 10 | P42: 11 | Q42: 12 | R42: 13 | S42: 14 | T42: 15 | U42: 16 | V42: 17 | W42: 18 | X42: 19 | Y42: 20 | Z42: 21 | AA42: 22 | AB42: 23 | AC42: 24 | AD42: 25 | AE42: 26 | AF42: 27 | AG42: 28 | AH42: 29 | AI42: 30
A43: Fixed Capital Investment | C43: =FCI*B8*B25 -> 18011068.4 | D43: =FCI*B8*B26 -> 135083013 | E43: =FCI*B8*B27 -> 72044273.62
A44: Land | C44: =K31 -> 1848000 | AI44: =-C44 -> -1848000
A45: Working Capital | E45: =FCI*B17 -> 28142294.38 | AI45: =-E45 -> -28142294.38
A46: Loan Payment | F46: =B11 -> 50328380.91 | G46: =IF($B$10>F42,$B$11,0) -> 50328380.91 | H46: =IF($B$10>G42,$B$11,0) -> 50328380.91 | I46: 50328380.91 | J46: 50328380.91 | K46: 50328380.91 | L46: 50328380.91 | M46: 50328380.91 | N46: 50328380.91 | O46: 50328380.91 | P46: 0 | Q46: 0 | R46: 0 | S46: 0 | T46: 0 | U46: 0 | V46: 0 | W46: 0 | X46: 0 | Y46: 0 | Z46: 0 | AA46: 0 | AB46: 0 | AC46: 0 | AD46: 0 | AE46: 0 | AF46: 0 | AG46: 0 | AH46: 0 | AI46: 0
A47: Loan Interest Payment | C47: =$B$9*C48 -> 2161328.209 | D47: =$B$9*D48 -> 18371289.77 | E47: =$B$9*E48 -> 27016602.61 | F47: =B4*(1-B8)*B9 -> 27016602.61 | G47: =$B$9*F48 -> 25151660.34 | H47: =$B$9*G48 -> 23137522.7 | I47: 20962254.04 | J47: 18612963.89 | K47: 16075730.53 | L47: 13335518.5 | M47: 10376089.51 | N47: 7179906.193 | O47: 3728028.216 | P47: -1.862645149e-09 | Q47: -2.011656761e-09 | R47: -2.172589302e-09 | S47: -2.346396446e-09 | T47: -2.534108162e-09 | U47: -2.736836815e-09 | V47: -2.95578376e-09 | W47: -3.192246461e-09 | X47: -3.447626178e-09 | Y47: -3.723436272e-09 | Z47: -4.021311174e-09 | AA47: -4.343016068e-09 | AB47: -4.690457353e-09 | AC47: -5.065693941e-09 | AD47: -5.470949457e-09 | AE47: -5.908625413e-09 | AF47: -6.381315446e-09 | AG47: -6.891820682e-09 | AH47: -7.443166336e-09 | AI47: -8.038619643e-09
A48: Loan Principal | C48: =FCI*(1-B8)*B25 -> 27016602.61 | D48: =FCI*(1-B8)*B26+C48 -> 229641122.2 | E48: =FCI*(1-B8)*B27+D48 -> 337707532.6 | F48: =FCI*(1-B8)-F46+F47 -> 314395754.3 | G48: =F48-G46+G47 -> 289219033.7 | H48: =G48-H46+H47 -> 262028175.5 | I48: 232662048.6 | J48: 200946631.6 | K48: 166693981.2 | L48: 129701118.8 | M48: 89748827.41 | N48: 46600352.7 | O48: -2.328306437e-08 | P48: -2.514570951e-08 | Q48: -2.715736628e-08 | R48: -2.932995558e-08 | S48: -3.167635202e-08 | T48: -3.421046019e-08 | U48: -3.6947297e-08 | V48: -3.990308076e-08 | W48: -4.309532722e-08 | X48: -4.65429534e-08 | Y48: -5.026638967e-08 | Z48: -5.428770085e-08 | AA48: -5.863071691e-08 | AB48: -6.332117427e-08 | AC48: -6.838686821e-08 | AD48: -7.385781766e-08 | AE48: -7.976644308e-08 | AF48: -8.614775852e-08 | AG48: -9.30395792e-08 | AH48: -1.004827455e-07 | AI48: -1.085213652e-07
A49: Annual Income
A50: Fuel Sales | F50: =($B$37)*($B$36*(B28*B29+(1-B28)))*1000000 -> 139582423.9 | G50: =($B$37)*($B$36)*1000000 -> 186109898.5 | H50: 186109898.5 | I50: 186109898.5 | J50: 186109898.5 | K50: 186109898.5 | L50: 186109898.5 | M50: 186109898.5 | N50: 186109898.5 | O50: 186109898.5 | P50: 186109898.5 | Q50: 186109898.5 | R50: 186109898.5 | S50: 186109898.5 | T50: 186109898.5 | U50: 186109898.5 | V50: 186109898.5 | W50: 186109898.5 | X50: 186109898.5 | Y50: 186109898.5 | Z50: 186109898.5 | AA50: 186109898.5 | AB50: 186109898.5 | AC50: 186109898.5 | AD50: 186109898.5 | AE50: 186109898.5 | AF50: 186109898.5 | AG50: 186109898.5 | AH50: 186109898.5 | AI50: 186109898.5
A51: By-Product Credit | F51: =-(OPEX!$K$31)*(B28*B29+(1-B28))*1000000 -> 1102655.249 | G51: =-(OPEX!$K$31)*1000000 -> 1470206.998 | H51: =-(OPEX!$K$31)*1000000 -> 1470206.998 | I51: =-(OPEX!$K$31)*1000000 -> 1470206.998 | J51: =-(OPEX!$K$31)*1000000 -> 1470206.998 | K51: =-(OPEX!$K$31)*1000000 -> 1470206.998 | L51: =-(OPEX!$K$31)*1000000 -> 1470206.998 | M51: =-(OPEX!$K$31)*1000000 -> 1470206.998 | N51: =-(OPEX!$K$31)*1000000 -> 1470206.998 | O51: =-(OPEX!$K$31)*1000000 -> 1470206.998 | P51: =-(OPEX!$K$31)*1000000 -> 1470206.998 | Q51: =-(OPEX!$K$31)*1000000 -> 1470206.998 | R51: =-(OPEX!$K$31)*1000000 -> 1470206.998 | S51: =-(OPEX!$K$31)*1000000 -> 1470206.998 | T51: =-(OPEX!$K$31)*1000000 -> 1470206.998 | U51: =-(OPEX!$K$31)*1000000 -> 1470206.998 | V51: =-(OPEX!$K$31)*1000000 -> 1470206.998 | W51: =-(OPEX!$K$31)*1000000 -> 1470206.998 | X51: =-(OPEX!$K$31)*1000000 -> 1470206.998 | Y51: =-(OPEX!$K$31)*1000000 -> 1470206.998 | Z51: =-(OPEX!$K$31)*1000000 -> 1470206.998 | AA51: =-(OPEX!$K$31)*1000000 -> 1470206.998 | AB51: =-(OPEX!$K$31)*1000000 -> 1470206.998 | AC51: =-(OPEX!$K$31)*1000000 -> 1470206.998 | AD51: =-(OPEX!$K$31)*1000000 -> 1470206.998 | AE51: =-(OPEX!$K$31)*1000000 -> 1470206.998 | AF51: =-(OPEX!$K$31)*1000000 -> 1470206.998 | AG51: =-(OPEX!$K$31)*1000000 -> 1470206.998 | AH51: =-(OPEX!$K$31)*1000000 -> 1470206.998 | AI51: =-(OPEX!$K$31)*1000000 -> 1470206.998
A52: Total Annual Sales | F52: =SUM(F50:F51) -> 140685079.1 | G52: =SUM(G50:G51) -> 187580105.5 | H52: 187580105.5 | I52: 187580105.5 | J52: 187580105.5 | K52: 187580105.5 | L52: 187580105.5 | M52: 187580105.5 | N52: 187580105.5 | O52: 187580105.5 | P52: 187580105.5 | Q52: 187580105.5 | R52: 187580105.5 | S52: 187580105.5 | T52: 187580105.5 | U52: 187580105.5 | V52: 187580105.5 | W52: 187580105.5 | X52: 187580105.5 | Y52: 187580105.5 | Z52: 187580105.5 | AA52: 187580105.5 | AB52: 187580105.5 | AC52: 187580105.5 | AD52: 187580105.5 | AE52: 187580105.5 | AF52: 187580105.5 | AG52: 187580105.5 | AH52: 187580105.5 | AI52: 187580105.5
A53: Annual Manufacturing Cost
A54: Raw Materials | F54: =(OPEX!$K$8)*(B28*B29+(1-B28))*1000000 -> 43453060.1 | G54: =(OPEX!$K$8)*1000000 -> 57937413.46 | H54: =(OPEX!$K$8)*1000000 -> 57937413.46 | I54: =(OPEX!$K$8)*1000000 -> 57937413.46 | J54: =(OPEX!$K$8)*1000000 -> 57937413.46 | K54: =(OPEX!$K$8)*1000000 -> 57937413.46 | L54: =(OPEX!$K$8)*1000000 -> 57937413.46 | M54: =(OPEX!$K$8)*1000000 -> 57937413.46 | N54: =(OPEX!$K$8)*1000000 -> 57937413.46 | O54: =(OPEX!$K$8)*1000000 -> 57937413.46 | P54: =(OPEX!$K$8)*1000000 -> 57937413.46 | Q54: =(OPEX!$K$8)*1000000 -> 57937413.46 | R54: =(OPEX!$K$8)*1000000 -> 57937413.46 | S54: =(OPEX!$K$8)*1000000 -> 57937413.46 | T54: =(OPEX!$K$8)*1000000 -> 57937413.46 | U54: =(OPEX!$K$8)*1000000 -> 57937413.46 | V54: =(OPEX!$K$8)*1000000 -> 57937413.46 | W54: =(OPEX!$K$8)*1000000 -> 57937413.46 | X54: =(OPEX!$K$8)*1000000 -> 57937413.46 | Y54: =(OPEX!$K$8)*1000000 -> 57937413.46 | Z54: =(OPEX!$K$8)*1000000 -> 57937413.46 | AA54: =(OPEX!$K$8)*1000000 -> 57937413.46 | AB54: =(OPEX!$K$8)*1000000 -> 57937413.46 | AC54: =(OPEX!$K$8)*1000000 -> 57937413.46 | AD54: =(OPEX!$K$8)*1000000 -> 57937413.46 | AE54: =(OPEX!$K$8)*1000000 -> 57937413.46 | AF54: =(OPEX!$K$8)*1000000 -> 57937413.46 | AG54: =(OPEX!$K$8)*1000000 -> 57937413.46 | AH54: =(OPEX!$K$8)*1000000 -> 57937413.46 | AI54: =(OPEX!$K$8)*1000000 -> 57937413.46
A55: Catalyst Costs | C55: 0 | D55: 0 | E55: 0 | F55: 6867999.864 | G55: 272953.6251 | H55: 5325566.125 | I55: 272953.6251 | J55: 5325566.125 | K55: 272953.6251 | L55: 5325566.125 | M55: 272953.6251 | N55: 5325566.125 | O55: 272953.6251 | P55: 5325566.125 | Q55: 272953.6251 | R55: 5325566.125 | S55: 272953.6251 | T55: 5325566.125 | U55: 272953.6251 | V55: 5325566.125 | W55: 272953.6251 | X55: 5325566.125 | Y55: 272953.6251 | Z55: 5325566.125 | AA55: 272953.6251 | AB55: 5325566.125 | AC55: 272953.6251 | AD55: 5325566.125 | AE55: 272953.6251 | AF55: 5325566.125 | AG55: 272953.6251 | AH55: 5325566.125 | AI55: 272953.6251
A56: Other Variable Costs | F56: =SUM(OPEX!$K$9:$K$20,OPEX!$K$28)*(B28*B29+(1-B28))*1000000 -> 14641555.23 | G56: =SUM(OPEX!$K$9:$K$20,OPEX!$K$28)*1000000 -> 19522073.64 | H56: =SUM(OPEX!$K$9:$K$20,OPEX!$K$28)*1000000 -> 19522073.64 | I56: =SUM(OPEX!$K$9:$K$20,OPEX!$K$28)*1000000 -> 19522073.64 | J56: =SUM(OPEX!$K$9:$K$20,OPEX!$K$28)*1000000 -> 19522073.64 | K56: =SUM(OPEX!$K$9:$K$20,OPEX!$K$28)*1000000 -> 19522073.64 | L56: =SUM(OPEX!$K$9:$K$20,OPEX!$K$28)*1000000 -> 19522073.64 | M56: =SUM(OPEX!$K$9:$K$20,OPEX!$K$28)*1000000 -> 19522073.64 | N56: =SUM(OPEX!$K$9:$K$20,OPEX!$K$28)*1000000 -> 19522073.64 | O56: =SUM(OPEX!$K$9:$K$20,OPEX!$K$28)*1000000 -> 19522073.64 | P56: =SUM(OPEX!$K$9:$K$20,OPEX!$K$28)*1000000 -> 19522073.64 | Q56: =SUM(OPEX!$K$9:$K$20,OPEX!$K$28)*1000000 -> 19522073.64 | R56: =SUM(OPEX!$K$9:$K$20,OPEX!$K$28)*1000000 -> 19522073.64 | S56: =SUM(OPEX!$K$9:$K$20,OPEX!$K$28)*1000000 -> 19522073.64 | T56: =SUM(OPEX!$K$9:$K$20,OPEX!$K$28)*1000000 -> 19522073.64 | U56: =SUM(OPEX!$K$9:$K$20,OPEX!$K$28)*1000000 -> 19522073.64 | V56: =SUM(OPEX!$K$9:$K$20,OPEX!$K$28)*1000000 -> 19522073.64 | W56: =SUM(OPEX!$K$9:$K$20,OPEX!$K$28)*1000000 -> 19522073.64 | X56: =SUM(OPEX!$K$9:$K$20,OPEX!$K$28)*1000000 -> 19522073.64 | Y56: =SUM(OPEX!$K$9:$K$20,OPEX!$K$28)*1000000 -> 19522073.64 | Z56: =SUM(OPEX!$K$9:$K$20,OPEX!$K$28)*1000000 -> 19522073.64 | AA56: =SUM(OPEX!$K$9:$K$20,OPEX!$K$28)*1000000 -> 19522073.64 | AB56: =SUM(OPEX!$K$9:$K$20,OPEX!$K$28)*1000000 -> 19522073.64 | AC56: =SUM(OPEX!$K$9:$K$20,OPEX!$K$28)*1000000 -> 19522073.64 | AD56: =SUM(OPEX!$K$9:$K$20,OPEX!$K$28)*1000000 -> 19522073.64 | AE56: =SUM(OPEX!$K$9:$K$20,OPEX!$K$28)*1000000 -> 19522073.64 | AF56: =SUM(OPEX!$K$9:$K$20,OPEX!$K$28)*1000000 -> 19522073.64 | AG56: =SUM(OPEX!$K$9:$K$20,OPEX!$K$28)*1000000 -> 19522073.64 | AH56: =SUM(OPEX!$K$9:$K$20,OPEX!$K$28)*1000000 -> 19522073.64 | AI56: =SUM(OPEX!$K$9:$K$20,OPEX!$K$28)*1000000 -> 19522073.64
A57: Fixed Operating Costs | F57: =(OPEX!$K$53*1000000)*(1-B28)+((OPEX!$K$53*1000000)*B28*B31) -> 26992910.69 | G57: =(OPEX!$K$53*1000000) -> 26992910.69 | H57: =(OPEX!$K$53*1000000) -> 26992910.69 | I57: =(OPEX!$K$53*1000000) -> 26992910.69 | J57: =(OPEX!$K$53*1000000) -> 26992910.69 | K57: =(OPEX!$K$53*1000000) -> 26992910.69 | L57: =(OPEX!$K$53*1000000) -> 26992910.69 | M57: =(OPEX!$K$53*1000000) -> 26992910.69 | N57: =(OPEX!$K$53*1000000) -> 26992910.69 | O57: =(OPEX!$K$53*1000000) -> 26992910.69 | P57: =(OPEX!$K$53*1000000) -> 26992910.69 | Q57: =(OPEX!$K$53*1000000) -> 26992910.69 | R57: =(OPEX!$K$53*1000000) -> 26992910.69 | S57: =(OPEX!$K$53*1000000) -> 26992910.69 | T57: =(OPEX!$K$53*1000000) -> 26992910.69 | U57: =(OPEX!$K$53*1000000) -> 26992910.69 | V57: =(OPEX!$K$53*1000000) -> 26992910.69 | W57: =(OPEX!$K$53*1000000) -> 26992910.69 | X57: =(OPEX!$K$53*1000000) -> 26992910.69 | Y57: =(OPEX!$K$53*1000000) -> 26992910.69 | Z57: =(OPEX!$K$53*1000000) -> 26992910.69 | AA57: =(OPEX!$K$53*1000000) -> 26992910.69 | AB57: =(OPEX!$K$53*1000000) -> 26992910.69 | AC57: =(OPEX!$K$53*1000000) -> 26992910.69 | AD57: =(OPEX!$K$53*1000000) -> 26992910.69 | AE57: =(OPEX!$K$53*1000000) -> 26992910.69 | AF57: =(OPEX!$K$53*1000000) -> 26992910.69 | AG57: =(OPEX!$K$53*1000000) -> 26992910.69 | AH57: =(OPEX!$K$53*1000000) -> 26992910.69 | AI57: =(OPEX!$K$53*1000000) -> 26992910.69
A58: Total Product Cost | F58: =SUM(F54:F57) -> 91955525.88 | G58: 104725351.4 | H58: 109777963.9 | I58: 104725351.4 | J58: 109777963.9 | K58: 104725351.4 | L58: 109777963.9 | M58: 104725351.4 | N58: 109777963.9 | O58: 104725351.4 | P58: 109777963.9 | Q58: 104725351.4 | R58: 109777963.9 | S58: 104725351.4 | T58: 109777963.9 | U58: 104725351.4 | V58: 109777963.9 | W58: 104725351.4 | X58: 109777963.9 | Y58: 104725351.4 | Z58: 109777963.9 | AA58: 104725351.4 | AB58: 109777963.9 | AC58: 104725351.4 | AD58: 109777963.9 | AE58: 104725351.4 | AF58: 109777963.9 | AG58: 104725351.4 | AH58: 109777963.9 | AI58: 104725351.4
A59: Annual Depreciation
A60: General Plant Writedown | F60: 0.1429 | G60: 0.2449 | H60: 0.1749 | I60: 0.1249 | J60: 0.0893 | K60: 0.0892 | L60: 0.0893 | M60: 0.0446
A61: Depreciation Charge | F61: =$B$5*F60 -> 73690597.63 | G61: =$B$5*G60 -> 126289904.5 | H61: 90192340.97 | I61: 64408367 | J61: 46050177.52 | K61: 45998609.58 | L61: 46050177.52 | M61: 22999304.79
A62: Remaining Value | F62: =$B$5-$B$19-F61 -> 441988881.9 | G62: =F62-G61 -> 315698977.4 | H62: 225506636.4 | I62: 161098269.4 | J62: 115048091.9 | K62: 69049482.31 | L62: 22999304.79 | M62: 0
A63: Steam Plant Writedown | F63: 0.0375 | G63: 0.07219 | H63: 0.06677 | I63: 0.06177 | J63: 0.05713 | K63: 0.05285 | L63: 0.04888 | M63: 0.04522 | N63: 0.04462 | O63: 0.04461 | P63: 0.04462 | Q63: 0.04461 | R63: 0.04462 | S63: 0.04461 | T63: 0.04462 | U63: 0.04461 | V63: 0.04462 | W63: 0.04461 | X63: 0.04462 | Y63: 0.04461 | Z63: 0.02231
A64: Depreciation Charge | F64: =$B$6*F63 -> 1768740.304 | G64: =$B$6*G63 -> 3404943 | H64: 3149301.068 | I64: 2913469.028 | J64: 2694616.894 | K64: 2492744.668 | L64: 2305494.028 | M64: 2132864.974 | N64: 2104565.129 | O64: 2104093.465 | P64: 2104565.129 | Q64: 2104093.465 | R64: 2104565.129 | S64: 2104093.465 | T64: 2104565.129 | U64: 2104093.465 | V64: 2104565.129 | W64: 2104093.465 | X64: 2104565.129 | Y64: 2104093.465 | Z64: 1052282.565
A65: Remaining Value | F65: =$B$6-$B$20-F64 -> 45397667.79 | G65: =F65-G64 -> 41992724.79 | H65: =G65-H64 -> 38843423.72 | I65: 35929954.69 | J65: 33235337.8 | K65: 30742593.13 | L65: 28437099.1 | M65: 26304234.13 | N65: 24199669 | O65: 22095575.54 | P65: 19991010.41 | Q65: 17886916.94 | R65: 15782351.81 | S65: 13678258.35 | T65: 11573693.22 | U65: 9469599.753 | V65: 7365034.624 | W65: 5260941.159 | X65: 3156376.03 | Y65: 1052282.565 | Z65: -4.656612873e-09
A66: Annual Tax
A67: Net Revenue | F67: =F52-(F47+F58+F61+F64) -> -53746387.31 | G67: -71991753.82 | H67: -38677023.18 | I67: -5429336.001 | J67: 10444383.25 | K67: 18287669.29 | L67: 16110951.51 | M67: 47346494.8 | N67: 68517670.24 | O67: 77022632.38 | P67: 75697576.43 | Q67: 80750660.6 | R67: 75697576.43 | S67: 80750660.6 | T67: 75697576.43 | U67: 80750660.6 | V67: 75697576.43 | W67: 80750660.6 | X67: 75697576.43 | Y67: 80750660.6 | Z67: 76749859 | AA67: 82854754.06 | AB67: 77802141.56 | AC67: 82854754.06 | AD67: 77802141.56 | AE67: 82854754.06 | AF67: 77802141.56 | AG67: 82854754.06 | AH67: 77802141.56 | AI67: 82854754.06
A68: Losses Forward | G68: =IF(F69<0,F69,0) -> -53746387.31 | H68: =IF(G69<0,G69,0) -> -125738141.1 | I68: -164415164.3 | J68: -169844500.3 | K68: -159400117.1 | L68: -141112447.8 | M68: -125001496.2 | N68: -77655001.45 | O68: -9137331.209 | P68: 0 | Q68: 0 | R68: 0 | S68: 0 | T68: 0 | U68: 0 | V68: 0 | W68: 0 | X68: 0 | Y68: 0 | Z68: 0 | AA68: 0 | AB68: 0 | AC68: 0 | AD68: 0 | AE68: 0 | AF68: 0 | AG68: 0 | AH68: 0 | AI68: 0
A69: Taxable Income | F69: =F67+F68 -> -53746387.31 | G69: =G67+G68 -> -125738141.1 | H69: -164415164.3 | I69: -169844500.3 | J69: -159400117.1 | K69: -141112447.8 | L69: -125001496.2 | M69: -77655001.45 | N69: -9137331.209 | O69: 67885301.17 | P69: 75697576.43 | Q69: 80750660.6 | R69: 75697576.43 | S69: 80750660.6 | T69: 75697576.43 | U69: 80750660.6 | V69: 75697576.43 | W69: 80750660.6 | X69: 75697576.43 | Y69: 80750660.6 | Z69: 76749859 | AA69: 82854754.06 | AB69: 77802141.56 | AC69: 82854754.06 | AD69: 77802141.56 | AE69: 82854754.06 | AF69: 77802141.56 | AG69: 82854754.06 | AH69: 77802141.56 | AI69: 82854754.06
A70: Income Tax | F70: =IF(F69*($B$33)<0,0,F69*$B$33) -> 0 | G70: =IF(G69*($B$33)<0,0,G69*$B$33) -> 0 | H70: 0 | I70: 0 | J70: 0 | K70: 0 | L70: 0 | M70: 0 | N70: 0 | O70: 23759855.41 | P70: 26494151.75 | Q70: 28262731.21 | R70: 26494151.75 | S70: 28262731.21 | T70: 26494151.75 | U70: 28262731.21 | V70: 26494151.75 | W70: 28262731.21 | X70: 26494151.75 | Y70: 28262731.21 | Z70: 26862450.65 | AA70: 28999163.92 | AB70: 27230749.55 | AC70: 28999163.92 | AD70: 27230749.55 | AE70: 28999163.92 | AF70: 27230749.55 | AG70: 28999163.92 | AH70: 27230749.55 | AI70: 28999163.92
A71: Annual Cash Flow
A72: Annual Cash Income | F72: =F52-(F46+F58+F70) -> -1598827.679 | G72: 32526373.15 | H72: 27473760.65 | I72: 32526373.15 | J72: 27473760.65 | K72: 32526373.15 | L72: 27473760.65 | M72: 32526373.15 | N72: 27473760.65 | O72: 8766517.742 | P72: 51307989.81 | Q72: 54592022.85 | R72: 51307989.81 | S72: 54592022.85 | T72: 51307989.81 | U72: 54592022.85 | V72: 51307989.81 | W72: 54592022.85 | X72: 51307989.81 | Y72: 54592022.85 | Z72: 50939690.91 | AA72: 53855590.14 | AB72: 50571392.02 | AC72: 53855590.14 | AD72: 50571392.02 | AE72: 53855590.14 | AF72: 50571392.02 | AG72: 53855590.14 | AH72: 50571392.02 | AI72: 53855590.14
A73: Discount Factor | C73: =1/(1+$B$32)^C42 -> 1.21 | D73: 1.1 | E73: 1 | F73: 0.9090909091 | G73: 0.826446281 | H73: 0.7513148009 | I73: 0.6830134554 | J73: 0.6209213231 | K73: 0.5644739301 | L73: 0.5131581182 | M73: 0.4665073802 | N73: 0.4240976184 | O73: 0.3855432894 | P73: 0.3504938995 | Q73: 0.3186308177 | R73: 0.2896643797 | S73: 0.2633312543 | T73: 0.2393920494 | U73: 0.2176291358 | V73: 0.1978446689 | W73: 0.1798587899 | X73: 0.1635079908 | Y73: 0.148643628 | Z73: 0.1351305709 | AA73: 0.1228459736 | AB73: 0.1116781578 | AC73: 0.101525598 | AD73: 0.09229599818 | AE73: 0.08390545289 | AF73: 0.07627768444 | AG73: 0.06934334949 | AH73: 0.06303940863 | AI73: 0.0573085533
A74: Annual Present Value | F74: =F73*F72 -> -1453479.709 | G74: =G73*G72 -> 26881300.13 | H74: 20641443.01 | I74: 22215950.52 | J74: 17059043.81 | K74: 18360289.68 | L74: 14098383.32 | M74: 15173793.13 | N74: 11651556.46 | O74: 3379872.087 | P74: 17983137.42 | Q74: 17394700.88 | R74: 14862097.04 | S74: 14375785.85 | T74: 12282724.83 | U74: 11880814.75 | V74: 10151012.26 | W74: 9818855.169 | X74: 8389266.327 | Y74: 8114756.338 | Z74: 6883509.516 | AA74: 6615942.403 | AB74: 5647719.897 | AC74: 5467720.994 | AD74: 4667537.105 | AE74: 4518777.681 | AF74: 3857468.682 | AG74: 3734527.009 | AH74: 3187990.646 | AI74: 3086385.958
A75: Total Capital Investment + Interest | C75: =SUM(C43:C45,C47)*C73 -> 26644679.9 | D75: =SUM(D43:D45,D47)*D73 -> 168799733.1 | E75: =SUM(E43:E45,E47)*E73 -> 127203170.6 | AI75: =(AI43+AI47+AI45+AI44)*AI73 -> -1718700.384
A76: Cumulative Present Value | B76: =SUM(F74:AI74) -> 320928883.2
A77: Cumulative Investements + Interest | B77: =SUM(C75:AI75) -> 320928883.2
A78: Net Present Worth | B78: =B76-B77 -> 0
A80: NPV of Income Tax
A81: NPV of Fuel Income

Sheet CAPEX
A1: EQUIPMENT LIST | E1: © 2016-2019 Alliance for Sustainable Energy, LLC | G1: This program is free software: you can redistribute it and/or modify it under the terms of the GNU General Public License as published by the Free Software Foundation, either version 3 of the License, or (at your option) any later version.
G2: This program is distributed in the hope that it will be useful, but WITHOUT ANY WARRANTY; without even the implied warranty of MERCHANTABILITY or FITNESS FOR A PARTICULAR PURPOSE. See the GNU General Public License for more details. You should have received a copy of the GNU General Public License along with this program. If not, see <https://www.gnu.org/licenses/>.
A3: Equip ID | B3: Required | C3: Spares | D3: Equipment Name | E3: Scaling Stream | F3: Design Flow (per unit) | G3: Design Flow (total) | H3: Actual Flow (total) | I3: Units | J3: Size Ratio | K3: Original Equip Cost (per unit) | L3: Base Year | M3: Total Orig Equip Cost (Req+Spare) in Base Year | N3: Scaling Exp. | O3: Scaled Cost in Base Year | P3: Install Factor | Q3: Installed Cost in Base Year | R3: ="Installed Cost in "&COSTYEAR&"$" -> Installed Cost in 2011$ | S3: ="Scaled Uninstalled Cost in "&COSTYEAR&"$" -> Scaled Uninstalled Cost in 2011$ | V3: Equipment Category | W3: Equipment Type | X3: Design Pressure (psig) | Y3: Design Temp (F) | Z3: MOC | AA3: Sizing Information | AF3: Source/Reference | AH3: ACCE Equip Cost | AI3: ACCE Direct Cost | AJ3: TPI Bin | AK3: Remarks
A4: C-101 | D4: Hopper Feeder | E4: included w/ feedstock cost | K4: INCLUDED | V4: CONVEYOR | W4: VIBRATING-FEEDER | Z4: CS | AA4: Included in per unit cost of feedstock | AF4: Idaho National Lab
A5: C-102 | D5: Screener Feeder Conveyor | E5: included w/ feedstock cost | K5: INCLUDED | V5: CONVEYOR | W5: BELT | Z5: CS | AA5: Included in per unit cost of feedstock | AF5: Idaho National Lab
A6: C-103 | D6: Radial Stacker Conveyor | E6: included w/ feedstock cost | K6: INCLUDED | V6: CONVEYOR | W6: BELT | Z6: CS | AA6: Included in per unit cost of feedstock | AF6: Idaho National Lab
A7: C-104 | D7: Dryer Feed Screw Conveyor | E7: included w/ feedstock cost | K7: INCLUDED | V7: CONVEYOR | W7: SCREW | Z7: CS | AA7: Included in per unit cost of feedstock | AF7: Idaho National Lab
A8: C-105 | D8: Biomass Feed Screw Conveyor | E8: included w/ feedstock cost | K8: INCLUDED | V8: CONVEYOR | W8: SCREW | Z8: CS | AA8: Included in per unit cost of feedstock | AF8: Idaho National Lab
A9: K-101 | B9: 2 | D9: Flue Gas Blower | E9: A100.A100DWPT.W-k110 | F9: 204 | G9: =F9*B9 -> 408 | H9: =IF(ISNUMBER(SEARCH(".W",E9)),VLOOKUP(E9,INDIRECT(LU_WORK),2),IF(ISNUMBER(SEARCH(".Q",E9)),ABS(VLOOKUP(E9,INDIRECT(LU_HEAT),2)),VLOOKUP(E9,INDIRECT(LU_SENS),2))) -> 390.259157 | I9: =IF(ISNUMBER(SEARCH(".W",E9)),VLOOKUP(E9,INDIRECT(LU_WORK),3),IF(ISNUMBER(SEARCH(".Q",E9)),VLOOKUP(E9,INDIRECT(LU_HEAT),3),VLOOKUP(E9,INDIRECT(LU_SENS),3))) -> HP | J9: =IFERROR(H9/G9,0) -> 0.9565175417 | K9: =AH9 -> 59300 | L9: 2013 | M9: =K9*(B9+C9) -> 118600 | N9: 0.78 | O9: =IF(E9="",M9,M9*J9^N9) -> 114557.9363 | P9: =AI9/AH9 -> 1.935919056 | Q9: =O9*P9 -> 221774.8919 | R9: =Q9*VLOOKUP(COSTYEAR,INDIRECT(IX_CAP),4,FALSE)/VLOOKUP(L9,INDIRECT(IX_CAP),4,FALSE) -> 228968.0137 | S9: =O9*VLOOKUP(COSTYEAR,INDIRECT(IX_CAP),4,FALSE)/VLOOKUP(L9,INDIRECT(IX_CAP),4,FALSE) -> 118273.5471 | V9: FAN | W9: CENTRIFUGAL | Z9: CS | AA9: 60,000 cfm | AB9: 15" H2O | AC9: 204 hp | AF9: ACCE V8.4 | AH9: 59300 | AI9: 114800
A10: M-101 | D10: Hydraulic Truck Dump with Scale | E10: included w/ feedstock cost | K10: INCLUDED | V10: SCALE | W10: TRUCK-SCALE | Z10: CS | AA10: Included in per unit cost of feedstock | AF10: Idaho National Lab
A11: M-102 | D11: Hammermill | E11: included w/ feedstock cost | K11: INCLUDED | V11: MISC | W11: SIZE REDUCER | Z11: CS | AA11: Included in per unit cost of feedstock | AF11: Idaho National Lab
A12: M-103 | D12: Front End Loaders | E12: included w/ feedstock cost | K12: INCLUDED | V12: VEHICLE | W12: LOADER | Z12: CS | AA12: Included in per unit cost of feedstock | AF12: Idaho National Lab
A13: M-104 | B13: 2 | D13: Cross Flow Pellet Dryer | E13: STRM.A100.100 | F13: 102065.5 | G13: =F13*B13 -> 204131 | H13: =IF(ISNUMBER(SEARCH(".W",E13)),VLOOKUP(E13,INDIRECT(LU_WORK),2),IF(ISNUMBER(SEARCH(".Q",E13)),ABS(VLOOKUP(E13,INDIRECT(LU_HEAT),2)),VLOOKUP(E13,INDIRECT(LU_SENS),2))) -> 204131.481 | I13: =IF(ISNUMBER(SEARCH(".W",E13)),VLOOKUP(E13,INDIRECT(LU_WORK),3),IF(ISNUMBER(SEARCH(".Q",E13)),VLOOKUP(E13,INDIRECT(LU_HEAT),3),VLOOKUP(E13,INDIRECT(LU_SENS),3))) -> LB/HR | J13: =IFERROR(H13/G13,0) -> 1.000002356 | K13: 50000 | L13: 2011 | M13: =K13*(B13+C13) -> 100000 | N13: 0.8 | O13: =IF(E13="",M13,M13*J13^N13) -> 100000.1885 | P13: 2 | Q13: =O13*P13 -> 200000.377 | R13: =Q13*VLOOKUP(COSTYEAR,INDIRECT(IX_CAP),4,FALSE)/VLOOKUP(L13,INDIRECT(IX_CAP),4,FALSE) -> 200000.377 | S13: =O13*VLOOKUP(COSTYEAR,INDIRECT(IX_CAP),4,FALSE)/VLOOKUP(L13,INDIRECT(IX_CAP),4,FALSE) -> 100000.1885 | V13: MISC | W13: DRYER | Z13: CS | AA13: 50 ton/h | AB13: 5% moisture reduction | AF13: Idaho National Lab
A14: S-101 | D14: Magnetic Head Pulley | E14: included w/ feedstock cost | K14: INCLUDED | V14: SEPARATOR | W14: MAGNET | Z14: CS | AA14: Included in per unit cost of feedstock | AF14: Idaho National Lab
A15: S-102 | D15: Vibratory Conveyor | E15: included w/ feedstock cost | K15: INCLUDED | V15: SEPARATOR | W15: SCREEN | Z15: CS | AA15: Included in per unit cost of feedstock | AF15: Idaho National Lab
A16: T-101 | D16: Dump Hopper | E16: included w/ feedstock cost | K16: INCLUDED | V16: TANK | W16: LIVE-BTM-BIN | Z16: CS | AA16: Included in per unit cost of feedstock | AF16: Idaho National Lab
A17: T-102 | D17: Hammermill surge bin | E17: included w/ feedstock cost | K17: INCLUDED | V17: TANK | W17: LIVE-BTM-BIN | Z17: CS | AA17: Included in per unit cost of feedstock | AF17: Idaho National Lab
A18: T-103 | D18: Dryer Feed Bin | E18: included w/ feedstock cost | K18: INCLUDED | V18: TANK | W18: LIVE-BTM-BIN | Z18: CS | AA18: Included in per unit cost of feedstock | AF18: Idaho National Lab
A19: T-104 | D19: Dried Biomass Hopper | E19: included w/ feedstock cost | K19: INCLUDED | V19: TANK | W19: VERTICAL-VESSEL | Z19: CS | AA19: Included in per unit cost of feedstock | AF19: Idaho National Lab
A20: T-105 | D20: Lock Hopper | E20: included w/ feedstock cost | K20: INCLUDED | V20: TANK | W20: VERTICAL-VESSEL | Z20: CS | AA20: Included in per unit cost of feedstock | AF20: Idaho National Lab
A21: T-106 | D21: Feed Hopper | E21: included w/ feedstock cost | K21: INCLUDED | V21: TANK | W21: VERTICAL-VESSEL | Z21: CS | AA21: Included in per unit cost of feedstock | AF21: Idaho National Lab
A22: A100 | B22: 1 | D22: Pinch Exchanger CAPEX | L22: 2008 | M22: =O22 -> 0 | O22: 0 | P22: 2.6353666 | Q22: =O22*P22 -> 0 | R22: =Q22*VLOOKUP(COSTYEAR,INDIRECT(IX_CAP),4,FALSE)/VLOOKUP(L22,INDIRECT(IX_CAP),4,FALSE) -> 0 | S22: =O22*VLOOKUP(COSTYEAR,INDIRECT(IX_CAP),4,FALSE)/VLOOKUP(L22,INDIRECT(IX_CAP),4,FALSE) -> 0
A23: Area A100: Feed Handling & Drying ↑ | M23: =SUM(M4:M21) -> 218600 | O23: =SUM(O4:O21) -> 214558.1248 | P23: =IF(O23=0,"",Q23/O23) -> 1.965785585 | Q23: =SUM(Q4:Q21) -> 421775.2689 | R23: =SUM(R4:R21) -> 428968.3907 | S23: =SUM(S4:S21) -> 218273.7356
A24: C-212 | B24: 2 | D24: Fines purge cooler | E24: Included | K24: INCLUDED | V24: CONVEYOR | W24: SCREW | Z24: CS | AF24: HGI FCC Costing Sheet
A25: K-211 | B25: 2 | D25: Fluidizing gas recycle compressor | E25: A200.A211.W-K211 | F25: 3648 | G25: =F25*B25 -> 7296 | H25: =IF(ISNUMBER(SEARCH(".W",E25)),VLOOKUP(E25,INDIRECT(LU_WORK),2),IF(ISNUMBER(SEARCH(".Q",E25)),ABS(VLOOKUP(E25,INDIRECT(LU_HEAT),2)),VLOOKUP(E25,INDIRECT(LU_SENS),2))) -> 2886.26384 | I25: =IF(ISNUMBER(SEARCH(".W",E25)),VLOOKUP(E25,INDIRECT(LU_WORK),3),IF(ISNUMBER(SEARCH(".Q",E25)),VLOOKUP(E25,INDIRECT(LU_HEAT),3),VLOOKUP(E25,INDIRECT(LU_SENS),3))) -> HP | J25: =IFERROR(H25/G25,0) -> 0.3955953728 | K25: 4700000 | L25: 2014 | M25: =K25*(B25+C25) -> 9400000 | N25: 0.9 | O25: =IF(E25="",M25,M25*J25^N25) -> 4079941.503 | P25: 1.6 | Q25: =O25*P25 -> 6527906.406 | R25: =Q25*VLOOKUP(COSTYEAR,INDIRECT(IX_CAP),4,FALSE)/VLOOKUP(L25,INDIRECT(IX_CAP),4,FALSE) -> 6636685.96 | S25: =O25*VLOOKUP(COSTYEAR,INDIRECT(IX_CAP),4,FALSE)/VLOOKUP(L25,INDIRECT(IX_CAP),4,FALSE) -> 4147928.725 | V25: COMPRESSOR | W25: RECIPROCATING | Z25: SS | AA25: 2-stage reciprocating | AC25: 3648 hp | AF25: Vendor quote via HGI
A26: K-212 | B26: 2 | D26: Combustor air compressor | E26: A200.A211.CHAR-COM.W-K212 | F26: 10000 | G26: =F26*B26 -> 20000 | H26: =IF(ISNUMBER(SEARCH(".W",E26)),VLOOKUP(E26,INDIRECT(LU_WORK),2),IF(ISNUMBER(SEARCH(".Q",E26)),ABS(VLOOKUP(E26,INDIRECT(LU_HEAT),2)),VLOOKUP(E26,INDIRECT(LU_SENS),2))) -> 13583.7186 | I26: =IF(ISNUMBER(SEARCH(".W",E26)),VLOOKUP(E26,INDIRECT(LU_WORK),3),IF(ISNUMBER(SEARCH(".Q",E26)),VLOOKUP(E26,INDIRECT(LU_HEAT),3),VLOOKUP(E26,INDIRECT(LU_SENS),3))) -> HP | J26: =IFERROR(H26/G26,0) -> 0.67918593 | K26: 2600000 | L26: 2014 | M26: =K26*(B26+C26) -> 5200000 | N26: 0.78 | O26: =IF(E26="",M26,M26*J26^N26) -> 3845515.042 | P26: 1.6 | Q26: =O26*P26 -> 6152824.067 | R26: =Q26*VLOOKUP(COSTYEAR,INDIRECT(IX_CAP),4,FALSE)/VLOOKUP(L26,INDIRECT(IX_CAP),4,FALSE) -> 6255353.334 | S26: =O26*VLOOKUP(COSTYEAR,INDIRECT(IX_CAP),4,FALSE)/VLOOKUP(L26,INDIRECT(IX_CAP),4,FALSE) -> 3909595.834 | V26: COMPRESSOR | W26: CENTRIFUGAL | Z26: SS | AA26: Multi-stage oil-free | AC26: 10,000 hp | AF26: Vendor quote via HGI | AK26: Adjust installation factor based on pressure: 3 at 20 psia, 4 at 120 psia
A27: R-211 | B27: 2 | D27: Fluidized Bed Reactor | E27: VOLFLMX.A200.A211.211p | F27: 1222474 | G27: =F27*B27 -> 2444948 | H27: =IF(ISNUMBER(SEARCH(".W",E27)),VLOOKUP(E27,INDIRECT(LU_WORK),2),IF(ISNUMBER(SEARCH(".Q",E27)),ABS(VLOOKUP(E27,INDIRECT(LU_HEAT),2)),VLOOKUP(E27,INDIRECT(LU_SENS),2))) -> 2434448.32 | I27: =IF(ISNUMBER(SEARCH(".W",E27)),VLOOKUP(E27,INDIRECT(LU_WORK),3),IF(ISNUMBER(SEARCH(".Q",E27)),VLOOKUP(E27,INDIRECT(LU_HEAT),3),VLOOKUP(E27,INDIRECT(LU_SENS),3))) -> CUFT/HR | J27: =IFERROR(H27/G27,0) -> 0.995705561 | K27: 3449500 | L27: 2011 | M27: =K27*(B27+C27) -> 6899000 | N27: 0.5 | O27: =IF(E27="",M27,M27*J27^N27) -> 6884170.394 | P27: =3 + (VLOOKUP(AK27,INDIRECT(LU_SENS),2)-20)*(4-3)/(120-20) -> 4.01 | Q27: =O27*P27 -> 27605523.28 | R27: =Q27*VLOOKUP(COSTYEAR,INDIRECT(IX_CAP),4,FALSE)/VLOOKUP(L27,INDIRECT(IX_CAP),4,FALSE) -> 27605523.28 | S27: =O27*VLOOKUP(COSTYEAR,INDIRECT(IX_CAP),4,FALSE)/VLOOKUP(L27,INDIRECT(IX_CAP),4,FALSE) -> 6884170.394 | V27: REACTOR | W27: FLUIDIZED BED | X27: 105 | Y27: 930 | Z27: Refractory | AA27: 1,000 tpd biomass | AC27: 20,375 ACFM gas prod | AE27: 7.8 lb media/lb | AF27: HGI FCC Costing Sheet | AK27: =REPLACE(E27, FIND("VOLFLMX", UPPER(E27)), 7,"PRES") -> PRES.A200.A211.211p
A28: R-212 | B28: 2 | D28: Char Combustor | E28: VOLFLMX.A200.A211.CHAR-COM.226p | F28: 719240 | G28: =F28*B28 -> 1438480 | H28: =IF(ISNUMBER(SEARCH(".W",E28)),VLOOKUP(E28,INDIRECT(LU_WORK),2),IF(ISNUMBER(SEARCH(".Q",E28)),ABS(VLOOKUP(E28,INDIRECT(LU_HEAT),2)),VLOOKUP(E28,INDIRECT(LU_SENS),2))) -> 1429542.09 | I28: =IF(ISNUMBER(SEARCH(".W",E28)),VLOOKUP(E28,INDIRECT(LU_WORK),3),IF(ISNUMBER(SEARCH(".Q",E28)),VLOOKUP(E28,INDIRECT(LU_HEAT),3),VLOOKUP(E28,INDIRECT(LU_SENS),3))) -> CUFT/HR | J28: =IFERROR(H28/G28,0) -> 0.9937865594 | K28: 3483784 | L28: 2011 | M28: =K28*(B28+C28) -> 6967568 | N28: 0.5 | O28: =IF(E28="",M28,M28*J28^N28) -> 6945887.986 | P28: =3 + (VLOOKUP(AK28,INDIRECT(LU_SENS),2)-20)*(4-3)/(120-20) -> 3.96921963 | Q28: =O28*P28 -> 27569754.94 | R28: =Q28*VLOOKUP(COSTYEAR,INDIRECT(IX_CAP),4,FALSE)/VLOOKUP(L28,INDIRECT(IX_CAP),4,FALSE) -> 27569754.94 | S28: =O28*VLOOKUP(COSTYEAR,INDIRECT(IX_CAP),4,FALSE)/VLOOKUP(L28,INDIRECT(IX_CAP),4,FALSE) -> 6945887.986 | V28: REACTOR | W28: FLUIDIZED BED | X28: 105 | Y28: 1200 | Z28: Refractory | AA28: 718,690 lb/h solids | AC28: 12,000 ACFM gas prod | AF28: HGI FCC Costing Sheet | AK28: =REPLACE(E28, FIND("VOLFLMX", UPPER(E28)), 7,"PRES") -> PRES.A200.A211.CHAR-COM.226p
A29: R-212C | B29: 2 | D29: Sand Cooler | E29: A200.A211.CHAR-COM.Q-STM212 | F29: 3671901 | G29: =F29*B29 -> 7343802 | H29: =IF(ISNUMBER(SEARCH(".W",E29)),VLOOKUP(E29,INDIRECT(LU_WORK),2),IF(ISNUMBER(SEARCH(".Q",E29)),ABS(VLOOKUP(E29,INDIRECT(LU_HEAT),2)),VLOOKUP(E29,INDIRECT(LU_SENS),2))) -> 7359390.22 | I29: =IF(ISNUMBER(SEARCH(".W",E29)),VLOOKUP(E29,INDIRECT(LU_WORK),3),IF(ISNUMBER(SEARCH(".Q",E29)),VLOOKUP(E29,INDIRECT(LU_HEAT),3),VLOOKUP(E29,INDIRECT(LU_SENS),3))) -> BTU/HR | J29: =IFERROR(H29/G29,0) -> 1.002122636 | K29: 623441 | L29: 2011 | M29: =K29*(B29+C29) -> 1246882 | N29: 0.8 | O29: =IF(E29="",M29,M29*J29^N29) -> 1248998.892 | P29: 3 | Q29: =O29*P29 -> 3746996.677 | R29: =Q29*VLOOKUP(COSTYEAR,INDIRECT(IX_CAP),4,FALSE)/VLOOKUP(L29,INDIRECT(IX_CAP),4,FALSE) -> 3746996.677 | S29: =O29*VLOOKUP(COSTYEAR,INDIRECT(IX_CAP),4,FALSE)/VLOOKUP(L29,INDIRECT(IX_CAP),4,FALSE) -> 1248998.892 | V29: HEAT EXCH | W29: SOLIDS COOLER | X29: 105 | Y29: 1200 | Z29: Refractory | AA29: 3.7 MMBtu/h | AF29: HGI FCC Costing Sheet
A30: S-211 | B30: 2 | D30: Primary Cyclone | E30: included | K30: INCLUDED | V30: SEPARATOR | W30: CYCLONE | X30: 105 | Y30: 930 | Z30: CS | AA30: 20,375 ACFM gas prod | AC30: 718,690 lb/h solids | AE30: 99.9% reject | AF30: HGI FCC Costing Sheet
A31: S-212 | B31: 2 | D31: Secondary Cyclone | E31: included | K31: INCLUDED | V31: SEPARATOR | W31: CYCLONE | X31: 105 | Y31: 930 | Z31: CS | AA31: 20,375 ACFM gas prod | AC31: 720 lb/h solids | AE31: 99.9% reject | AF31: HGI FCC Costing Sheet
A32: S-213 | B32: 2 | D32: Char Combustor Primary Cyclone | E32: Included | K32: INCLUDED | V32: SEPARATOR | W32: CYCLONE | X32: 105 | Y32: 1200 | Z32: CS | AA32: 12,000 ACFM gas prod | AC32: 718,690 lb/h solids | AE32: 99.9% reject | AF32: HGI FCC Costing Sheet
A33: S-214 | B33: 2 | D33: Char Combustor Secondary Cyclone | E33: Included | K33: INCLUDED | V33: SEPARATOR | W33: CYCLONE | X33: 105 | Y33: 1200 | Z33: CS | AA33: 12,000 ACFM gas prod | AC33: 720 lb/h solids | AE33: 99.9% reject | AF33: HGI FCC Costing Sheet
A34: T-211 | B34: 2 | D34: Bed Media Bin | E34: Included | K34: INCLUDED | V34: VESSEL | W34: PRESSURE STORAGE | X34: 105 | Y34: 650 | Z34: CS | AF34: HGI FCC Costing Sheet
A35: T-212 | B35: 2 | D35: Depleted bed media and ash storage bin | E35: Included | K35: INCLUDED | V35: MISC | W35: ROLL-OFF DISPOSAL | X35: 0 | Y35: 300 | Z35: CS | AF35: HGI FCC Costing Sheet
A36: T-217 | B36: 2 | D36: Char combustor bed media feed bin | E36: Included | K36: INCLUDED | V36: VESSEL | W36: PRESSURE STORAGE | X36: 105 | Y36: 650 | Z36: CS | AF36: HGI FCC Costing Sheet
A37: A211 | B37: 1 | D37: Pinch Exchanger CAPEX | L37: 2008 | M37: =O37 -> 1841846.1 | O37: 1841846.1 | P37: 2.6353666 | Q37: =O37*P37 -> 4853939.695 | R37: =Q37*VLOOKUP(COSTYEAR,INDIRECT(IX_CAP),4,FALSE)/VLOOKUP(L37,INDIRECT(IX_CAP),4,FALSE) -> 4940828.084 | S37: =O37*VLOOKUP(COSTYEAR,INDIRECT(IX_CAP),4,FALSE)/VLOOKUP(L37,INDIRECT(IX_CAP),4,FALSE) -> 1874816.234 | AF37: ACCE V7.2
A38: Area A211: Ex Situ Fast Pyrolysis ↑ | M38: =SUM(M24:M37) -> 31555296.1 | O38: =SUM(O24:O37) -> 24846359.92 | P38: =IFERROR(Q38/O38,"") -> 3.077188985 | Q38: =SUM(Q24:Q37) -> 76456945.07 | R38: =SUM(R24:R37) -> 76755142.28 | S38: =SUM(S24:S37) -> 25011398.07
A39: C-262 | B39: 1 | D39: Fines purge cooler | E39: Included | K39: INCLUDED | V39: CONVEYOR | W39: SCREW | Z39: CS | AF39: HGI FCC Costing Sheet
A40: H-271 | B40: 1 | D40: Secondary catalyst cooler (info only) | E40: a200.a261.catregen.q-h271 | H40: =IF(ISNUMBER(SEARCH(".W",E40)),VLOOKUP(E40,INDIRECT(LU_WORK),2),IF(ISNUMBER(SEARCH(".Q",E40)),ABS(VLOOKUP(E40,INDIRECT(LU_HEAT),2)),VLOOKUP(E40,INDIRECT(LU_SENS),2))) -> 147307254 | I40: =IF(ISNUMBER(SEARCH(".W",E40)),VLOOKUP(E40,INDIRECT(LU_WORK),3),IF(ISNUMBER(SEARCH(".Q",E40)),VLOOKUP(E40,INDIRECT(LU_HEAT),3),VLOOKUP(E40,INDIRECT(LU_SENS),3))) -> BTU/HR | V40: INFO ONLY
A41: K-262 | B41: 1 | D41: Regenerator air compressor | E41: A200.A261.CATREGEN.W-K262 | F41: 10000 | G41: =F41*B41 -> 10000 | H41: =IF(ISNUMBER(SEARCH(".W",E41)),VLOOKUP(E41,INDIRECT(LU_WORK),2),IF(ISNUMBER(SEARCH(".Q",E41)),ABS(VLOOKUP(E41,INDIRECT(LU_HEAT),2)),VLOOKUP(E41,INDIRECT(LU_SENS),2))) -> 11035.79 | I41: =IF(ISNUMBER(SEARCH(".W",E41)),VLOOKUP(E41,INDIRECT(LU_WORK),3),IF(ISNUMBER(SEARCH(".Q",E41)),VLOOKUP(E41,INDIRECT(LU_HEAT),3),VLOOKUP(E41,INDIRECT(LU_SENS),3))) -> HP | J41: =IFERROR(H41/G41,0) -> 1.103579 | K41: 2600000 | L41: 2014 | M41: =K41*(B41+C41) -> 2600000 | N41: 0.78 | O41: =IF(E41="",M41,M41*J41^N41) -> 2807760.251 | P41: 1.6 | Q41: =O41*P41 -> 4492416.402 | R41: =Q41*VLOOKUP(COSTYEAR,INDIRECT(IX_CAP),4,FALSE)/VLOOKUP(L41,INDIRECT(IX_CAP),4,FALSE) -> 4567277.012 | S41: =O41*VLOOKUP(COSTYEAR,INDIRECT(IX_CAP),4,FALSE)/VLOOKUP(L41,INDIRECT(IX_CAP),4,FALSE) -> 2854548.133 | V41: COMPRESSOR | W41: CENTRIFUGAL | Z41: SS | AA41: Multi-stage oil-free | AC41: 10,000 hp | AF41: Vendor quote via HGI | AK41: Adjust installation factor based on pressure: 3 at 20 psia, 4 at 120 psia
A42: R-261 | B42: 1 | D42: Catalytic Fluidized Bed Reactor | E42: VOLFLMX.A200.A261.268 | F42: 2534057 | G42: =F42*B42 -> 2534057 | H42: =IF(ISNUMBER(SEARCH(".W",E42)),VLOOKUP(E42,INDIRECT(LU_WORK),2),IF(ISNUMBER(SEARCH(".Q",E42)),ABS(VLOOKUP(E42,INDIRECT(LU_HEAT),2)),VLOOKUP(E42,INDIRECT(LU_SENS),2))) -> 2551988.14 | I42: =IF(ISNUMBER(SEARCH(".W",E42)),VLOOKUP(E42,INDIRECT(LU_WORK),3),IF(ISNUMBER(SEARCH(".Q",E42)),VLOOKUP(E42,INDIRECT(LU_HEAT),3),VLOOKUP(E42,INDIRECT(LU_SENS),3))) -> CUFT/HR | J42: =IFERROR(H42/G42,0) -> 1.00707606 | K42: 3818400 | L42: 2011 | M42: =K42*(B42+C42) -> 3818400 | N42: 0.5 | O42: =IF(E42="",M42,M42*J42^N42) -> 3831885.8 | P42: =3 + (VLOOKUP(AK42,INDIRECT(LU_SENS),2)-20)*(4-3)/(120-20) -> 3.96921963 | Q42: =O42*P42 -> 15209596.34 | R42: =Q42*VLOOKUP(COSTYEAR,INDIRECT(IX_CAP),4,FALSE)/VLOOKUP(L42,INDIRECT(IX_CAP),4,FALSE) -> 15209596.34 | S42: =O42*VLOOKUP(COSTYEAR,INDIRECT(IX_CAP),4,FALSE)/VLOOKUP(L42,INDIRECT(IX_CAP),4,FALSE) -> 3831885.8 | V42: REACTOR | W42: FLUIDIZED BED | X42: 105 | Y42: 930 | Z42: Refractory | AA42: 2,000 tpd biomass equiv | AC42: 42,200 ACFM gas prod | AE42: 5.0 lb media/lb | AF42: HGI FCC Costing Sheet | AK42: =REPLACE(E42, FIND("VOLFLMX", UPPER(E42)), 7,"PRES") -> PRES.A200.A261.268
A43: R-262 | B43: 1 | D43: Catalyst Regenerator | E43: VOLFLMX.A200.A261.CATREGEN.286 | F43: 1084318 | G43: =F43*B43 -> 1084318 | H43: =IF(ISNUMBER(SEARCH(".W",E43)),VLOOKUP(E43,INDIRECT(LU_WORK),2),IF(ISNUMBER(SEARCH(".Q",E43)),ABS(VLOOKUP(E43,INDIRECT(LU_HEAT),2)),VLOOKUP(E43,INDIRECT(LU_SENS),2))) -> 1088606.37 | I43: =IF(ISNUMBER(SEARCH(".W",E43)),VLOOKUP(E43,INDIRECT(LU_WORK),3),IF(ISNUMBER(SEARCH(".Q",E43)),VLOOKUP(E43,INDIRECT(LU_HEAT),3),VLOOKUP(E43,INDIRECT(LU_SENS),3))) -> CUFT/HR | J43: =IFERROR(H43/G43,0) -> 1.003954901 | K43: 4207313 | L43: 2011 | M43: =K43*(B43+C43) -> 4207313 | N43: 0.5 | O43: =IF(E43="",M43,M43*J43^N43) -> 4215624.543 | P43: =3 + (VLOOKUP(AK43,INDIRECT(LU_SENS),2)-20)*(4-3)/(120-20) -> 3.92843927 | Q43: =O43*P43 -> 16560825 | R43: =Q43*VLOOKUP(COSTYEAR,INDIRECT(IX_CAP),4,FALSE)/VLOOKUP(L43,INDIRECT(IX_CAP),4,FALSE) -> 16560825 | S43: =O43*VLOOKUP(COSTYEAR,INDIRECT(IX_CAP),4,FALSE)/VLOOKUP(L43,INDIRECT(IX_CAP),4,FALSE) -> 4215624.543 | V43: REACTOR | W43: FLUIDIZED BED | X43: 105 | Y43: 1200 | Z43: Refractory | AA43: 918,760 lb/h solids | AC43: 10,200 ACFM gas prod | AF43: HGI FCC Costing Sheet | AK43: =REPLACE(E43, FIND("VOLFLMX", UPPER(E43)), 7,"PRES") -> PRES.A200.A261.CATREGEN.286
A44: R-262C | B44: 1 | D44: Catalyst Cooler | E44: A200.A261.CATREGEN.Q-stm262 | F44: 272000000 | G44: =F44*B44 -> 272000000 | H44: =IF(ISNUMBER(SEARCH(".W",E44)),VLOOKUP(E44,INDIRECT(LU_WORK),2),IF(ISNUMBER(SEARCH(".Q",E44)),ABS(VLOOKUP(E44,INDIRECT(LU_HEAT),2)),VLOOKUP(E44,INDIRECT(LU_SENS),2)))+H40 -> 240239794.3 | I44: =IF(ISNUMBER(SEARCH(".W",E44)),VLOOKUP(E44,INDIRECT(LU_WORK),3),IF(ISNUMBER(SEARCH(".Q",E44)),VLOOKUP(E44,INDIRECT(LU_HEAT),3),VLOOKUP(E44,INDIRECT(LU_SENS),3))) -> BTU/HR | J44: =IFERROR(H44/G44,0) -> 0.8832345379 | K44: 3968900 | L44: 2011 | M44: =K44*(B44+C44) -> 3968900 | N44: 0.8 | O44: =IF(E44="",M44,M44*J44^N44) -> 3593610.398 | P44: 3 | Q44: =O44*P44 -> 10780831.2 | R44: =Q44*VLOOKUP(COSTYEAR,INDIRECT(IX_CAP),4,FALSE)/VLOOKUP(L44,INDIRECT(IX_CAP),4,FALSE) -> 10780831.2 | S44: =O44*VLOOKUP(COSTYEAR,INDIRECT(IX_CAP),4,FALSE)/VLOOKUP(L44,INDIRECT(IX_CAP),4,FALSE) -> 3593610.398 | V44: HEAT EXCH | W44: SOLIDS COOLER | X44: 105 | Y44: 1200 | Z44: Refractory | AA44: 93 MMBtu/h | AF44: HGI FCC Costing Sheet
A45: S-261 | B45: 1 | D45: Primary Cyclone | E45: included | K45: INCLUDED | V45: SEPARATOR | W45: CYCLONE | X45: 105 | Y45: 930 | Z45: CS | AA45: 42,200 ACFM gas prod | AC45: 918,760 lb/h solids | AE45: 99.9% reject | AF45: HGI FCC Costing Sheet
A46: S-262 | B46: 1 | D46: Secondary Cyclone | E46: included | K46: INCLUDED | V46: SEPARATOR | W46: CYCLONE | X46: 105 | Y46: 930 | Z46: CS | AA46: 42,200 ACFM gas prod | AC46: 920 lb/h solids | AE46: 99.9% reject | AF46: HGI FCC Costing Sheet
A47: S-263 | B47: 1 | D47: Char Combustor Primary Cyclone | E47: included | K47: INCLUDED | V47: SEPARATOR | W47: CYCLONE | X47: 105 | Y47: 1200 | Z47: CS | AA47: 18,000 ACFM gas prod | AC47: 918,760 lb/h solids | AE47: 99.9% reject | AF47: HGI FCC Costing Sheet
A48: S-264 | B48: 1 | D48: Char Combustor Secondary Cyclone | E48: included | K48: INCLUDED | V48: SEPARATOR | W48: CYCLONE | X48: 105 | Y48: 1200 | Z48: CS | AA48: 18,000 ACFM gas prod | AC48: 920 lb/h solids | AE48: 99.9% reject | AF48: HGI FCC Costing Sheet
A49: T-261 | B49: 1 | D49: Catalyst steam stripper | E49: STRM.A200.a261.270 | F49: 2756 | G49: =F49*B49 -> 2756 | H49: =IF(ISNUMBER(SEARCH(".W",E49)),VLOOKUP(E49,INDIRECT(LU_WORK),2),IF(ISNUMBER(SEARCH(".Q",E49)),ABS(VLOOKUP(E49,INDIRECT(LU_HEAT),2)),VLOOKUP(E49,INDIRECT(LU_SENS),2))) -> 2755.49942 | I49: =IF(ISNUMBER(SEARCH(".W",E49)),VLOOKUP(E49,INDIRECT(LU_WORK),3),IF(ISNUMBER(SEARCH(".Q",E49)),VLOOKUP(E49,INDIRECT(LU_HEAT),3),VLOOKUP(E49,INDIRECT(LU_SENS),3))) -> LB/HR | J49: =IFERROR(H49/G49,0) -> 0.9998183672 | K49: 347005 | L49: 2011 | M49: =K49*(B49+C49) -> 347005 | N49: 0.3 | O49: =IF(E49="",M49,M49*J49^N49) -> 346986.0906 | P49: 3 | Q49: =O49*P49 -> 1040958.272 | R49: =Q49*VLOOKUP(COSTYEAR,INDIRECT(IX_CAP),4,FALSE)/VLOOKUP(L49,INDIRECT(IX_CAP),4,FALSE) -> 1040958.272 | S49: =O49*VLOOKUP(COSTYEAR,INDIRECT(IX_CAP),4,FALSE)/VLOOKUP(L49,INDIRECT(IX_CAP),4,FALSE) -> 346986.0906 | V49: VESSEL | W49: PRESSURE STORAGE | X49: 105 | Y49: 650 | Z49: CS | AA49: 1 min cat res. time | AC49: 3 lb steam/1000 lb catalyst | AF49: HGI FCC Costing Sheet
A50: T-262 | B50: 1 | D50: Depleted catalyst and ash storage bin | E50: included | K50: INCLUDED | V50: MISC | W50: ROLL-OFF DISPOSAL | X50: 0 | Y50: 300 | Z50: CS | AF50: HGI FCC Costing Sheet
A51: T-267 | B51: 1 | D51: Catalyst feed bin | E51: included | K51: INCLUDED | V51: VESSEL | W51: PRESSURE STORAGE | X51: 105 | Y51: 650 | Z51: CS | AF51: HGI FCC Costing Sheet
A52: A261 | B52: 1 | D52: Pinch Exchanger CAPEX | L52: 2008 | M52: =O52 -> 764271.7125 | O52: 764271.7125 | P52: 2.6353666 | Q52: =O52*P52 -> 2014136.145 | R52: =Q52*VLOOKUP(COSTYEAR,INDIRECT(IX_CAP),4,FALSE)/VLOOKUP(L52,INDIRECT(IX_CAP),4,FALSE) -> 2050190.372 | S52: =O52*VLOOKUP(COSTYEAR,INDIRECT(IX_CAP),4,FALSE)/VLOOKUP(L52,INDIRECT(IX_CAP),4,FALSE) -> 777952.6278 | AF52: ACCE V7.2
A53: R-261 | B53: 2 | C53: 1 | D53: VPU Fixed Bed Reactor | E53: STRM.A200.A261.264 | F53: 161200 | G53: =F53*B53 -> 322400 | H53: =IF(ISNUMBER(SEARCH(".W",E53)),VLOOKUP(E53,INDIRECT(LU_WORK),2),IF(ISNUMBER(SEARCH(".Q",E53)),ABS(VLOOKUP(E53,INDIRECT(LU_HEAT),2)),VLOOKUP(E53,INDIRECT(LU_SENS),2))) -> 322397.731 | I53: =IF(ISNUMBER(SEARCH(".W",E53)),VLOOKUP(E53,INDIRECT(LU_WORK),3),IF(ISNUMBER(SEARCH(".Q",E53)),VLOOKUP(E53,INDIRECT(LU_HEAT),3),VLOOKUP(E53,INDIRECT(LU_SENS),3))) -> LB/HR | J53: =IFERROR(H53/G53,0) -> 0.9999929622 | K53: =AH53 -> 3841800 | L53: 2013 | M53: =O53 -> 0 | N53: 0.7 | O53: 0 | P53: =AI53/AH53 -> 1.213025144 | Q53: =O53*P53 -> 0 | R53: =Q53*VLOOKUP(COSTYEAR,INDIRECT(IX_CAP),4,FALSE)/VLOOKUP(L53,INDIRECT(IX_CAP),4,FALSE) -> 0 | S53: =O53*VLOOKUP(COSTYEAR,INDIRECT(IX_CAP),4,FALSE)/VLOOKUP(L53,INDIRECT(IX_CAP),4,FALSE) -> 0 | V53: VESSEL | W53: VERTICAL PRESSURE | X53: 130 | Y53: 1000 | Z53: CS+Inconel | AA53: 17 | AB53: 48 | AC53: +20% internals | AF53: ACCE V8.4 | AH53: 3841800 | AI53: 4660200
A54: A261 | B54: 1 | D54: Pinch Exchanger CAPEX | L54: 2008 | M54: =O54 -> 0 | O54: 0 | P54: 2.6353666 | Q54: =O54*P54 -> 0 | R54: =Q54*VLOOKUP(COSTYEAR,INDIRECT(IX_CAP),4,FALSE)/VLOOKUP(L54,INDIRECT(IX_CAP),4,FALSE) -> 0 | S54: =O54*VLOOKUP(COSTYEAR,INDIRECT(IX_CAP),4,FALSE)/VLOOKUP(L54,INDIRECT(IX_CAP),4,FALSE) -> 0 | AF54: ACCE V7.2
A55: Area A261: Ex Situ Vapor Phase Upgrading ↑ | M55: =SUM(M39:M54) -> 15705889.71 | O55: =SUM(O39:O54) -> 15560138.8 | P55: =IFERROR(Q55/O55,0) -> 3.219686149 | Q55: =SUM(Q39:Q54) -> 50098763.35 | R55: =SUM(R39:R54) -> 50209678.19 | S55: =SUM(S39:S54) -> 15620607.59
A56: D-301 | B56: 1 | D56: Heavy Fraction Condenser Absorber | E56: d301dft | G56: 12 | H56: =IF(ISNUMBER(SEARCH(".W",E56)),VLOOKUP(E56,INDIRECT(LU_WORK),2),IF(ISNUMBER(SEARCH(".Q",E56)),ABS(VLOOKUP(E56,INDIRECT(LU_HEAT),2)),VLOOKUP(E56,INDIRECT(LU_SENS),2))) -> 11.8428592 | I56: ft | J56: =IFERROR((H56/G56)^2,0) -> 0.9739813474 | K56: =AH56 -> 1085800 | L56: 2013 | M56: =K56*(B56+C56) -> 1085800 | N56: 0.6 | O56: =IF(B56<1,M56,M56*J56^N56) -> 1068760.074 | P56: =AI56/AH56 -> 1.398784307 | Q56: =O56*P56 -> 1494964.818 | R56: =Q56*VLOOKUP(COSTYEAR,INDIRECT(IX_CAP),4,FALSE)/VLOOKUP(L56,INDIRECT(IX_CAP),4,FALSE) -> 1543453.013 | S56: =O56*VLOOKUP(COSTYEAR,INDIRECT(IX_CAP),4,FALSE)/VLOOKUP(L56,INDIRECT(IX_CAP),4,FALSE) -> 1103424.599 | V56: VESSEL | W56: TRAYED TOWER | X56: 120 | Y56: 500 | Z56: 316SS | AA56: 12' Ø | AB56: 70' T-T | AC56: 14 trays | AD56: sieve | AF56: ACCE V8.4 | AH56: 1085800 | AI56: 1518800 | AJ56: q
A57: D-302 | B57: 1 | D57: Light Fraction Condenser Absorber | E57: d302dft | G57: 13 | H57: 12.7694423 | I57: ft | J57: =IFERROR((H57/G57)^2,0) -> 0.9648441222 | K57: =AH57 -> 1085300 | L57: 2013 | M57: 1085300 | N57: 0.6 | O57: 1062243.534 | P57: =AI57/AH57 -> 1.325808532 | Q57: 1408331.541 | R57: 1454009.842 | S57: 1096696.7 | V57: VESSEL | W57: TRAYED TOWER | X57: 100 | Y57: 120 | Z57: 316SS | AA57: 13' Ø | AB57: 70' T-T | AC57: 20 trays | AD57: sieve | AF57: ACCE V8.4 | AH57: 1085300 | AI57: 1438900 | AJ57: q
A58: H-313 | B58: 1 | D58: D-301 Vapor ACHE | E58: a300.a310.qa-h313 | G58: 61000000 | H58: 76518913.2 | I58: =IF(ISNUMBER(SEARCH(".W",E58)),VLOOKUP(E58,INDIRECT(LU_WORK),3),IF(ISNUMBER(SEARCH(".Q",E58)),VLOOKUP(E58,INDIRECT(LU_HEAT),3),VLOOKUP(E58,INDIRECT(LU_SENS),3))) -> BTU/HR | J58: =IFERROR(H58/G58,0) -> 1.254408413 | K58: 578900 | L58: 2013 | M58: 578900 | N58: 0.6 | O58: 663234.2179 | P58: 1.317498704 | Q58: 873810.2228 | R58: 902151.679 | S58: 684745.7807 | V58: HEAT EXCH | W58: AIR COOLED | X58: 130 | Z58: 316SS | AA58: 15,000 sq ft | AB58: 45' tubes | AC58: 3 bays x 15' | AD58: 2 fan/bay | AF58: ACCE V8.4 | AH58: 578900 | AI58: 762700 | AJ58: q
A59: H-314 | B59: 1 | D59: D-302 Feed Cooler | E59: a300.a310.qc-h314 | G59: 12067840 | H59: 11984151.5 | I59: BTU/HR | J59: 0.9930651633 | K59: 172000 | L59: 2013 | M59: 172000 | N59: 0.7 | O59: 171164.1745 | P59: 2.027906977 | Q59: 347105.0236 | R59: 358363.1453 | S59: 176715.7712 | V59: HEAT EXCH | W59: SHELL & TUBE | X59: 150 | Y59: 190 | Z59: 316SS | AA59: 5,000 sq ft | AB59: Shell 43" Ø | AC59: 20' L | AD59: 955 X 1" tubes | AF59: ACCE V8.4 | AH59: 172000 | AI59: 348800 | AJ59: q
A60: H-315 | B60: 1 | D60: D-302 Feed/overhead exchanger | E60: a300.a310.qx-h315 | G60: 4850345 | H60: 4839262.75 | I60: BTU/HR | J60: 0.9977151625 | K60: 758400 | L60: 2013 | M60: 758400 | N60: 0.7 | O60: 757186.6094 | P60: 1.520701477 | Q60: 1151454.795 | R60: 1188801.469 | S60: 781745.4558 | V60: HEAT EXCH | W60: SHELL & TUBE | X60: 110 | Z60: 316SS | AA60: 18,500 sq ft | AB60: Shell 42" Ø | AC60: 23' L | AD60: 884 X 1" tubes | AE60: 4 shells | AF60: ACCE V8.4 | AH60: 758400 | AI60: 1153300 | AJ60: q
A61: H-316 | B61: 1 | D61: D-302 Liquid feed chiller | E61: a300.a310.qch-h316 | G61: 10138754 | H61: 10281000.1 | I61: BTU/HR | J61: 1.014029939 | K61: 132400 | L61: 2013 | M61: 132400 | N61: 0.7 | O61: 133697.5748 | P61: 2.331570997 | Q61: 311725.3877 | R61: 321835.9944 | S61: 138033.9671 | V61: HEAT EXCH | W61: SHELL & TUBE | X61: 150 | Y61: 190 | Z61: 316SS | AA61: 3,650 sq ft | AB61: Shell 36" Ø | AC61: 20' L | AD61: 698 X 1" tubes | AF61: ACCE V8.4 | AH61: 132400 | AI61: 308700 | AJ61: q
A62: H-320 | B62: 1 | D62: Heavy fraction ACHE | E62: a300.a310.qa-h320 | G62: 280000 | H62: 285947.037 | I62: BTU/HR | J62: 1.021239418 | K62: 33300 | L62: 2013 | M62: 33300 | N62: 0.6 | O62: 33722.57856 | P62: 2.423423423 | Q62: 81724.08679 | R62: 84374.75345 | S62: 34816.34808 | V62: HEAT EXCH | W62: AIR COOLED | X62: 130 | Z62: 316SS | AA62: 70 sq ft | AB62: 5' tubes | AC62: 1 bays x 2' | AD62: 2 fan/bay | AF62: ACCE V8.4 | AH62: 33300 | AI62: 80700 | AJ62: q
A63: H-320A | B63: 0 | D63: Heavy fraction cooler | E63: a300.a310.qc-h320a | G63: 845500 | H63: 11984151.5 | I63: BTU/HR | J63: 14.1740408 | K63: 45300 | L63: 2013 | M63: 0 | N63: 0.7 | O63: 0 | P63: 3.227373068 | Q63: 0 | R63: 0 | S63: 0 | V63: HEAT EXCH | W63: SHELL & TUBE | X63: 2085 | Y63: 190 | Z63: SS Clad CS | AA63: 343 | AB63: 14 | AC63: 16 | AD63: 82 X 1" tubes | AF63: H-463C | AH63: 45300 | AI63: 146200 | AJ63: q
A64: H-326 | B64: 1 | C64: 1 | D64: D-302 Quench circulation chiller | E64: a300.a310.qch-h326 | G64: 13087000 | H64: 13802398.6 | I64: BTU/HR | J64: 1.054664828 | K64: 78300 | L64: 2013 | M64: 156600 | N64: 0.7 | O64: 162544.3513 | P64: 4.634738186 | Q64: 753350.5122 | R64: 777784.9374 | S64: 167816.3698 | V64: HEAT EXCH | W64: PLATE & FRAME | X64: 200 | Y64: 200 | Z64: 316SS | AA64: 7,500 sq ft | AB64: 486 plates | AF64: ACCE V8.4 | AH64: 78300 | AI64: 362900 | AJ64: q
A65: P-318 | B65: 1 | C65: 1 | D65: D-301 Bottoms pump | E65: VOLFLMX.a300.a310.318 | G65: 56 | H65: =IF(ISNUMBER(SEARCH(".W",E65)),VLOOKUP(E65,INDIRECT(LU_WORK),2),IF(ISNUMBER(SEARCH(".Q",E65)),ABS(VLOOKUP(E65,INDIRECT(LU_HEAT),2)),VLOOKUP(E65,INDIRECT(LU_SENS),2)))*7.481/60 -> 51.47073194 | I65: gpm | J65: 0.9191202132 | K65: 5800 | L65: 2013 | M65: 11600 | N65: 0.8 | O65: 10843.15942 | P65: 4.379310345 | Q65: 47485.56022 | R65: 49025.72293 | S65: 11194.85012 | V65: PUMP | W65: CENTRIFUGAL | X65: 125 | Y65: 250 | Z65: 316SS | AA65: 56 | AB65: 75 | AF65: ACCE V8.4 | AH65: 5800 | AI65: 25400 | AJ65: q
A66: P-323 | B66: 1 | C66: 1 | D66: Circulation filter charge pump | E66: a300.a310.w-p323 | G66: 41 | H66: 42.0487245 | I66: HP | J66: 1.025578646 | K66: 25400 | L66: 2013 | M66: 50800 | N66: 0.8 | O66: 51836.88407 | P66: 4.614173228 | Q66: 239184.3627 | R66: 246942.1492 | S66: 53518.1791 | V66: PUMP | W66: CENTRIFUGAL | X66: 135 | Y66: 250 | Z66: 316SS | AA66: 2655 | AB66: 69 | AF66: ACCE V8.4 | AH66: 25400 | AI66: 117200 | AJ66: q
A67: P-329 | B67: 1 | C67: 1 | D67: Aqueous filter charge pump | E67: VOLFLMX.a300.a310.329 | G67: 182 | H67: =IF(ISNUMBER(SEARCH(".W",E67)),VLOOKUP(E67,INDIRECT(LU_WORK),2),IF(ISNUMBER(SEARCH(".Q",E67)),ABS(VLOOKUP(E67,INDIRECT(LU_HEAT),2)),VLOOKUP(E67,INDIRECT(LU_SENS),2)))*7.481/60 -> 181.9341945 | I67: gpm | J67: 0.9996384311 | K67: 7500 | L67: 2013 | M67: 15000 | N67: 0.8 | O67: 14995.66102 | P67: 4.2 | Q67: 62981.77627 | R67: 65024.54849 | S67: 15482.03536 | V67: PUMP | W67: CENTRIFUGAL | X67: 125 | Y67: 250 | Z67: 316SS | AA67: 182 | AB67: 30 | AF67: ACCE V8.4 | AH67: 7500 | AI67: 31500 | AJ67: q
A68: P-331 | B68: 1 | C68: 1 | D68: Organic product pump | E68: VOLFLMX.a300.a310.331 | G68: 124 | H68: =IF(ISNUMBER(SEARCH(".W",E68)),VLOOKUP(E68,INDIRECT(LU_WORK),2),IF(ISNUMBER(SEARCH(".Q",E68)),ABS(VLOOKUP(E68,INDIRECT(LU_HEAT),2)),VLOOKUP(E68,INDIRECT(LU_SENS),2)))*7.481/60 -> 119.0620516 | I68: gpm | J68: 0.9601778353 | K68: 6500 | L68: 2013 | M68: 13000 | N68: 0.8 | O68: 12584.17339 | P68: 4.630769231 | Q68: 58274.40293 | R68: 60164.49461 | S68: 12992.33272 | V68: PUMP | W68: CENTRIFUGAL | X68: 125 | Y68: 250 | Z68: 316SS | AA68: 124 | AB68: 30 | AF68: ACCE V8.4 | AH68: 6500 | AI68: 30100 | AJ68: q
A69: P-332 | B69: 1 | C69: 1 | D69: Quench recycle pump | E69: a300.a310.w-p332 | G69: 0.53 | H69: 0.543053638 | I69: HP | J69: 1.024629506 | K69: 7800 | L69: 2013 | M69: 15600 | N69: 0.8 | O69: 15906.62654 | P69: 4.884615385 | Q69: 77697.7527 | R69: 80217.82788 | S69: 16422.54744 | V69: PUMP | W69: CENTRIFUGAL | X69: 125 | Y69: 250 | Z69: 316SS | AA69: 215 | AB69: 9 | AF69: ACCE V8.4 | AH69: 7800 | AI69: 38100 | AJ69: q
A70: S-319 | B70: 1 | C70: 1 | D70: D-301 Bottoms filter | E70: VOLFLMX.a300.a310.320 | G70: 52 | H70: =IF(ISNUMBER(SEARCH(".W",E70)),VLOOKUP(E70,INDIRECT(LU_WORK),2),IF(ISNUMBER(SEARCH(".Q",E70)),ABS(VLOOKUP(E70,INDIRECT(LU_HEAT),2)),VLOOKUP(E70,INDIRECT(LU_SENS),2)))*7.481/60 -> 47.69837148 | I70: gpm | J70: 0.9172763746 | K70: 14600 | L70: 2013 | M70: 29200 | N70: 0.8 | O70: 27251.03602 | P70: 1.842465753 | Q70: 50209.10062 | R70: 51837.59956 | S70: 28134.90534 | V70: FILTER | W70: CARTRIDGE | Z70: 316SS | AA70: 52 | AF70: ACCE V8.4 | AH70: 14600 | AI70: 26900 | AJ70: q
A71: S-322 | B71: 1 | D71: D-302 Bottoms decanter | E71: STRM.a300.a310.323 | G71: 1013050 | H71: 1028334.88 | I71: LB/HR | J71: 1.015087982 | K71: 294700 | L71: 2013 | M71: 294700 | N71: 0.7 | O71: 297805.5012 | P71: 1.821513403 | Q71: 542456.7121 | R71: 560050.9365 | S71: 307464.6255 | V71: VESSEL | W71: HORIZ LL SEP | X71: 110 | Y71: 150 | Z71: 316SS | AA71: 11 | AB71: 35 | AC71: +20% internals | AF71: ACCE V8.4 | AH71: 294700 | AI71: 536800 | AJ71: q
A72: S-324 | B72: 2 | C72: 1 | D72: Quench circulation filter | E72: VOLFLMX.a300.a310.324 | G72: 2340 | H72: =IF(ISNUMBER(SEARCH(".W",E72)),VLOOKUP(E72,INDIRECT(LU_WORK),2),IF(ISNUMBER(SEARCH(".Q",E72)),ABS(VLOOKUP(E72,INDIRECT(LU_HEAT),2)),VLOOKUP(E72,INDIRECT(LU_SENS),2)))*7.481/60 -> 2382.016719 | I72: gpm | J72: 1.017955863 | K72: 83100 | L72: 2013 | M72: 249300 | N72: 0.8 | O72: =IF(E72="",M72,M72*J72^N72) -> 252874.7328 | P72: 1.709987966 | Q72: 432412.7501 | R72: 446437.7714 | S72: 261076.5574 | V72: FILTER | W72: TUBULAR | Z72: 316SS | AA72: 2340 | AB72: 60 | AF72: ACCE V8.4 | AH72: 83100 | AI72: 142100 | AJ72: q
A73: S-329 | B73: 1 | C73: 1 | D73: Aqueous phase filter | E73: VOLFLMX.a300.a310.329 | G73: 182 | H73: =IF(ISNUMBER(SEARCH(".W",E73)),VLOOKUP(E73,INDIRECT(LU_WORK),2),IF(ISNUMBER(SEARCH(".Q",E73)),ABS(VLOOKUP(E73,INDIRECT(LU_HEAT),2)),VLOOKUP(E73,INDIRECT(LU_SENS),2)))*7.481/60 -> 181.9341945 | I73: gpm | J73: 0.9996384311 | K73: 26500 | L73: 2013 | M73: 53000 | N73: 0.8 | O73: =IF(E73="",M73,M73*J73^N73) -> 52984.66892 | P73: 1.769811321 | Q73: 93772.86689 | R73: 96814.32776 | S73: 54703.19159 | V73: FILTER | W73: TUBULAR | Z73: 316SS | AA73: 182 | AB73: 400 | AF73: ACCE V8.4 | AH73: 26500 | AI73: 46900 | AJ73: q
A74: T-328 | B74: 1 | D74: Organic product surge tank | E74: VOLFLMX.a300.a310.331 | G74: 1000 | H74: 954.915532 | I74: CUFT/HR | J74: 0.954915532 | K74: 48000 | L74: 2013 | M74: 48000 | N74: 0.7 | O74: =IF(B74<1,M74,M74*J74^N74) -> 46474.71204 | P74: 3.241666667 | Q74: 150655.5249 | R74: 155541.9371 | S74: 47982.08856 | V74: VESSEL | W74: VERTICAL PRESSURE | X74: 125 | Y74: 250 | Z74: 316SS | AA74: 4.5 | AB74: 13.5 | AF74: ACCE V8.4 | AH74: 48000 | AI74: 155600 | AJ74: q
A75: T-332 | B75: 1 | D75: D-301 Circulation surge tank | E75: VOLFLMX.a300.a310.332 | G75: 1000 | H75: 1528.51785 | I75: CUFT/HR | J75: 1.52851785 | K75: 48000 | L75: 2013 | M75: 48000 | N75: 0.7 | O75: =IF(E75="",M75,M75*J75^N75) -> 64599.71437 | P75: 3.241666667 | Q75: 209410.7407 | R75: 216202.8395 | S75: 66694.96334 | V75: VESSEL | W75: VERTICAL PRESSURE | X75: 125 | Y75: 250 | Z75: 316SS | AA75: 4.5 | AB75: 13.5 | AF75: T-328 | AH75: 48000 | AI75: 155600 | AJ75: q
A76: A310 | B76: 1 | D76: Pinch exchanger CAPEX | L76: 2008 | M76: =O76 -> 1447137.508 | O76: 1447137.508 | P76: 2.6353666 | Q76: 3813737.853 | R76: 3882006.014 | S76: 1473042.124 | AF76: ACCE V7.2 | AJ76: heat
A77: Area A310: Product Condensation and Separation ↑ | M77: =SUM(M56:M76) -> 6278037.508 | O77: =SUM(O56:O76) -> 6347847.492 | P77: =Q77/O77 -> 1.922028815 | Q77: =SUM(Q56:Q76) -> 12200745.79 | R77: =SUM(R56:R76) -> 12541041 | S77: =SUM(S56:S76) -> 6532703.393
A78: H-373 | B78: 1 | D78: Post-WGS ACHE | E78: a300.a360.a365.qa-h373 | G78: 5160000 | H78: =IF(ISNUMBER(SEARCH(".W",E78)),VLOOKUP(E78,INDIRECT(LU_WORK),2),IF(ISNUMBER(SEARCH(".Q",E78)),ABS(VLOOKUP(E78,INDIRECT(LU_HEAT),2)),VLOOKUP(E78,INDIRECT(LU_SENS),2))) -> 9365878.19 | I78: =IF(ISNUMBER(SEARCH(".W",E78)),VLOOKUP(E78,INDIRECT(LU_WORK),3),IF(ISNUMBER(SEARCH(".Q",E78)),VLOOKUP(E78,INDIRECT(LU_HEAT),3),VLOOKUP(E78,INDIRECT(LU_SENS),3))) -> BTU/HR | J78: =IFERROR(H78/G78,0) -> 1.815092672 | K78: =AH78 -> 88300 | L78: 2013 | M78: =K78*(B78+C78) -> 88300 | N78: 0.6 | O78: =IF(B78<1,M78,M78*J78^N78) -> 126269.9434 | P78: =AI78/AH78 -> 1.714609287 | Q78: =O78*P78 -> 216503.6175 | R78: =Q78*VLOOKUP(COSTYEAR,INDIRECT(IX_CAP),4,FALSE)/VLOOKUP(L78,INDIRECT(IX_CAP),4,FALSE) -> 223525.769 | S78: =O78*VLOOKUP(COSTYEAR,INDIRECT(IX_CAP),4,FALSE)/VLOOKUP(L78,INDIRECT(IX_CAP),4,FALSE) -> 130365.4254 | V78: HEAT EXCH | W78: AIR COOLED | X78: 150 | Z78: 316SS | AA78: 1252 | AB78: 24 | AC78: 1 bays x 8' | AD78: 2 fan/bay | AF78: ACCE V8.4 | AH78: 88300 | AI78: 151400 | AJ78: wgs
A79: H-374 | B79: 1 | D79: Post-WGS cooler | E79: a300.a360.a365.qc-h374 | G79: 2929000 | H79: 3638525.96 | I79: BTU/HR | J79: 1.242241707 | K79: 45600 | L79: 2013 | M79: 45600 | N79: 0.7 | O79: =IF(B79<1,M79,M79*J79^N79) -> 53077.33599 | P79: 4.048245614 | Q79: 214870.0926 | R79: 221839.2618 | S79: 54798.86425 | V79: HEAT EXCH | W79: SHELL & TUBE | X79: 150 | Y79: 140 | Z79: 316SS | AA79: 1188 | AB79: 21 | AC79: 20 | AD79: 227 X 1" tubes | AF79: ACCE V8.4 | AH79: 45600 | AI79: 184600 | AJ79: wgs
A80: K-390 | B80: 1 | D80: PSA compressor: multistage | E80: a300.a360.a385.w-k390 | G80: 3648 | H80: 3028.37963 | I80: HP | J80: 0.8301479249 | K80: 4700000 | L80: 2014 | M80: 4700000 | N80: 0.9 | O80: =IF(E80="",M80,M80*J80^N80) -> 3975006.068 | P80: 1.6 | Q80: 6360009.708 | R80: 6465991.47 | S80: 4041244.669 | V80: COMPRESSOR | W80: RECIPROCATING | Z80: SS | AA80: 2-stage reciprocating | AC80: 3648 hp | AF80: Vendor quote via HGI | AJ80: wgs
A81: M-385 | B81: 1 | D81: PSA | E81: STRM.a300.a360.a385.390 | G81: 5218 | H81: 7023.60028 | I81: LB/HR | J81: 1.346033016 | K81: 975000 | L81: 2013 | M81: 975000 | N81: 0.6 | O81: =IF(B81<1,M81,M81*J81^N81) -> 1165300.797 | P81: 1.8 | Q81: 2097541.434 | R81: 2165573.802 | S81: 1203096.557 | V81: MISC | W81: MISC | AF81: Vendor quote via HGI | AJ81: wgs
A82: P-377 | B82: 1 | C82: 1 | D82: Compressor condensate pump | E82: VOLFLMX.a300.a360.a385.377 | G82: 56 | H82: =IF(ISNUMBER(SEARCH(".W",E82)),VLOOKUP(E82,INDIRECT(LU_WORK),2),IF(ISNUMBER(SEARCH(".Q",E82)),ABS(VLOOKUP(E82,INDIRECT(LU_HEAT),2)),VLOOKUP(E82,INDIRECT(LU_SENS),2)))*7.481/60 -> 49.27913808 | I82: gpm | J82: 0.8799846085 | K82: =AH82 -> 5800 | L82: 2013 | M82: 11600 | N82: 0.8 | O82: =IF(E82="",M82,M82*J82^N82) -> 10472.20295 | P82: =AI82/AH82 -> 4.379310345 | Q82: 45861.0267 | R82: 47348.49875 | S82: 10811.86192 | V82: PUMP | W82: CENTRIFUGAL | X82: 125 | Y82: 250 | Z82: 316SS | AA82: 56 | AB82: 30 | AF82: P-318 | AH82: 5800 | AI82: 25400 | AJ82: wgs
A83: R-365 | B83: 1 | D83: High-temperature WGS | E83: STRM.a300.a360.a365.370 | G83: 354424 | H83: 82346.0906 | I83: LB/HR | J83: 0.2323377948 | K83: 1243000 | L83: 2013 | M83: 1243000 | N83: 0.6 | O83: =IF(B83<1,M83,M83*J83^N83) -> 517777.3477 | P83: 1.416572808 | Q83: 733469.3112 | R83: 757258.9028 | S83: 534571.1132 | V83: VESSEL | W83: VERTICAL PRESSURE | X83: 450 | Y83: 1000 | Z83: 316SS | AA83: 12 | AB83: 24 | AC83: +20% internals | AF83: ACCE V8.4 | AH83: 1243000 | AI83: 1760800 | AJ83: wgs | AK83: Vessel size from Spath 2002, GHSV=3000
A84: S-385 | B84: 1 | D84: PSA Compressor suction KO | E84: VOLFLMX.a300.a360.a385.376 | G84: 288000 | H84: 391609.886 | I84: CUFT/HR | J84: 1.359756549 | K84: 44900 | L84: 2013 | M84: 44900 | N84: 0.7 | O84: =IF(B84<1,M84,M84*J84^N84) -> 55676.14438 | P84: 2 | Q84: 111352.2888 | R84: 114963.9265 | S84: 57481.96327 | V84: VESSEL | W84: VERTICAL PRESSURE | X84: 135 | Y84: 150 | Z84: 316SS | AA84: 4.5 | AB84: 7.5 | AF84: ACCE V8.4 | AH84: 44900 | AI84: 140400 | AJ84: wgs
A85: S-386 | B85: 1 | D85: PSA Compr disch KO | E85: VOLFLMX.a300.a360.a385.387 | G85: 103650 | H85: 141738.492 | I85: CUFT/HR | J85: 1.367472185 | K85: 52500 | L85: 2013 | M85: 52500 | N85: 0.7 | O85: =IF(B85<1,M85,M85*J85^N85) -> 65358.52678 | P85: =AI85/AH85 -> 2.561904762 | Q85: 167442.321 | R85: 172873.2018 | S85: 67478.38734 | V85: VESSEL | W85: VERTICAL PRESSURE | X85: 280 | Y85: 160 | Z85: 316SS | AA85: 4 | AB85: 7 | AF85: ACCE V8.4 | AH85: 52500 | AI85: 134500 | AJ85: wgs
A86: T-377 | B86: 1 | D86: Compressor condensate tank | E86: VOLFLMX.a300.a360.a385.377 | G86: 1000 | H86: 395.234365 | I86: CUFT/HR | J86: 0.395234365 | K86: 48000 | L86: 2013 | M86: 48000 | N86: 0.7 | O86: =IF(B86<1,M86,M86*J86^N86) -> 25063.37352 | P86: 3.241666667 | Q86: 81247.10251 | R86: 83882.2985 | S86: 25876.28745 | V86: VESSEL | W86: VERTICAL PRESSURE | X86: 125 | Y86: 250 | Z86: 316SS | AA86: 4.5 | AB86: 13.5 | AF86: T-328 | AH86: 48000 | AI86: 155600 | AJ86: wgs
A87: A360 | B87: 1 | D87: Pinch exchanger CAPEX | L87: 2008 | M87: =O87 -> 522045 | O87: 522045 | P87: 2.6353666 | Q87: 1375779.957 | R87: 1400407.231 | S87: 531389.914 | AF87: ACCE V7.2 | AJ87: heat
A88: Area A360: Hydrogen Recycle and WGS ↑ | M88: =SUM(M78:M87) -> 7730945 | O88: =SUM(O78:O87) -> 6516046.739 | P88: =IFERROR(Q88/O88,0) -> 1.75015271 | Q88: =SUM(Q78:Q87) -> 11404076.86 | R88: =SUM(R78:R87) -> 11653664.36 | S88: =SUM(S78:S87) -> 6657115.042
A89: H-410 | B89: 1 | D89: Feed-effluent exchanger | E89: a400.a410.h-410.qx-h410 | G89: 22846147 | H89: =IF(ISNUMBER(SEARCH(".W",E89)),VLOOKUP(E89,INDIRECT(LU_WORK),2),IF(ISNUMBER(SEARCH(".Q",E89)),ABS(VLOOKUP(E89,INDIRECT(LU_HEAT),2)),VLOOKUP(E89,INDIRECT(LU_SENS),2))) -> 22872133.2 | I89: =IF(ISNUMBER(SEARCH(".W",E89)),VLOOKUP(E89,INDIRECT(LU_WORK),3),IF(ISNUMBER(SEARCH(".Q",E89)),VLOOKUP(E89,INDIRECT(LU_HEAT),3),VLOOKUP(E89,INDIRECT(LU_SENS),3))) -> BTU/HR | J89: =IFERROR(H89/G89,0) -> 1.001137443 | K89: =AH89 -> 542500 | L89: 2013 | M89: =K89*(B89+C89) -> 542500 | N89: 0.7 | O89: =IF(B89<1,M89,M89*J89^N89) -> 542931.8705 | P89: =AI89/AH89 -> 2.225806452 | Q89: =O89*P89 -> 1208461.26 | R89: =Q89*VLOOKUP(COSTYEAR,INDIRECT(IX_CAP),4,FALSE)/VLOOKUP(L89,INDIRECT(IX_CAP),4,FALSE) -> 1247656.901 | S89: =O89*VLOOKUP(COSTYEAR,INDIRECT(IX_CAP),4,FALSE)/VLOOKUP(L89,INDIRECT(IX_CAP),4,FALSE) -> 560541.5063 | V89: HEAT EXCH | W89: SHELL & TUBE | X89: 1910 | Y89: 650 | Z89: 316SS | AA89: 2636 | AB89: 32 | AC89: 23 | AD89: 504 X 1" tubes | AF89: ACCE V8.4 | AH89: 542500 | AI89: 1207500 | AJ89: htr
A90: H-411 | B90: 1 | D90: Feed furnace | E90: A400.A410.QF-H411 | G90: 2210000 | H90: 14895323 | I90: BTU/HR | J90: 6.739965158 | K90: 263800 | L90: 2013 | M90: 263800 | N90: 0.6 | O90: =IF(E90="",M90,M90*J90^N90) -> 828837.4809 | P90: 1.311220622 | Q90: 1086788.797 | R90: 1122038.072 | S90: 855720.276 | V90: HEAT EXCH | W90: BOX FURNACE | X90: 1930 | Y90: 650 | Z90: 316SS | AA90: 2.21 MMBtu/h | AC90: 208 CFM gas | AF90: ACCE V8.4 | AH90: 263800 | AI90: 345900 | AJ90: htr
A91: H-413A | B91: 1 | D91: HT product ACHE | E91: a400.a410.qa-h413 | G91: 1780000 | H91: 2065803.74 | I91: BTU/HR | J91: 1.160563899 | K91: 44800 | L91: 2013 | M91: 44800 | N91: 0.6 | O91: =IF(B91<1,M91,M91*J91^N91) -> 48986.84259 | P91: 1.933035714 | Q91: 94693.31625 | R91: 97764.63129 | S91: 50575.6984 | V91: HEAT EXCH | W91: AIR COOLED | X91: 150 | Z91: 316SS | AA91: 432 | AB91: 14 | AC91: 1 bays x 4' | AD91: 2 fan/bay | AF91: ACCE V8.4 | AH91: 44800 | AI91: 86600 | AJ91: htr
A92: H-413C | B92: 1 | D92: HT product cooler | E92: a400.a410.qc-h413 | G92: 1452000 | H92: 1695857.06 | I92: BTU/HR | J92: 1.167945634 | K92: 63900 | L92: 2013 | M92: 63900 | N92: 0.7 | O92: =IF(B92<1,M92,M92*J92^N92) -> 71235.53615 | P92: 3.200312989 | Q92: 227976.0116 | R92: 235370.2627 | S92: 73546.01361 | V92: HEAT EXCH | W92: SHELL & TUBE | X92: 2085 | Y92: 190 | Z92: 316SS | AA92: 589 | AB92: 18 | AC92: 16 | AD92: 141 X 1" tubes | AF92: ACCE V8.4 | AH92: 63900 | AI92: 204500 | AJ92: htr
A93: H-444 | B93: 1 | D93: Quench hydrogen stage 2 cooler | E93: a400.a410.qc-h444 | G93: 215000 | H93: 1695857.06 | I93: BTU/HR | J93: 7.887707256 | K93: 21500 | L93: 2013 | M93: 21500 | N93: 0.7 | O93: =IF(B93<1,M93,M93*J93^N93) -> 91264.94756 | P93: 7.102325581 | Q93: 648193.3718 | R93: 669217.0947 | S93: 94225.06573 | V93: HEAT EXCH | W93: SHELL & TUBE | X93: 1650 | Y93: 650 | Z93: 316SS | AA93: 57 | AB93: 8 | AC93: 8 | AD93: 29 X 1" tubes | AF93: ACCE V8.4 | AH93: 21500 | AI93: 152700 | AJ93: htr
A94: H-445 | B94: 1 | D94: Quench hydrogen stage 3 cooler | E94: a400.a410.qc-h445 | G94: 215000 | H94: 424672.128 | I94: BTU/HR | J94: 1.9752192 | K94: 21500 | L94: 2013 | M94: 21500 | N94: 0.7 | O94: =IF(B94<1,M94,M94*J94^N94) -> 34623.35661 | P94: 7.102325581 | Q94: 245906.3514 | R94: 253882.1611 | S94: 35746.34226 | V94: HEAT EXCH | W94: SHELL & TUBE | X94: 1650 | Y94: 650 | Z94: 316SS | AA94: 57 | AB94: 8 | AC94: 8 | AD94: 29 X 1" tubes | AF94: H-444 | AH94: 21500 | AI94: 152700 | AJ94: htr
A95: K-412 | B95: 1 | D95: Hydrogen makeup compressor | E95: a400.a410.w-k412 | G95: 1051 | H95: 1192.47056 | I95: HP | J95: 1.134605671 | K95: 1890000 | L95: 2014 | M95: 1890000 | N95: 0.64 | O95: =IF(E95="",M95,M95*J95^N95) -> 2049097.258 | P95: 1.6 | Q95: 3278555.612 | R95: 3333188.721 | S95: 2083242.95 | V95: COMPRESSOR | W95: RECIPROCATING | AA95: 1,050 hp | AB95: 4-stage recip | AF95: Vendor quote via HGI | AJ95: cmp
A96: K-442 | B96: 1 | D96: Hydrogen recycle compressor | E96: a400.a410.k-442.w-k442 | G96: 146 | H96: 0.328385698 | I96: HP | J96: 0.00224921711 | K96: 1200000 | L96: 2014 | M96: 1200000 | N96: 0.9 | O96: 4966.031691 | P96: 1.6 | Q96: 7945.650705 | R96: 8078.05523 | S96: 5048.784519 | V96: COMPRESSOR | W96: RECIPROCATING | AA96: 146 hp | AB96: single stage recip | AF96: Vendor quote via HGI | AJ96: cmp
A97: P-410 | B97: 1 | C97: 1 | D97: HT feed pump | E97: VOLFLMX.a400.a410.412 | G97: 135 | H97: =IF(ISNUMBER(SEARCH(".W",E97)),VLOOKUP(E97,INDIRECT(LU_WORK),2),IF(ISNUMBER(SEARCH(".Q",E97)),ABS(VLOOKUP(E97,INDIRECT(LU_HEAT),2)),VLOOKUP(E97,INDIRECT(LU_SENS),2)))*7.481/60 -> 118.9637587 | I97: gpm | J97: 0.8812130276 | K97: =AH97 -> 43200 | L97: 2013 | M97: 86400 | N97: 0.8 | O97: 78086.95173 | P97: =AI97/AH97 -> 3.576388889 | Q97: 279269.3065 | R97: 288327.2217 | S97: 80619.65033 | V97: PUMP | W97: DIAPHRAGM | Y97: 90 | Z97: 316SS | AA97: 135 | AB97: 5275 | AF97: ACCE V8.4 | AH97: 43200 | AI97: 154500 | AJ97: htr
A98: R-410 | B98: 0 | D98: Hydrotreater, 1000 psi | E98: STRM.a400.a410.417 | F98: 55000 | G98: =F98*B98 -> 0 | H98: 67293.3645 | I98: LB/HR | J98: 0 | K98: 3396200 | L98: 2013 | M98: 0 | N98: 1 | O98: 0 | P98: 1.501472234 | Q98: 0 | R98: 0 | S98: 0 | V98: VESSEL | W98: VERTICAL PRESSURE | X98: 1130 | Y98: 850 | Z98: CS+Inconel | AA98: 10 | AB98: 48 | AC98: +60% internals | AF98: ACCE V8.4 | AH98: 3396200 | AI98: 5099300 | AJ98: htr
A99: R-410 | B99: 1 | D99: Hydrotreater, 1500 psi | E99: STRM.a400.a410.417 | F99: 55000 | G99: =F99*B99 -> 55000 | H99: 67293.3645 | I99: LB/HR | J99: 1.223515718 | K99: 4775000 | L99: 2013 | M99: 4775000 | N99: 1 | O99: 5842287.554 | P99: 1.529612565 | Q99: 8936436.454 | R99: 9226283.855 | S99: 6031778.284 | V99: VESSEL | W99: VERTICAL PRESSURE | X99: 1640 | Y99: 850 | Z99: CS+Inconel | AA99: 10 | AB99: 48 | AC99: +60% internals | AF99: ACCE V8.4 | AH99: 4775000 | AI99: 7303900 | AJ99: htr
A100: R-410 | B100: 0 | D100: Hydrotreater, 2000 psi | E100: STRM.a400.a410.417 | F100: 55000 | G100: =F100*B100 -> 0 | H100: 67293.3645 | I100: LB/HR | J100: 0 | K100: 6045800 | L100: 2013 | M100: 0 | N100: 1 | O100: 0 | P100: 1.426080916 | Q100: 0 | R100: 0 | S100: 0 | V100: VESSEL | W100: VERTICAL PRESSURE | X100: 2070 | Y100: 850 | Z100: CS+Inconel | AA100: 10 | AB100: 48 | AC100: +60% internals | AF100: ACCE V8.4 | AH100: 6045800 | AI100: 8621800 | AJ100: htr
A101: S-410 | B101: 1 | D101: Vapor KO drum | E101: STRM.a400.a410.410 | G101: 56193 | H101: 50068.364 | I101: LB/HR | J101: 0.8910071361 | K101: 48500 | L101: 2013 | M101: 48500 | N101: 0.7 | O101: 44736.14591 | P101: 3.449484536 | Q101: 154316.6435 | R101: 159321.8017 | S101: 46187.13319 | V101: VESSEL | W101: VERTICAL PRESSURE | X101: 120 | Y101: 250 | Z101: 316SS | AA101: 4.5 | AB101: 10 | AF101: ACCE V8.4 | AH101: 48500 | AI101: 167300 | AJ101: htr
A102: S-411 | B102: 1 | D102: HP HT effluent flash: 3 phase | E102: VOLFLMX.a400.a410.422 | G102: 8028 | H102: 14417.757 | I102: CUFT/HR | J102: 1.795933857 | K102: 373800 | L102: 2013 | M102: 373800 | N102: 0.7 | O102: 563173.9182 | P102: 2.053504548 | Q102: 1156480.202 | R102: 1193989.872 | S102: 581440.0914 | V102: VESSEL | W102: HORIZ LL SEP | X102: 2025 | Y102: 160 | Z102: 316SS | AA102: 3 | AB102: 10 | AC102: +20% internals | AF102: ACCE V8.4 | AH102: 373800 | AI102: 767600 | AJ102: htr
A103: S-412 | B103: 1 | D103: LP HT effluent flash: 3 phase | E103: VOLFLMX.a400.a410.428 | G103: 9494 | H103: 5429.57559 | I103: CUFT/HR | J103: 0.5718954698 | K103: 45200 | L103: 2013 | M103: 45200 | N103: 0.7 | O103: 30567.5122 | P103: 4.988938053 | Q103: 152499.4248 | R103: 157445.6427 | S103: 31558.94923 | V103: VESSEL | W103: HORIZ LL SEP | X103: 70 | Y103: 170 | Z103: 316SS | AA103: 4 | AB103: 13 | AC103: +10% internals | AF103: ACCE V8.4 | AH103: 45200 | AI103: 225500 | AJ103: htr
A104: A410 | B104: 1 | D104: Pinch exchanger CAPEX | L104: 2008 | M104: =O104 -> 159918 | O104: 159918 | P104: 2.6353666 | Q104: 421442.5559 | R104: 428986.6267 | S104: 162780.6267 | AF104: ACCE V7.2 | AJ104: heat
A105: Area A410: Whole Oil Hydroprocessing ↑ | M105: =SUM(M90:M104) -> 8994318 | O105: =SUM(O90:O104) -> 9847781.535 | P105: =IFERROR(Q105/O105,0) -> 1.694849103 | Q105: =SUM(Q90:Q104) -> 16690503.7 | R105: =SUM(R90:R104) -> 17173894.02 | S105: =SUM(S90:S104) -> 10132469.87
A106: D-450 | B106: 1 | D106: Gasoline column | E106: STRM.a400.a450.451 | G106: 52557 | H106: =IF(ISNUMBER(SEARCH(".W",E106)),VLOOKUP(E106,INDIRECT(LU_WORK),2),IF(ISNUMBER(SEARCH(".Q",E106)),ABS(VLOOKUP(E106,INDIRECT(LU_HEAT),2)),VLOOKUP(E106,INDIRECT(LU_SENS),2))) -> 46489.5169 | I106: =IF(ISNUMBER(SEARCH(".W",E106)),VLOOKUP(E106,INDIRECT(LU_WORK),3),IF(ISNUMBER(SEARCH(".Q",E106)),VLOOKUP(E106,INDIRECT(LU_HEAT),3),VLOOKUP(E106,INDIRECT(LU_SENS),3))) -> LB/HR | J106: =IFERROR(H106/G106,0) -> 0.8845542345 | K106: =AH106 -> 491900 | L106: 2013 | M106: =K106*(B106+C106) -> 491900 | N106: 0.7 | O106: =IF(E106="",M106,M106*J106^N106) -> 451423.2765 | P106: =AI106/AH106 -> 1.689367758 | Q106: =O106*P106 -> 762619.9284 | R106: =Q106*VLOOKUP(COSTYEAR,INDIRECT(IX_CAP),4,FALSE)/VLOOKUP(L106,INDIRECT(IX_CAP),4,FALSE) -> 787355.001 | S106: =O106*VLOOKUP(COSTYEAR,INDIRECT(IX_CAP),4,FALSE)/VLOOKUP(L106,INDIRECT(IX_CAP),4,FALSE) -> 466064.8917 | V106: VESSEL | W106: TRAYED TOWER | X106: 35 | Y106: 650 | Z106: 316SS | AA106: 7.5' Ø | AB106: 64' T-T | AC106: 26 trays | AD106: sieve | AF106: ACCE V8.4 | AH106: 491900 | AI106: 831000 | AJ106: sep
A107: D-451 | B107: 1 | D107: Diesel column | E107: STRM.a400.a450.455 | G107: 23368 | H107: 38547.6582 | I107: LB/HR | J107: 1.649591672 | K107: 297900 | L107: 2013 | M107: 297900 | N107: 0.7 | O107: 422896.433 | P107: 1.906680094 | Q107: 806328.2107 | R107: 832480.9325 | S107: 436612.7989 | V107: VESSEL | W107: TRAYED TOWER | X107: 35 | Y107: 800 | Z107: 316SS | AA107: 3.5' Ø | AB107: 64' T-T | AC107: 26 trays | AD107: sieve | AF107: ACCE V8.4 | AH107: 297900 | AI107: 568000 | AJ107: sep
A108: H-450C | B108: 1 | D108: D-450 Condenser (startup) | E108: a400.a450.qcn-d450 | G108: 16444000 | H108: 7344412.35 | I108: BTU/HR | J108: 0.4466317411 | K108: 34700 | L108: 2013 | M108: 34700 | N108: 0.7 | O108: 19737.59274 | P108: 4.57925072 | Q108: 90383.38579 | R108: 93314.91108 | S108: 20377.7685 | V108: HEAT EXCH | W108: SHELL & TUBE | X108: 60 | Y108: 250 | Z108: 316SS | AA108: 821 | AB108: 18 | AC108: 20 | AD108: 157 X 1" tubes | AF108: ACCE V8.4 | AH108: 34700 | AI108: 158900 | AJ108: sep
A109: H-450R | B109: 1 | D109: D-450 Reboiler (startup) | E109: a400.a450.qrb-d450 | G109: 6951000 | H109: 4736007.84 | I109: BTU/HR | J109: 0.6813419422 | K109: 50500 | L109: 2013 | M109: 50500 | N109: 0.7 | O109: 38605.30296 | P109: 2.827722772 | Q109: 109165.0943 | R109: 112705.7919 | S109: 39857.44041 | V109: HEAT EXCH | W109: SHELL & TUBE | X109: 60 | Y109: 250 | Z109: 316SS | AA109: 980 | AB109: 30 | AC109: 25 | AD109: 94 X 1" tubes | AF109: ACCE V8.4 | AH109: 50500 | AI109: 142800 | AJ109: sep
A110: H-451C | B110: 1 | D110: D-451 Condenser (startup) | E110: a400.a450.qcn-d451 | G110: 3050000 | H110: 5265796.62 | I110: BTU/HR | J110: 1.726490695 | K110: 13200 | L110: 2013 | M110: 13200 | N110: 0.7 | O110: 19345.89831 | P110: 6.659090909 | Q110: 128826.0956 | R110: 133004.4847 | S110: 19973.36972 | V110: HEAT EXCH | W110: SHELL & TUBE | X110: 150 | Y110: 190 | Z110: 316SS | AA110: 72 | AB110: 18 | AC110: 20 | AD110: 28 X 1" tubes | AF110: ACCE V8.4 | AH110: 13200 | AI110: 87900 | AJ110: sep
A111: H-451R | B111: 1 | D111: D-451 Reboiler (startup) | E111: a400.a450.qrb-d451 | G111: 6951000 | H111: 4140908.56 | I111: BTU/HR | J111: 0.595728465 | K111: 50500 | L111: 2013 | M111: 50500 | N111: 0.7 | O111: 35141.89886 | P111: 2.827722772 | Q111: 99371.54767 | R111: 102594.598 | S111: 36281.70309 | V111: HEAT EXCH | W111: SHELL & TUBE | X111: 60 | Y111: 250 | Z111: 316SS | AA111: 980 | AB111: 30 | AC111: 25 | AD111: 94 X 1" tubes | AF111: H-450R | AH111: 50500 | AI111: 142800 | AJ111: sep
A112: H-454 | B112: 1 | D112: Gasoline product cooler | E112: a400.a450.qc-h454 | G112: 1731000 | H112: 890687.577 | I112: BTU/HR | J112: 0.5145508821 | K112: 22400 | L112: 2013 | M112: 22400 | N112: 0.7 | O112: =IF(B112<1,M112,M112*J112^N112) -> 14068.5017 | P112: 4.040178571 | Q112: 56839.25909 | R112: 58682.80283 | S112: 14524.80424 | V112: HEAT EXCH | W112: SHELL & TUBE | X112: 150 | Y112: 250 | Z112: CS | AA112: 589 | AB112: 18 | AC112: 16 | AD112: 141 X 1" tubes | AF112: ACCE V8.4 | AH112: 22400 | AI112: 90500 | AJ112: sep
A113: H-457A | B113: 1 | D113: Diesel product ACHE | E113: a400.a450.qa-h457 | G113: 170000 | H113: 0 | I113: BTU/HR | J113: 0 | K113: 29700 | L113: 2013 | M113: 29700 | N113: 0.6 | O113: 0 | P113: 2.34006734 | Q113: 0 | R113: 0 | S113: 0 | V113: HEAT EXCH | W113: AIR COOLED | X113: 150 | Z113: CS | AA113: 41 | AB113: 10 | AC113: 1 bays x 1' | AD113: 2 fan/bay | AF113: ACCE V8.4 | AH113: 29700 | AI113: 69500 | AJ113: sep
A114: H-457C | B114: 1 | D114: Diesel Product Cooler | E114: a400.a450.qc-h457 | G114: 316000 | H114: 748243.103 | I114: BTU/HR | J114: 2.367857921 | K114: 10300 | L114: 2013 | M114: 10300 | N114: 0.7 | O114: 18831.55455 | P114: 5.631067961 | Q114: 106041.7635 | R114: 109481.1579 | S114: 19442.34355 | V114: HEAT EXCH | W114: SHELL & TUBE | X114: 150 | Y114: 250 | Z114: CS | AA114: 58 | AB114: 8 | AC114: 8 | AD114: 28 X 1" tubes | AF114: ACCE V8.4 | AH114: 10300 | AI114: 58000 | AJ114: sep
A115: H-459 | B115: 1 | D115: D-450 Overhead vapor cooler | E115: a400.a450.qc-h459 | G115: 54900 | H115: 190312.198 | I115: BTU/HR | J115: 3.466524554 | K115: 7900 | L115: 2013 | M115: 7900 | N115: 0.7 | O115: 18860.49504 | P115: 6.303797468 | Q115: 118892.7409 | R115: 122748.9483 | S115: 19472.22272 | V115: HEAT EXCH | W115: SHELL & TUBE | X115: 150 | Y115: 250 | Z115: CS | AA115: 12 | AB115: 4 | AC115: 8 | AD115: 6 X 1" tubes | AF115: ACCE V8.4 | AH115: 7900 | AI115: 49800 | AJ115: sep
A116: P-450 | B116: 1 | C116: 1 | D116: D-450 Reflux pump | E116: A400.A450.D-450.QCN-D450 | G116: 7190000 | H116: 12676041.4 | I116: BTU/HR | J116: 1.76300993 | K116: 9400 | L116: 2013 | M116: 18800 | N116: 0.8 | O116: 29591.13723 | P116: 4.308510638 | Q116: 127493.7296 | R116: 131628.9043 | S116: 30550.90618 | V116: PUMP | W116: CENTRIFUGAL | X116: 35 | Y116: 250 | Z116: 316SS | AA116: 253 | AB116: 225 | AF116: ACCE V8.4 | AH116: 9400 | AI116: 40500 | AJ116: sep
A117: P-451 | B117: 1 | C117: 1 | D117: D-451 Reflux pump | E117: A400.A450.D-451.QCN-D451 | G117: 7436000 | H117: 4736007.84 | I117: BTU/HR | J117: 0.6369026143 | K117: 7400 | L117: 2013 | M117: 14800 | N117: 0.8 | O117: 10316.2092 | P117: 3.959459459 | Q117: 40846.61211 | R117: 42171.44494 | S117: 10650.80862 | V117: PUMP | W117: CENTRIFUGAL | X117: 35 | Y117: 250 | Z117: 316SS | AA117: 108 | AB117: 225 | AF117: ACCE V8.4 | AH117: 7400 | AI117: 29300 | AJ117: sep
A118: S-450 | B118: 1 | C118: 1 | D118: D-450 Overhead accumulator | E118: A400.A450.D-450.QCN-D450 | G118: 7190000 | H118: 12676041.4 | I118: BTU/HR | J118: 1.76300993 | K118: 39100 | L118: 2013 | M118: 78200 | N118: 0.7 | O118: 116301.4379 | P118: 4.007672634 | Q118: 466098.0898 | R118: 481215.6729 | S118: 120073.598 | V118: VESSEL | W118: HORIZ PRESSURE | X118: 35 | Y118: 250 | Z118: 316SS | AA118: 4.5 | AB118: 13.5 | AF118: ACCE V8.4 | AH118: 39100 | AI118: 156700 | AJ118: sep
A119: S-451 | B119: 1 | C119: 1 | D119: D-451 Overhead accumulator | E119: A400.A450.D-451.QCN-D451 | G119: 7436000 | H119: 4736007.84 | I119: BTU/HR | J119: 0.6369026143 | K119: 28600 | L119: 2013 | M119: 57200 | N119: 0.7 | O119: 41710.66855 | P119: 4.335664336 | Q119: 180843.458 | R119: 186708.9959 | S119: 43063.52647 | V119: VESSEL | W119: HORIZ PRESSURE | X119: 35 | Y119: 400 | Z119: 316SS | AA119: 3.5 | AB119: 10.5 | AF119: ACCE V8.4 | AH119: 28600 | AI119: 124000 | AJ119: sep
A120: A450 | B120: 1 | D120: Pinch exchanger CAPEX | L120: 2008 | M120: =O120 -> 482593 | O120: 482593 | P120: 2.6353666 | Q120: 1271809.474 | R120: 1294575.615 | S120: 491231.6999 | AF120: ACCE V7.2 | AJ120: heat
A121: Area A450: Oil Fractionation ↑ | M121: =SUM(M106:M120) -> 1660593 | O121: =SUM(O106:O120) -> 1719423.407 | P121: =IFERROR(Q121/O121,0) -> 2.538967059 | Q121: =SUM(Q106:Q120) -> 4365559.389 | R121: =SUM(R106:R120) -> 4488669.261 | S121: =SUM(S106:S120) -> 1768177.882
A122: H-460 | B122: 1 | D122: Feed-effluent exchanger | E122: a400.a460.h-460.qx-h460 | G122: 1395356 | H122: =IF(ISNUMBER(SEARCH(".W",E122)),VLOOKUP(E122,INDIRECT(LU_WORK),2),IF(ISNUMBER(SEARCH(".Q",E122)),ABS(VLOOKUP(E122,INDIRECT(LU_HEAT),2)),VLOOKUP(E122,INDIRECT(LU_SENS),2))) -> 1276795.17 | I122: =IF(ISNUMBER(SEARCH(".W",E122)),VLOOKUP(E122,INDIRECT(LU_WORK),3),IF(ISNUMBER(SEARCH(".Q",E122)),VLOOKUP(E122,INDIRECT(LU_HEAT),3),VLOOKUP(E122,INDIRECT(LU_SENS),3))) -> BTU/HR | J122: =IFERROR(H122/G122,0) -> 0.9150318413 | K122: =AH122 -> 134600 | L122: 2013 | M122: =K122*(B122+C122) -> 134600 | N122: 0.7 | O122: =IF(B122<1,M122,M122*J122^N122) -> 126488.3143 | P122: =AI122/AH122 -> 3.372213967 | Q122: =O122*P122 -> 426545.6601 | R122: =Q122*VLOOKUP(COSTYEAR,INDIRECT(IX_CAP),4,FALSE)/VLOOKUP(L122,INDIRECT(IX_CAP),4,FALSE) -> 440380.3863 | S122: =O122*VLOOKUP(COSTYEAR,INDIRECT(IX_CAP),4,FALSE)/VLOOKUP(L122,INDIRECT(IX_CAP),4,FALSE) -> 130590.879 | V122: HEAT EXCH | W122: SHELL & TUBE | X122: 2390 | Y122: 650 | Z122: CS | AA122: 276 | AB122: 14 | AC122: 18 | AD122: 66 X 1" tubes | AF122: ACCE V8.4 | AH122: 134600 | AI122: 453900 | AJ122: hcr
A123: H-461 | B123: 1 | D123: Feed furnace | E123: A400.A460.QF-H461 | G123: 680000 | H123: 4479453.45 | I123: BTU/HR | J123: 6.587431544 | K123: 142800 | L123: 2013 | M123: 142800 | N123: 0.6 | O123: =IF(E123="",M123,M123*J123^N123) -> 442545.4465 | P123: 1.521008403 | Q123: 673115.343 | R123: 694947.3936 | S123: 456899.1151 | V123: HEAT EXCH | W123: BOX FURNACE | X123: 2100 | Y123: 750 | Z123: 316SS | AA123: 0.68 MMBtu/h | AC123: 48 CFM gas | AF123: ACCE V8.4 | AH123: 142800 | AI123: 217200 | AJ123: hcr
A124: H-463A | B124: 1 | D124: HC product ACHE | E124: a400.a460.qa-h463 | G124: 1000000 | H124: 531997.434 | I124: BTU/HR | J124: 0.531997434 | K124: 38000 | L124: 2013 | M124: 38000 | N124: 0.6 | O124: =IF(B124<1,M124,M124*J124^N124) -> 26021.31974 | P124: 2.052631579 | Q124: 53412.18262 | R124: 55144.57141 | S124: 26865.30402 | V124: HEAT EXCH | W124: AIR COOLED | X124: 150 | Z124: CS | AA124: 243 | AB124: 10 | AC124: 1 bays x 3' | AD124: 2 fan/bay | AF124: ACCE V8.4 | AH124: 38000 | AI124: 78000 | AJ124: hcr
A125: H-463C | B125: 1 | D125: HC product Cooler | E125: a400.a460.qc-h463 | G125: 845500 | H125: 443725.244 | I125: BTU/HR | J125: 0.5248080946 | K125: 45300 | L125: 2013 | M125: 45300 | N125: 0.7 | O125: =IF(B125<1,M125,M125*J125^N125) -> 28846.86151 | P125: 3.227373068 | Q125: 93099.58393 | R125: 96119.20731 | S125: 29782.49036 | V125: HEAT EXCH | W125: SHELL & TUBE | X125: 2085 | Y125: 190 | Z125: SS Clad CS | AA125: 343 | AB125: 14 | AC125: 16 | AD125: 82 X 1" tubes | AF125: ACCE V8.4 | AH125: 45300 | AI125: 146200 | AJ125: hcr
A126: H-494 | B126: 1 | D126: Quench hydrogen stage 2 cooler | E126: a400.a460.qc-h494 | G126: 215000 | H126: 443725.244 | I126: BTU/HR | J126: 2.063838344 | K126: 21500 | L126: 2013 | M126: 21500 | N126: 0.7 | O126: =IF(B126<1,M126,M126*J126^N126) -> 35703.55277 | P126: 7.102325581 | Q126: 253578.2562 | R126: 261802.8991 | S126: 36861.57387 | V126: HEAT EXCH | W126: SHELL & TUBE | X126: 1650 | Y126: 650 | Z126: 316SS | AA126: 57 | AB126: 8 | AC126: 8 | AD126: 29 X 1" tubes | AF126: H-444 | AH126: 21500 | AI126: 152700 | AJ126: hcr
A127: H-495 | B127: 1 | D127: Quench hydrogen stage 3 cooler | E127: a400.a460.qc-h495 | G127: 215000 | H127: 114725.898 | I127: BTU/HR | J127: 0.5336088279 | K127: 21500 | L127: 2013 | M127: 21500 | N127: 0.7 | O127: =IF(B127<1,M127,M127*J127^N127) -> 13851.42848 | P127: 7.102325581 | Q127: 98377.35485 | R127: 101568.1592 | S127: 14300.6904 | V127: HEAT EXCH | W127: SHELL & TUBE | X127: 1650 | Y127: 650 | Z127: 316SS | AA127: 57 | AB127: 8 | AC127: 8 | AD127: 29 X 1" tubes | AF127: H-444 | AH127: 21500 | AI127: 152700 | AJ127: hcr
A128: K-462 | B128: 1 | D128: Hydrogen makeup compressor | E128: a400.a460.w-k462 | G128: 1051 | H128: 494.737661 | I128: HP | J128: 0.4707304101 | K128: 1890000 | L128: 2014 | M128: 1890000 | N128: 0.64 | O128: =IF(E128="",M128,M128*J128^N128) -> 1166906.47 | P128: 1.6 | Q128: 1867050.351 | R128: 1898162.456 | S128: 1186351.535 | V128: COMPRESSOR | W128: RECIPROCATING | AA128: 1,050 hp | AB128: 4-stage recip | AF128: Vendor quote via HGI | AJ128: cmp
A129: K-492 | B129: 1 | D129: Hydrogen recycle compressor | E129: a400.a460.w-k492 | G129: 146 | H129: 41.797394 | I129: HP | J129: 0.2862835205 | K129: 1200000 | L129: 2014 | M129: 1200000 | N129: 0.9 | O129: 389312.1523 | P129: 1.6 | Q129: 622899.4438 | R129: 633279.2991 | S129: 395799.5619 | V129: COMPRESSOR | W129: RECIPROCATING | AA129: 146 hp | AB129: single stage recip | AF129: Vendor quote via HGI | AJ129: cmp
A130: P-460 | B130: 1 | C130: 1 | D130: HC feed pump | E130: VOLFLMX.a400.a460.462 | G130: 135 | H130: =IF(ISNUMBER(SEARCH(".W",E130)),VLOOKUP(E130,INDIRECT(LU_WORK),2),IF(ISNUMBER(SEARCH(".Q",E130)),ABS(VLOOKUP(E130,INDIRECT(LU_HEAT),2)),VLOOKUP(E130,INDIRECT(LU_SENS),2)))*7.481/60 -> 41.91564738 | I130: gpm | J130: 0.3104862769 | K130: =AH130 -> 43200 | L130: 2013 | M130: 86400 | N130: 0.8 | O130: 33895.93906 | P130: =AI130/AH130 -> 3.576388889 | Q130: 121225.0598 | R130: 125156.9144 | S130: 34995.33141 | V130: PUMP | W130: DIAPHRAGM | Y130: 90 | Z130: 316SS | AA130: 135 | AB130: 5275 | AF130: P-410 | AH130: 43200 | AI130: 154500 | AJ130: hcr
A131: R-460 | B131: 1 | D131: Hydrocracker | E131: STRM.a400.a460.467 | F131: 24000 | G131: =F131*B131 -> 24000 | H131: 18464.5602 | I131: LB/HR | J131: 0.769356675 | K131: 2615800 | L131: 2013 | M131: 2615800 | N131: 1 | O131: 2012483.19 | P131: 1.966625889 | Q131: 3957801.543 | R131: 4086170.217 | S131: 2077756.751 | V131: VESSEL | W131: VERTICAL PRESSURE | X131: 2070 | Y131: 850 | Z131: CS+Inconel | AA131: 6.5 | AB131: 48 | AC131: +60% internals | AF131: ACCE V8.4 | AH131: 2615800 | AI131: 5144300 | AJ131: hcr
A132: S-460 | B132: 1 | D132: Vapor KO drum | E132: STRM.a400.a460.460 | G132: 56193 | H132: 13624.1689 | I132: LB/HR | J132: 0.242453133 | K132: 48500 | L132: 2013 | M132: 48500 | N132: 0.7 | O132: 17987.93042 | P132: 3.449484536 | Q132: 62049.0878 | R132: 64061.6089 | S132: 18571.35703 | V132: VESSEL | W132: VERTICAL PRESSURE | X132: 120 | Y132: 250 | Z132: 316SS | AA132: 4.5 | AB132: 10 | AF132: S-410 | AH132: 48500 | AI132: 167300 | AJ132: hcr
A133: S-461 | B133: 1 | D133: HP effluent flash: 3 phase | E133: VOLFLMX.a400.a460.472 | G133: 8257 | H133: 3020.06251 | I133: CUFT/HR | J133: 0.365757843 | K133: 223900 | L133: 2013 | M133: 223900 | N133: 0.7 | O133: 110736.2078 | P133: 2.150513622 | Q133: 238139.7234 | R133: 245863.6277 | S133: 114327.8634 | V133: VESSEL | W133: HORIZ LL SEP | X133: 2025 | Y133: 160 | Z133: 316SS | AA133: 3 | AB133: 10 | AC133: +20% internals | AF133: ACCE V8.4 | AH133: 223900 | AI133: 481500 | AJ133: hcr
A134: S-462 | B134: 1 | D134: LP effluent flash | E134: VOLFLMX.a400.a460.478 | G134: 2520 | H134: 2566.81843 | I134: CUFT/HR | J134: 1.018578742 | K134: 8100 | L134: 2013 | M134: 8100 | N134: 0.7 | O134: 8205.050239 | P134: 8.987654321 | Q134: 73744.15524 | R134: 76135.9981 | S134: 8471.175613 | V134: VESSEL | W134: HORIZ LL SEP | X134: 70 | Y134: 170 | Z134: 316SS | AA134: 1 | AB134: 7 | AF134: ACCE V8.4 | AH134: 8100 | AI134: 72800 | AJ134: hcr
A135: A460 | B135: 1 | D135: Pinch exchanger CAPEX | L135: 2008 | M135: =O135 -> 115488 | O135: 115488 | P135: 2.6353666 | Q135: 304353.2179 | R135: 309801.3203 | S135: 117555.3034 | AF135: ACCE V7.2 | AJ135: heat
A136: Area A460: Hydrocracking ↑ | M136: =SUM(M123:M135) -> 6457288 | O136: =SUM(O123:O135) -> 4401983.549 | P136: =IFERROR(Q136/O136,0) -> 1.91251176 | Q136: =SUM(Q123:Q135) -> 8418845.303 | R136: =SUM(R123:R135) -> 8648213.671 | S136: =SUM(S123:S135) -> 4518538.052
A137: H-568A | B137: 1 | D137: WGS Effluent ACHE | E137: a500.a560.a565.qa-h568 | G137: 5740000 | H137: =IF(ISNUMBER(SEARCH(".W",E137)),VLOOKUP(E137,INDIRECT(LU_WORK),2),IF(ISNUMBER(SEARCH(".Q",E137)),ABS(VLOOKUP(E137,INDIRECT(LU_HEAT),2)),VLOOKUP(E137,INDIRECT(LU_SENS),2))) -> 8328150.27 | I137: =IF(ISNUMBER(SEARCH(".W",E137)),VLOOKUP(E137,INDIRECT(LU_WORK),3),IF(ISNUMBER(SEARCH(".Q",E137)),VLOOKUP(E137,INDIRECT(LU_HEAT),3),VLOOKUP(E137,INDIRECT(LU_SENS),3))) -> BTU/HR | J137: =IFERROR(H137/G137,0) -> 1.45089726 | K137: =AH137 -> 76300 | L137: 2013 | M137: =K137*(B137+C137) -> 76300 | N137: 0.6 | O137: =IF(B137<1,M137,M137*J137^N137) -> 95390.80948 | P137: =AI137/AH137 -> 1.626474443 | Q137: =O137*P137 -> 155150.7137 | R137: =Q137*VLOOKUP(COSTYEAR,INDIRECT(IX_CAP),4,FALSE)/VLOOKUP(L137,INDIRECT(IX_CAP),4,FALSE) -> 160182.9244 | S137: =O137*VLOOKUP(COSTYEAR,INDIRECT(IX_CAP),4,FALSE)/VLOOKUP(L137,INDIRECT(IX_CAP),4,FALSE) -> 98484.74725 | V137: HEAT EXCH | W137: AIR COOLED | X137: 150 | Z137: CS | AA137: 1392 | AB137: 24 | AC137: 1 bays x 8' | AD137: 2 fan/bay | AF137: ACCE V8.4 | AH137: 76300 | AI137: 124100 | AJ137: smr
A138: H-568C | B138: 1 | D138: WGS Effluent cooler | E138: a500.a560.a565.qc-h568 | G138: 3159000 | H138: =IF(ISNUMBER(SEARCH(".W",E138)),VLOOKUP(E138,INDIRECT(LU_WORK),2),IF(ISNUMBER(SEARCH(".Q",E138)),ABS(VLOOKUP(E138,INDIRECT(LU_HEAT),2)),VLOOKUP(E138,INDIRECT(LU_SENS),2))) -> 3266011.84 | I138: =IF(ISNUMBER(SEARCH(".W",E138)),VLOOKUP(E138,INDIRECT(LU_WORK),3),IF(ISNUMBER(SEARCH(".Q",E138)),VLOOKUP(E138,INDIRECT(LU_HEAT),3),VLOOKUP(E138,INDIRECT(LU_SENS),3))) -> BTU/HR | J138: =IFERROR(H138/G138,0) -> 1.033875226 | K138: 32600 | L138: 2013 | M138: =K138*(B138+C138) -> 32600 | N138: 0.7 | O138: =IF(B138<1,M138,M138*J138^N138) -> 33369.16123 | P138: 3.595092025 | Q138: =O138*P138 -> 119965.2054 | R138: =Q138*VLOOKUP(COSTYEAR,INDIRECT(IX_CAP),4,FALSE)/VLOOKUP(L138,INDIRECT(IX_CAP),4,FALSE) -> 123856.1974 | S138: =O138*VLOOKUP(COSTYEAR,INDIRECT(IX_CAP),4,FALSE)/VLOOKUP(L138,INDIRECT(IX_CAP),4,FALSE) -> 34451.46789 | V138: HEAT EXCH | W138: SHELL & TUBE | X138: 60 | Y138: 250 | Z138: CS | AA138: 1281 | AB138: 22 | AC138: 20 | AD138: 245 X 1" tubes | AF138: ACCE V8.4 | AH138: 32600 | AI138: 117200 | AJ138: smr
A139: K-511 | B139: 1 | D139: Pyrolysis offgas compressor to reformer | E139: A500.A510.w-K511 | G139: 3648 | H139: =IF(ISNUMBER(SEARCH(".W",E139)),VLOOKUP(E139,INDIRECT(LU_WORK),2),IF(ISNUMBER(SEARCH(".Q",E139)),ABS(VLOOKUP(E139,INDIRECT(LU_HEAT),2)),VLOOKUP(E139,INDIRECT(LU_SENS),2))) -> 2915.43146 | I139: =IF(ISNUMBER(SEARCH(".W",E139)),VLOOKUP(E139,INDIRECT(LU_WORK),3),IF(ISNUMBER(SEARCH(".Q",E139)),VLOOKUP(E139,INDIRECT(LU_HEAT),3),VLOOKUP(E139,INDIRECT(LU_SENS),3))) -> HP | J139: =IFERROR(H139/G139,0) -> 0.7991862555 | K139: 4700000 | L139: 2014 | M139: =K139*(B139+C139) -> 4700000 | N139: 0.6 | O139: =IF(E139="",M139,M139*J139^N139) -> 4108531.884 | P139: 1.6 | Q139: =O139*P139 -> 6573651.015 | R139: =Q139*VLOOKUP(COSTYEAR,INDIRECT(IX_CAP),4,FALSE)/VLOOKUP(L139,INDIRECT(IX_CAP),4,FALSE) -> 6683192.847 | S139: =O139*VLOOKUP(COSTYEAR,INDIRECT(IX_CAP),4,FALSE)/VLOOKUP(L139,INDIRECT(IX_CAP),4,FALSE) -> 4176995.53 | V139: COMPRESSOR | W139: RECIPROCATING | Z139: SS | AA139: 2-stage reciprocating | AC139: 3648 hp | AF139: K-211 | AJ139: cmp
A140: K-545 | B140: 1 | D140: Reformer combustor air blower | E140: included w/ R-530 | K140: INCLUDED | V140: INCLUDED
A141: K-580 | B141: 1 | D141: PSA Compressor multistage | E141: included w/ R-530 | K141: INCLUDED | V141: INCLUDED
A142: M-575 | B142: 1 | D142: PSA | E142: included w/ R-530 | K142: INCLUDED | V142: INCLUDED
A143: P-576 | B143: 1 | D143: Compressor condensate pump | E143: VOLFLMX.a500.a560.a575.576 | G143: 50 | H143: =IF(ISNUMBER(SEARCH(".W",E143)),VLOOKUP(E143,INDIRECT(LU_WORK),2),IF(ISNUMBER(SEARCH(".Q",E143)),ABS(VLOOKUP(E143,INDIRECT(LU_HEAT),2)),VLOOKUP(E143,INDIRECT(LU_SENS),2)))*7.481/60 -> 37.30469114 | I143: gpm | J143: =IFERROR(H143/G143,0) -> 0.7460938227 | K143: =AH143 -> 5800 | L143: 2013 | M143: =K143*(B143+C143) -> 5800 | N143: 0.8 | O143: =IF(E143="",M143,M143*J143^N143) -> 4588.415614 | P143: =AI143/AH143 -> 4.379310345 | Q143: =O143*P143 -> 20094.09597 | R143: =Q143*VLOOKUP(COSTYEAR,INDIRECT(IX_CAP),4,FALSE)/VLOOKUP(L143,INDIRECT(IX_CAP),4,FALSE) -> 20745.83467 | S143: =O143*VLOOKUP(COSTYEAR,INDIRECT(IX_CAP),4,FALSE)/VLOOKUP(L143,INDIRECT(IX_CAP),4,FALSE) -> 4737.237838 | V143: PUMP | W143: CENTRIFUGAL | X143: 125 | Y143: 250 | Z143: 316SS | AA143: 56 | AB143: 30 | AF143: P-318 | AH143: 5800 | AI143: 25400 | AJ143: cmp
A144: R-530 | B144: 1 | D144: Steam reformer package (PNNL) | E144: MOLEFLMX.A500.590 | G144: 49000000 | H144: =IF(ISNUMBER(SEARCH(".W",E144)),VLOOKUP(E144,INDIRECT(LU_WORK),2),IF(ISNUMBER(SEARCH(".Q",E144)),ABS(VLOOKUP(E144,INDIRECT(LU_HEAT),2)),VLOOKUP(E144,INDIRECT(LU_SENS),2)))*379.3*24 -> 27437312.07 | I144: SCFD | J144: =IFERROR(H144/G144,0) -> 0.5599451443 | K144: 66875000 | L144: 2007 | M144: =K144*(B144+C144)/P144 -> 34830729.17 | N144: 0.65 | O144: =IF(E144="",M144,M144*J144^N144) -> 23892254.39 | P144: 1.92 | Q144: =O144*P144 -> 45873128.43 | R144: =Q144*VLOOKUP(COSTYEAR,INDIRECT(IX_CAP),4,FALSE)/VLOOKUP(L144,INDIRECT(IX_CAP),4,FALSE) -> 51137973.58 | S144: =O144*VLOOKUP(COSTYEAR,INDIRECT(IX_CAP),4,FALSE)/VLOOKUP(L144,INDIRECT(IX_CAP),4,FALSE) -> 26634361.24 | V144: MISC | W144: PACKAGE UNIT | AF144: 23053 | AJ144: smr
A145: R-565 | B145: 1 | D145: WGS reactor | E145: included w/ R-530 | K145: INCLUDED | V145: INCLUDED
A146: R-566 | B146: 1 | D146: LTS reactor | E146: STRM.a500.a560.a565.569 | G146: 354424 | H146: =IF(ISNUMBER(SEARCH(".W",E146)),VLOOKUP(E146,INDIRECT(LU_WORK),2),IF(ISNUMBER(SEARCH(".Q",E146)),ABS(VLOOKUP(E146,INDIRECT(LU_HEAT),2)),VLOOKUP(E146,INDIRECT(LU_SENS),2))) -> 102656.327 | I146: =IF(ISNUMBER(SEARCH(".W",E146)),VLOOKUP(E146,INDIRECT(LU_WORK),3),IF(ISNUMBER(SEARCH(".Q",E146)),VLOOKUP(E146,INDIRECT(LU_HEAT),3),VLOOKUP(E146,INDIRECT(LU_SENS),3))) -> LB/HR | J146: =IFERROR(H146/G146,0) -> 0.2896427076 | K146: =AH146 -> 1243000 | L146: 2013 | M146: =K146*(B146+C146) -> 1243000 | N146: 0.6 | O146: =IF(B146<1,M146,M146*J146^N146) -> 591001.6425 | P146: =AI146/AH146 -> 1.416572808 | Q146: =O146*P146 -> 837196.856 | R146: =Q146*VLOOKUP(COSTYEAR,INDIRECT(IX_CAP),4,FALSE)/VLOOKUP(L146,INDIRECT(IX_CAP),4,FALSE) -> 864350.7819 | S146: =O146*VLOOKUP(COSTYEAR,INDIRECT(IX_CAP),4,FALSE)/VLOOKUP(L146,INDIRECT(IX_CAP),4,FALSE) -> 610170.3895 | V146: VESSEL | W146: VERTICAL PRESSURE | X146: 450 | Y146: 1000 | Z146: 316SS | AA146: 12 | AB146: 24 | AC146: +20% internals | AF146: R-365 | AH146: 1243000 | AI146: 1760800 | AJ146: smr
A147: S-575 | B147: 1 | D147: Compressor suction KO drum | E147: included w/ R-530 | K147: INCLUDED | V147: INCLUDED
A148: S-586 | B148: 1 | D148: PSA Compressor discharge KO drum | E148: included w/ R-530 | K148: INCLUDED | V148: INCLUDED
A149: T-576 | B149: 1 | D149: Compressor condensate tank | E149: VOLFLMX.a500.a560.a575.576 | G149: 1000 | H149: =IF(ISNUMBER(SEARCH(".W",E149)),VLOOKUP(E149,INDIRECT(LU_WORK),2),IF(ISNUMBER(SEARCH(".Q",E149)),ABS(VLOOKUP(E149,INDIRECT(LU_HEAT),2)),VLOOKUP(E149,INDIRECT(LU_SENS),2))) -> 299.195491 | I149: =IF(ISNUMBER(SEARCH(".W",E149)),VLOOKUP(E149,INDIRECT(LU_WORK),3),IF(ISNUMBER(SEARCH(".Q",E149)),VLOOKUP(E149,INDIRECT(LU_HEAT),3),VLOOKUP(E149,INDIRECT(LU_SENS),3))) -> CUFT/HR | J149: =IFERROR(H149/G149,0) -> 0.299195491 | K149: =AH149 -> 48000 | L149: 2013 | M149: =K149*(B149+C149) -> 48000 | N149: 0.7 | O149: =IF(B149<1,M149,M149*J149^N149) -> 20625.7509 | P149: =AI149/AH149 -> 3.241666667 | Q149: =O149*P149 -> 66861.80916 | R149: =Q149*VLOOKUP(COSTYEAR,INDIRECT(IX_CAP),4,FALSE)/VLOOKUP(L149,INDIRECT(IX_CAP),4,FALSE) -> 69030.42768 | S149: =O149*VLOOKUP(COSTYEAR,INDIRECT(IX_CAP),4,FALSE)/VLOOKUP(L149,INDIRECT(IX_CAP),4,FALSE) -> 21294.73347 | V149: VESSEL | W149: VERTICAL PRESSURE | X149: 125 | Y149: 250 | Z149: 316SS | AA149: 4.5 | AB149: 13.5 | AF149: T-328 | AH149: 48000 | AI149: 155600 | AJ149: cmp
A150: A500 | D150: Pinch exchanger CAPEX | L150: 2008 | M150: =O150 -> 2868877 | O150: 2868877 | P150: 2.6353666 | Q150: =O150*P150 -> 7560542.625 | R150: =Q150*VLOOKUP(COSTYEAR,INDIRECT(IX_CAP),4,FALSE)/VLOOKUP(L150,INDIRECT(IX_CAP),4,FALSE) -> 7695880.806 | S150: =O150*VLOOKUP(COSTYEAR,INDIRECT(IX_CAP),4,FALSE)/VLOOKUP(L150,INDIRECT(IX_CAP),4,FALSE) -> 2920231.594 | AF150: ACCE V7.2 | AJ150: heat
A151: Area A500: Hydrogen Plant ↑ | M151: =SUM(M137:M150) -> 43805306.17 | O151: =SUM(O137:O150) -> 31614639.05 | P151: =Q151/O151 -> 1.936020546 | Q151: =SUM(Q137:Q150) -> 61206590.75 | R151: =SUM(R137:R150) -> 66755213.4 | S151: =SUM(S137:S150) -> 34500726.94
A152: H-601 | B152: 1 | D152: Steam turbine condenser | E152: A600.A600ST.QAH601 | G152: 1 | H152: =IF(ISNUMBER(SEARCH(".W",E152)),VLOOKUP(E152,INDIRECT(LU_WORK),2),IF(ISNUMBER(SEARCH(".Q",E152)),ABS(VLOOKUP(E152,INDIRECT(LU_HEAT),2)/58250000),VLOOKUP(E152,INDIRECT(LU_SENS),2))) -> 5.620211554 | I152: =IF(ISNUMBER(SEARCH(".W",E152)),VLOOKUP(E152,INDIRECT(LU_WORK),3),IF(ISNUMBER(SEARCH(".Q",E152)),VLOOKUP(E152,INDIRECT(LU_HEAT),3),VLOOKUP(E152,INDIRECT(LU_SENS),3))) -> BTU/HR | J152: =IFERROR(H152/G152,0) -> 5.620211554 | K152: 1300000 | L152: 2010 | M152: =K152*(B152+C152) -> 1300000 | N152: 1 | O152: =IF(E152="",M152,M152*J152^N152) -> 7306275.02 | P152: 1.4 | Q152: =O152*P152 -> 10228785.03 | R152: =Q152*VLOOKUP(COSTYEAR,INDIRECT(IX_CAP),4,FALSE)/VLOOKUP(L152,INDIRECT(IX_CAP),4,FALSE) -> 10876905.21 | S152: =O152*VLOOKUP(COSTYEAR,INDIRECT(IX_CAP),4,FALSE)/VLOOKUP(L152,INDIRECT(IX_CAP),4,FALSE) -> 7769218.008 | V152: HEAT EXCH | W152: AIR COOLED | AA152: 58.25 MMBtu/h per module | AF152: SPX Cooling | AJ152: pwr
A153: H-603 | B153: 1 | D153: Blowdown cooler | E153: A600.QCH603 | G153: 381670.51 | H153: =IF(ISNUMBER(SEARCH(".W",E153)),VLOOKUP(E153,INDIRECT(LU_WORK),2),IF(ISNUMBER(SEARCH(".Q",E153)),ABS(VLOOKUP(E153,INDIRECT(LU_HEAT),2)),VLOOKUP(E153,INDIRECT(LU_SENS),2))) -> 386076.865 | I153: BTU/HR | J153: 1.011544919 | K153: 16780 | L153: 2007 | M153: 16780 | N153: 0.65 | O153: 16905.66734 | P153: 4.320619785 | Q153: =O153*P153 -> 73042.96078 | R153: 81426.07942 | S153: 18845.92569 | V153: HEAT EXCH | W153: Shell and tube | X153: 50 | Z153: CS | AA153: 0.4 MMBtu/Hr; LMTD = 15 F; U = 100 Btu/hr-ft^2-F; Area = 265 Ft^2; U-Tube | AF153: 51400 Icarus 2006.5 | AJ153: pwr
A154: M-601 | B154: 1 | D154: BFW EDI+polishing | E154: STRM.A600.A600BF.629 | G154: 300000 | H154: 323848.105 | I154: LB/HR | J154: 1.079493683 | K154: 1325000 | L154: 2010 | M154: 1325000 | N154: 0.6 | O154: 1387228.305 | P154: 2 | Q154: =O154*P154 -> 2774456.61 | R154: 2950252.789 | S154: 1475126.395 | V154: MISC | W154: PACKAGE UNIT | AA154: Quote from 51400 (RO+EDI+polish) with RO removed | AF154: 51400 Siemens | AJ154: pwr
A155: M-602A | B155: 1 | D155: Steam turbine generator Stage 1 | E155: WTURB1 | G155: -40418.40578 | H155: -15790.541 | I155: hp | J155: 0.3906769873 | K155: 7700000 | L155: 2010 | M155: 7700000 | N155: 0.7 | O155: 3988073.981 | P155: 1.8 | Q155: =O155*P155 -> 7178533.166 | R155: 7633382.127 | S155: 4240767.848 | V155: GENERATOR | W155: STEAM-TURBINE | Z155: CS | AA155: Vendor quotation for 30.14 MW system. Excludes steam turbine condenser. | AF155: Shin Nippon | AJ155: pwr
A156: M-602B | B156: 1 | D156: Steam turbine generator Stage 2 | E156: WTURB2 | G156: -40418.40578 | H156: -43563.7407 | I156: hp | J156: 1.077819371 | K156: 7700000 | L156: 2010 | M156: 7700000 | N156: 0.7 | O156: 8114708.33 | P156: 1.8 | Q156: 14606474.99 | R156: 15531976.04 | S156: 8628875.579 | V156: GENERATOR | W156: STEAM-TURBINE | Z156: CS | AA156: Vendor quotation for 30.14 MW system. Excludes steam turbine condenser. | AF156: Shin Nippon | AJ156: pwr
A157: M-603 | B157: 1 | D157: Startup boiler | E157: STRM.A200.200 | G157: 204131 | H157: 204131.481 | I157: LB/HR | J157: 1.000002356 | K157: 275500 | L157: 2013 | M157: 275500 | N157: 0.6 | O157: 275500.3895 | P157: 1.693350272 | Q157: 466518.6596 | R157: 481649.8835 | S157: 284436.0623 | V157: MISC | W157: PACKAGE UNIT | Z157: CS | AA157: 40,000 lb/h (half of A800 steam at 2,000 TPD) | AF157: ACCE V8.4 | AH157: 275500 | AI157: 466518 | AJ157: pwr
A158: P-601 | B158: 1 | C158: 1 | D158: Makeup pump | E158: STRM.A600.A600WTR.618 | G158: 80410.6434 | H158: 6474.74047 | I158: LB/HR | J158: 0.08052093848 | K158: 6528 | L158: 2007 | M158: 13056 | N158: 0.3 | O158: 6131.726705 | P158: 4.718137255 | Q158: 28930.3282 | R158: 32250.65327 | S158: 6835.463135 | V158: PUMP | W158: CENTRIFUGAL | Z158: CS | AA158: 160 | AB158: 35 | AF158: 51400 Icarus 2006.5 | AJ158: pwr
A159: P-602 | B159: 1 | C159: 1 | D159: Condensate pump | E159: STRM.A600.633 | G159: 247009.591 | H159: 323848.105 | I159: LB/HR | J159: 1.311075022 | K159: 9810 | L159: 2007 | M159: 19620 | N159: 0.3 | O159: 21280.76648 | P159: 4.607543323 | Q159: 98052.05351 | R159: 109305.4582 | S159: 23723.15365 | V159: PUMP | W159: CENTRIFUGAL | Z159: CS | AA159: 500 | AB159: 60 | AF159: 51400 Icarus 2006.5 | AJ159: pwr
A160: P-603 | B160: 1 | C160: 1 | D160: EDI pump | E160: STRM.A600.633 | G160: 247009.591 | H160: 323848.105 | I160: LB/HR | J160: 1.311075022 | K160: 9810 | L160: 2007 | M160: 19620 | N160: 0.3 | O160: 21280.76648 | P160: 4.607543323 | Q160: 98052.05351 | R160: 109305.4582 | S160: 23723.15365 | V160: PUMP | W160: CENTRIFUGAL | Z160: CS | AA160: 500 | AB160: 60 | AF160: 51400 Icarus 2006.5 | AJ160: pwr
A161: P-604 | B161: 1 | C161: 1 | D161: Boiler feed water pump | E161: STRM.A600.633 | G161: 494622.066 | H161: 323848.105 | I161: LB/HR | J161: 0.6547384908 | K161: 304578 | L161: 2007 | M161: 609156 | N161: 0.3 | O161: 536474.2585 | P161: 1.352691265 | Q161: 725684.0431 | R161: 808970.5825 | S161: 598045.2478 | V161: PUMP | W161: POS-DISPLACEMENT | Z161: CS | AA161: 1050 | AB161: 3340 | AF161: 51400 Icarus 2006.5 | AJ161: pwr
A162: P-605 | B162: 1 | C162: 1 | D162: Condensate collection pump | E162: STRM.A600.633 | G162: 247009.591 | H162: 323848.105 | I162: LB/HR | J162: 1.311075022 | K162: 9810 | L162: 2007 | M162: 19620 | N162: 0.3 | O162: 21280.76648 | P162: 4.607543323 | Q162: 98052.05351 | R162: 109305.4582 | S162: 23723.15365 | V162: PUMP | W162: CENTRIFUGAL | Z162: CS | AA162: 500 | AB162: 60 | AF162: P-603 | AJ162: pwr
A163: S-601 | B163: 1 | D163: Blowdown flash drum | E163: STRM.A600.604 | G163: 9892.42978 | H163: 6477.00742 | I163: LB/HR | J163: 0.6547438358 | K163: 47205 | L163: 2007 | M163: 47205 | N163: 0.65 | O163: 35845.48195 | P163: 3.41489249 | Q163: 122408.4671 | R163: 136457.2501 | S163: 39959.45713 | V163: VESSEL | W163: VERTICAL PRESSURE | X163: 1500 | Z163: CS | AA163: Liquid 30 gpm; 10 Minute Residence Time; Vessel Volume = 900 gal | AF163: 51400 Icarus 2006.5 | AJ163: pwr
A164: T-601 | B164: 1 | D164: Condensate collection tank | E164: STRM.A600.A600BF.627 | G164: 500400 | H164: 323848.105 | I164: LB/HR | J164: 0.6471784672 | K164: 28505 | L164: 2007 | M164: 28505 | N164: 0.65 | O164: 21482.59217 | P164: 6.830380635 | Q164: 146734.2815 | R164: 163574.9309 | S164: 23948.14281 | V164: VESSEL | W164: VERTICAL PRESSURE | Z164: CS | AA164: Liquid 1,000 gpm; 5 minute Residence Time; Liquid Volume = 5,000 gal | AF164: 51400 Icarus 2006.5 | AJ164: pwr
A165: T-602 | B165: 1 | D165: Condensate surge tank | E165: STRM.A600.A600BF.627 | G165: 500400 | H165: 323848.105 | I165: LB/HR | J165: 0.6471784672 | K165: 27704 | L165: 2007 | M165: 27704 | N165: 0.65 | O165: 20878.92417 | P165: 6.511695062 | Q165: 135957.1874 | R165: 151560.9529 | S165: 23275.19202 | V165: TANK | W165: HORIZONTAL-VESSEL | Z165: CS | AA165: Liquid 1,000 gpm; 5 minute Residence Time; Liquid Volume = 5,000 gal | AF165: 51400 Icarus 2006.5 | AJ165: pwr
A166: T-603 | B166: 1 | D166: Deaerator | E166: STRM.A600.633 | G166: 494618.604 | H166: 323848.105 | I166: LB/HR | J166: 0.6547430735 | K166: 53299 | L166: 2007 | M166: 53299 | N166: 0.65 | O166: 40472.97736 | P166: 5.067637292 | Q166: 205102.3694 | R166: 228641.9066 | S166: 45118.04881 | V166: TANK | W166: HORIZONTAL-VESSEL | X166: 50 | Z166: CS | AA166: Liquid 1,050 gpm; 10 Minute Residence Time; Vessel Volume = 21,000 gal | AF166: 51400 Icarus 2006.5 | AJ166: pwr
A167: T-603A | B167: 1 | D167: Deaerator packed column | E167: STRM.A600.633 | G167: 494618.604 | H167: 323848.105 | I167: LB/HR | J167: 0.6547430735 | K167: 18405 | L167: 2007 | M167: 18405 | N167: 0.65 | O167: 13975.96856 | P167: 5.177940777 | Q167: 72366.73752 | R167: 80672.24622 | S167: 15579.98627 | V167: COLUMN | W167: PACKED COLUMN | Z167: CS | AA167: Inside Diameter = 2 ft; Height = 10 ft; Packing Height = 8 ft | AF167: 51400 Icarus 2006.5 | AJ167: pwr
A168: T-605 | B168: 1 | D168: Steam drum | E168: STRM.A600.644 | G168: 494622.066 | H168: 323850.371 | I168: LB/HR | J168: 0.6547430721 | K168: 104100 | L168: 2007 | M168: 104100 | N168: 0.65 | O168: 79049.08043 | P168: 2.277617675 | Q168: 180043.5828 | R168: 200707.1306 | S168: 88121.51961 | V168: TANK | W168: HORIZONTAL-VESSEL | Z168: CS | AA168: Horizontal Drum; < 100% of Critical Velocity; Diameter = 5' T-T Length = 20' | AF168: 51400 Icarus 2006.5 | AJ168: pwr
A169: T-606 | B169: 1 | D169: Steam turbine condensate tank | E169: STRM.A600.A600BF.627 | G169: 500400 | H169: 323848.105 | I169: LB/HR | J169: 0.6471784672 | K169: 28505 | L169: 2007 | M169: 28505 | N169: 0.65 | O169: 21482.59217 | P169: 6.830380635 | Q169: 146734.2815 | R169: 163574.9309 | S169: 23948.14281 | V169: VESSEL | W169: VERTICAL PRESSURE | Z169: CS | AA169: Liquid 1,000 gpm; 5 minute Residence Time; Liquid Volume = 5,000 gal | AF169: T-601 | AJ169: pwr
A170: A600 | D170: Pinch exchanger CAPEX | L170: 2008 | M170: =O170 -> 2727447 | O170: 2727447 | P170: 2.6353666 | Q170: 7187822.727 | R170: 7316489.001 | S170: 2776269.913 | AF170: ACCE V7.2 | AJ170: heat
A171: Area A600: Steam System & Power Generation ↑ | M171: =SUM(M152:M170) -> 22033522 | O171: =SUM(O152:O170) -> 24655774.59 | P171: =Q171/O171 -> 1.807842273 | Q171: =SUM(Q152:Q170) -> 44573751.58 | R171: =SUM(R152:R170) -> 47166408.09 | S171: =SUM(S152:S170) -> 26129540.39
A172: K-701 | B172: 2 | C172: 1 | D172: Plant air compressor | E172: STRM.A100.101 | G172: 262454.2857 | H172: =IF(ISNUMBER(SEARCH(".W",E172)),VLOOKUP(E172,INDIRECT(LU_WORK),2),IF(ISNUMBER(SEARCH(".Q",E172)),ABS(VLOOKUP(E172,INDIRECT(LU_HEAT),2)),VLOOKUP(E172,INDIRECT(LU_SENS),2))) -> 204131.481 | I172: =IF(ISNUMBER(SEARCH(".W",E172)),VLOOKUP(E172,INDIRECT(LU_WORK),3),IF(ISNUMBER(SEARCH(".Q",E172)),VLOOKUP(E172,INDIRECT(LU_HEAT),3),VLOOKUP(E172,INDIRECT(LU_SENS),3))) -> LB/HR | J172: =IFERROR(H172/G172,0) -> 0.7777791871 | K172: 87922 | L172: 2007 | M172: =K172*(B172+C172) -> 263766 | N172: 0.3 | O172: =IF(E172="",M172,M172*J172^N172) -> 244610.8454 | P172: 1.568435659 | Q172: =O172*P172 -> 383656.3725 | R172: =Q172*VLOOKUP(COSTYEAR,INDIRECT(IX_CAP),4,FALSE)/VLOOKUP(L172,INDIRECT(IX_CAP),4,FALSE) -> 427688.499 | S172: =O172*VLOOKUP(COSTYEAR,INDIRECT(IX_CAP),4,FALSE)/VLOOKUP(L172,INDIRECT(IX_CAP),4,FALSE) -> 272684.7586 | V172: COMPRESSOR | W172: RECIPROCATING | Z172: CS | AA172: Flow Rate = 450 CFM; Outlet Pressure = 125 PSIG | AF172: 51400 Icarus 2006.5
A173: M-701 | B173: 1 | D173: Cooling tower system | E173: STRM.A700.715 | G173: 7506000 | H173: 2655195.24 | I173: LB/HR | J173: 0.3537430376 | K173: 260852 | L173: 2010 | M173: 260852 | N173: 0.78 | O173: =IF(E173="",M173,M173*J173^N173) -> 115976.6963 | P173: 2.47 | Q173: 286462.44 | R173: 304613.3825 | S173: 123325.2561 | V173: COOLNG TWR | W173: INDUCED-DRAFT | Z173: FIBERGLASS | AA173: 15,000 gpm, 110 °F Cooling Tower Inlet Temperature | AF173: Cooling Tower Depot
A174: M-702 | B174: 1 | D174: Hydraulic truck dump with scale | E174: STRM.A100.101 | G174: 367437 | H174: 204131.481 | I174: LB/HR | J174: 0.5555550503 | K174: 80000 | L174: 1998 | M174: 80000 | N174: 0.6 | O174: =IF(E174="",M174,M174*J174^N174) -> 56224.5835 | P174: 2.47 | Q174: 138874.7212 | R174: 208829.0738 | S174: 84546.18371 | V174: SCALE | W174: TRUCK-SCALE | Z174: CS | AA174: Hydraulic Truck Dumper with Scale | AF174: Vendor Quotation
A175: M-703 | B175: 1 | D175: Flue gas scrubber | E175: STRM.A100.112 | G175: 489600 | H175: 777919.861 | I175: LB/HR | J175: 1.588888605 | K175: 436250 | L175: 2010 | M175: 436250 | N175: 0.65 | O175: =IF(E175="",M175,M175*J175^N175) -> 589448.9287 | P175: 2.47 | Q175: 1455938.854 | R175: 1548190.608 | S175: 626797.8169 | V175: MISC | W175: VERTICAL-VESSEL | Z175: SS304 | AA175: Scrubber costs from TurboSonic. Quotation basis = $160,000/ACFM | AF175: TurboSonic
A176: M-704 | B176: 1 | D176: Flue gas stack | E176: STRM.A100.112 | G176: 939119.015 | H176: 777919.861 | I176: LB/HR | J176: 0.8283506654 | K176: 169187 | L176: 2007 | M176: 169187 | N176: 0.65 | O176: =IF(E176="",M176,M176*J176^N176) -> 149694.6352 | P176: 1.29915419 | Q176: 194476.4126 | R176: 216796.412 | S176: 166875.0434 | V176: MISC | W176: MISC | Z176: CS | AA176: Base Diameter = 72 inches; Stack Height = 200 ft | AF176: 51400 Icarus 2006.5
A177: M-708 | B177: 1 | D177: Chilled water system | E177: sum of H-316 and H-326 | G177: 28200000 | H177: 23226799.9 | I177: BTU/HR | J177: 0.8236453865 | K177: 637500 | L177: 2011 | M177: 637500 | N177: 0.6 | O177: =IF(B177<1,M177,M177*J177^N177) -> 567445.7547 | P177: 1.8 | Q177: 1021402.358 | R177: 1021402.358 | S177: 567445.7547 | V177: CHILLER | W177: CENTRIFUGAL | Z177: CS | AA177: 2,350 Ton | AF177: Trane
A178: M-710 | B178: 1 | D178: Product loading rack | G178: 1 | H178: 1 | J178: =IF(E178<>"",H178/G178,"") ->  | K178: 25000 | L178: 2011 | M178: 25000 | N178: 1 | O178: =IF(E178="",M178,M178*J178^N178) -> 25000 | P178: 2.47 | Q178: 61750 | R178: 61750 | S178: 25000 | V178: MISC | W178: MISC | AF178: Estimate
A179: P-701 | B179: 1 | C179: 1 | D179: Cooling water pump | E179: STRM.A700.715 | G179: 7001377.25 | H179: 2655195.24 | I179: LB/HR | J179: =IFERROR(H179/G179,0) -> 0.3792389904 | K179: 239375 | L179: 2007 | M179: 478750 | N179: 0.3 | O179: 357917.2925 | P179: 2.140156658 | Q179: 765999.0766 | R179: 853912.5602 | S179: 398995.3525 | V179: PUMP | W179: CENTRIFUGAL | Z179: CS | AA179: 18620 | AB179: 185 | AF179: 51400 Icarus 2006.5
A180: P-702 | B180: 1 | C180: 1 | D180: Firewater pump | E180: STRM.A100.101 | G180: 262454.2857 | H180: 204131.481 | I180: LB/HR | J180: =IFERROR(H180/G180,0) -> 0.7777791871 | K180: 23043 | L180: 2007 | M180: 46086 | N180: 0.3 | O180: 42739.15296 | P180: 3.69743523 | Q180: 158025.2499 | R180: 176161.7603 | S180: 47644.3127 | V180: PUMP | W180: CENTRIFUGAL | Z180: CS | AA180: 2500 | AB180: 120 | AF180: 51400 Icarus 2006.5
A181: P-703 | B181: 1 | C181: 1 | D181: Diesel pump | E181: STRM.A100.101 | G181: 262454.2857 | H181: 204131.481 | I181: LB/HR | J181: =IFERROR(H181/G181,0) -> 0.7777791871 | K181: 3842 | L181: 2007 | M181: 7684 | N181: 0.3 | O181: 7125.974295 | P181: 5.387818844 | Q181: 38393.45859 | R181: 42799.86429 | S181: 7943.820222 | V181: PUMP | W181: CENTRIFUGAL | Z181: CS | AA181: 5 | AB181: 150 | AF181: 51400 Icarus 2006.5
A182: P-704 | B182: 1 | C182: 1 | D182: Ammonia pump | E182: STRM.A100.101 | G182: 262454.2857 | H182: 204131.481 | I182: LB/HR | J182: =IFERROR(H182/G182,0) -> 0.7777791871 | K182: 3842 | L182: 2007 | M182: 7684 | N182: 0.3 | O182: 7125.974295 | P182: 5.205622072 | Q182: 37095.12908 | R182: 41352.52588 | S182: 7943.820222 | V182: PUMP | W182: CENTRIFUGAL | Z182: CS | AA182: 1 | AB182: 150 | AF182: 51400 Icarus 2006.5
A183: P-705 | B183: 1 | C183: 1 | D183: Caustic pump | G183: 0.5 | H183: 1 | J183: =IF(E183<>"",H183/G183,"") ->  | K183: 4906 | L183: 2007 | M183: 9812 | N183: 0.3 | O183: 9812 | P183: 4.300856095 | Q183: 42200 | R183: 47043.28131 | S183: 10938.12029 | V183: PUMP | W183: CENTRIFUGAL | Z183: CS | AA183: 0.5 | AB183: 10 | AF183: 51400 Icarus 2006.5
A184: P-707 | B184: 1 | C184: 1 | D184: BFW chemical pump | E184: STRM.A100.101 | G184: 262454.2857 | H184: 204131.481 | I184: LB/HR | J184: =IFERROR(H184/G184,0) -> 0.7777791871 | K184: 3842 | L184: 2007 | M184: 7684 | N184: 0.3 | O184: 7125.974295 | P184: 5.205622072 | Q184: 37095.12908 | R184: 41352.52588 | S184: 7943.820222 | V184: PUMP | W184: CENTRIFUGAL | Z184: CS | AA184: 1 | AB184: 150 | AF184: 51400 Icarus 2006.5
A185: P-708 | B185: 1 | C185: 1 | D185: Flue gas scrubber circulation pump | E185: STRM.A100.112 | G185: 489600 | H185: 777919.861 | I185: LB/HR | J185: 1.588888605 | K185: 12510 | L185: 2007 | M185: 25020 | N185: 0.3 | O185: 28748.50999 | P185: 4.116706635 | Q185: 118349.1818 | R185: 131932.0818 | S185: 32047.96783 | V185: PUMP | W185: CENTRIFUGAL | Z185: CS | AA185: 1010 | AB185: 60 | AF185: 51400 Icarus 2006.5
A186: P-790 | B186: 1 | C186: 1 | D186: Gasoline product pump | E186: VOLFLMX.453 | G186: 108 | H186: =IF(ISNUMBER(SEARCH(".W",E186)),VLOOKUP(E186,INDIRECT(LU_WORK),2),IF(ISNUMBER(SEARCH(".Q",E186)),ABS(VLOOKUP(E186,INDIRECT(LU_HEAT),2)),VLOOKUP(E186,INDIRECT(LU_SENS),2)))*7.481/60 -> 53.21447611 | I186: gpm | J186: 0.4927266306 | K186: 7400 | L186: 2013 | M186: 14800 | N186: 0.8 | O186: =IF(B186<1,M186,M186*J186^N186) -> 8401.30098 | P186: 3.959459459 | Q186: 33264.61064 | R186: 34343.52626 | S186: 8673.791616 | V186: PUMP | W186: CENTRIFUGAL | X186: 35 | Y186: 250 | Z186: 316SS | AA186: 108 | AB186: 225 | AF186: P-450 | AH186: 7400 | AI186: 29300
A187: P-792 | B187: 1 | C187: 1 | D187: Diesel product pump | E187: VOLFLMX.456 | G187: 108 | H187: =IF(ISNUMBER(SEARCH(".W",E187)),VLOOKUP(E187,INDIRECT(LU_WORK),2),IF(ISNUMBER(SEARCH(".Q",E187)),ABS(VLOOKUP(E187,INDIRECT(LU_HEAT),2)),VLOOKUP(E187,INDIRECT(LU_SENS),2)))*7.481/60 -> 70.11613695 | I187: gpm | J187: 0.6492234902 | K187: 7400 | L187: 2013 | M187: 14800 | N187: 0.8 | O187: =IF(B187<1,M187,M187*J187^N187) -> 10475.5563 | P187: 3.959459459 | Q187: 41477.5405 | R187: 42822.83708 | S187: 10815.32404 | V187: PUMP | W187: CENTRIFUGAL | X187: 35 | Y187: 250 | Z187: 316SS | AA187: 108 | AB187: 225 | AF187: P-450 | AH187: 7400 | AI187: 29300
A188: S-701 | B188: 1 | C188: 1 | D188: Instrument air dryer | E188: STRM.A100.101 | G188: 262454.2857 | H188: 204131.481 | I188: LB/HR | J188: 0.7777791871 | K188: 8349 | L188: 2002 | M188: 16698 | N188: 0.6 | O188: =IF(E188="",M188,M188*J188^N188) -> 14360.78721 | P188: 2.47 | Q188: 35471.14442 | R188: 52516.30254 | S188: 21261.66095 | V188: DRYER | W188: PACKAGE UNIT | Z188: CS | AA188: 400 SCFM | AB188: Dewpt -40F | AF188: Richardson (51400)
A189: T-701 | B189: 1 | D189: Plant air receiver | E189: STRM.A100.101 | G189: 262454.2857 | H189: 204131.481 | I189: LB/HR | J189: 0.7777791871 | K189: 21005 | L189: 2007 | M189: 21005 | N189: 0.65 | O189: 17839.36093 | P189: 5.441561533 | Q189: 97073.98019 | R189: 108215.1317 | S189: 19886.77902 | V189: TANK | W189: VERTICAL-VESSEL | X189: 200 | Z189: CS | AA189: 1000 gal | AF189: 51400 Icarus 2006.5
A190: T-702 | B190: 1 | D190: Firewater storage tank | E190: STRM.A100.101 | G190: 262454.2857 | H190: 204131.481 | I190: LB/HR | J190: 0.7777791871 | K190: 229900 | L190: 2007 | M190: 229900 | N190: 0.65 | O190: 195252.0389 | P190: 1.461939974 | Q190: 285446.7607 | R190: 318207.3995 | S190: 217661.0567 | V190: TANK | W190: FLAT-BTM-STORAGE | X190: 0.5 | Z190: CS | AA190: 600,000 gal | AB190: flat roof | AF190: 51400 Icarus 2006.5
A191: T-703 | B191: 1 | D191: Purchased diesel storage tank | E191: STRM.A100.101 | G191: 262454.2857 | H191: 204131.481 | I191: LB/HR | J191: 0.7777791871 | K191: 104674 | L191: 2007 | M191: 104674 | N191: 0.65 | O191: 88898.70344 | P191: 1.346084032 | Q191: 119665.1252 | R191: 133399.0556 | S191: 99101.5809 | V191: TANK | W191: FLAT-BTM-STORAGE | X191: 0.5 | Z191: CS | AA191: 12,000 gal | AB191: floating roof | AF191: 51400 Icarus 2006.5
A192: T-704 | B192: 1 | D192: Ammonia storage tank | E192: STRM.A100.101 | G192: 262454.2857 | H192: 204131.481 | I192: LB/HR | J192: 0.7777791871 | K192: 15704 | L192: 2007 | M192: 15704 | N192: 0.65 | O192: 13337.26846 | P192: 5.387162506 | Q192: 71850.03258 | R192: 80096.23922 | S192: 14867.98275 | V192: TANK | W192: HORIZ-STORAGE | X192: 350 | Z192: CS | AA192: 560 gal | AF192: 51400 Icarus 2006.5
A193: T-705 | B193: 1 | D193: Caustic storage tank | E193: STRM.A100.101 | G193: 262454 | H193: 204131.481 | I193: LB/HR | J193: =IF(E193<>"",H193/G193,"") -> 0.7777800338 | K193: 16005 | L193: 2007 | M193: 16005 | N193: 0.65 | O193: 13592.91472 | P193: 3.011558888 | Q193: 40935.86313 | R193: 45634.05984 | S193: 15152.96945 | V193: TANK | W193: FLAT-BTM-STORAGE | X193: 0.5 | Z193: CS | AA193: 5,400 gal | AB193: flat roof | AF193: 51400 Icarus 2006.5
A194: T-708 | B194: 1 | D194: BFW chemical storage tank | E194: STRM.A100.101 | G194: 262454.2857 | H194: 204131.481 | I194: LB/HR | J194: =IFERROR(H194/G194,0) -> 0.7777791871 | K194: 22004 | L194: 2007 | M194: 22004 | N194: 0.65 | O194: 18687.8028 | P194: 6.69878204 | Q194: 125185.5178 | R194: 139553.022 | S194: 20832.59631 | V194: TANK | W194: HORIZ-STORAGE | X194: 10 | Z194: SS316 | AA194: 400 gal | AF194: 51400 Icarus 2006.5
A195: T-790 | B195: 1 | C195: 1 | D195: Gasoline product storage tanks | E195: VOLFLMX.453 | G195: 50 | H195: =IF(ISNUMBER(SEARCH(".W",E195)),VLOOKUP(E195,INDIRECT(LU_WORK),2),IF(ISNUMBER(SEARCH(".Q",E195)),ABS(VLOOKUP(E195,INDIRECT(LU_HEAT),2)),VLOOKUP(E195,INDIRECT(LU_SENS),2)))*7.481/60 -> 53.21447611 | I195: gpm | J195: =IFERROR(H195/G195,0) -> 1.064289522 | K195: 442700 | L195: 2013 | M195: 885400 | N195: 0.7 | O195: =IF(E201="",M195,M195*J195^N195) -> 885400 | P195: 1.75446126 | Q195: 1553400 | R195: 1603783.501 | S195: 914117.3629 | V195: VESSEL | W195: STORAGE | X195: 15 | Y195: 250 | Z195: CS | AA195: 47' Ø | AB195: 40' H | AC195: 500,000 gal | AF195: ACCE V8.4 | AH195: 442700 | AI195: 776700
A196: T-792 | B196: 1 | C196: 1 | D196: Diesel product storage tank | E196: VOLFLMX.456 | G196: 50 | H196: =IF(ISNUMBER(SEARCH(".W",E196)),VLOOKUP(E196,INDIRECT(LU_WORK),2),IF(ISNUMBER(SEARCH(".Q",E196)),ABS(VLOOKUP(E196,INDIRECT(LU_HEAT),2)),VLOOKUP(E196,INDIRECT(LU_SENS),2)))*7.481/60 -> 70.11613695 | I196: gpm | J196: =IFERROR(H196/G196,0) -> 1.402322739 | K196: 442700 | L196: 2013 | M196: 885400 | N196: 0.7 | O196: =IF(E202="",M196,M196*J196^N196) -> 885400 | P196: 1.75446126 | Q196: 1553400 | R196: 1603783.501 | S196: 914117.3629 | V196: VESSEL | W196: STORAGE | X196: 15 | Y196: 250 | Z196: CS | AA196: 47' Ø | AB196: 40' H | AC196: 500,000 gal | AF196: T-790 | AH196: 442700 | AI196: 776700
A197: Area A700: Cooling Water & Other Utilities ↑ | M197: =SUM(M172:M196) -> 4681665 | O197: =SUM(O172:O196) -> 4360642.056 | P197: =Q197/O197 -> 1.994405605 | Q197: =SUM(Q172:Q196) -> 8696888.959 | R197: =SUM(R172:R196) -> 9286179.508 | S197: =SUM(S172:S196) -> 4636620.495
A198: H-840 | B198: 1 | D198: RTO Feed/Effluent exchanger | K198: INCLUDED | V198: MISC | W198: MISC | AA198: Included with RTO | AJ198: heat
A199: K-831 | B199: 1 | D199: RTO blower | E199: A800.A830.W-K831 | G199: 900 | H199: =IF(ISNUMBER(SEARCH(".W",E199)),VLOOKUP(E199,INDIRECT(LU_WORK),2),IF(ISNUMBER(SEARCH(".Q",E199)),ABS(VLOOKUP(E199,INDIRECT(LU_HEAT),2)),VLOOKUP(E199,INDIRECT(LU_SENS),2))) -> 1048.02166 | I199: =IF(ISNUMBER(SEARCH(".W",E199)),VLOOKUP(E199,INDIRECT(LU_WORK),3),IF(ISNUMBER(SEARCH(".Q",E199)),VLOOKUP(E199,INDIRECT(LU_HEAT),3),VLOOKUP(E199,INDIRECT(LU_SENS),3))) -> HP | J199: =IFERROR(H199/G199,0) -> 1.164468511 | K199: 360420 | L199: 2009 | M199: =K199*(B199+C199) -> 360420 | N199: 0.6 | O199: =IF(E199="",M199,M199*J199^N199) -> 394898.5434 | P199: 1.6 | Q199: =O199*P199 -> 631837.6694 | R199: =Q199*VLOOKUP(COSTYEAR,INDIRECT(IX_CAP),4,FALSE)/VLOOKUP(L199,INDIRECT(IX_CAP),4,FALSE) -> 709077.0702 | S199: =O199*VLOOKUP(COSTYEAR,INDIRECT(IX_CAP),4,FALSE)/VLOOKUP(L199,INDIRECT(IX_CAP),4,FALSE) -> 443173.1689 | V199: FAN | W199: CENTRIFUGAL | AJ199: rto
A200: M-805 | B200: 1 | D200: Clarifier | G200: 220 | H200: 220 | J200: =IF(E200<>"",H200/G200,"") ->  | K200: 96221 | L200: 2007 | M200: 96221 | N200: 0.65 | O200: =IF(E200="",M200,M200*J200^N200) -> 96221 | P200: 2.414233899 | Q200: =O200*P200 -> 232300 | R200: 258961.0011 | S200: 107264.2552 | V200: SEPARATOR | W200: CLARIFIER | AA200: 1.4 Ft / Hr Rise Rate; 40' Diameter x 12' Height | AF200: 51400 M-705 | AJ200: ro
... 28 more rows

Sheet OPEX
D1: © 2016-2019 Alliance for Sustainable Energy, LLC | H1: This program is free software: you can redistribute it and/or modify it under the terms of the GNU General Public License as published by the Free Software Foundation, either version 3 of the License, or (at your option) any later version.
H2: This program is distributed in the hope that it will be useful, but WITHOUT ANY WARRANTY; without even the implied warranty of MERCHANTABILITY or FITNESS FOR A PARTICULAR PURPOSE. See the GNU General Public License for more details. You should have received a copy of the GNU General Public License along with this program. If not, see <https://www.gnu.org/licenses/>.
B3: Operating Cost Summary | L3: Ex Situ
B5: Raw Material | C5: Stream Number | D5: Scaling Flow | F5: Quoted Price | H5: Year of Price Quote | I5: =COSTYEAR &" Cost" -> 2011 Cost | J5: =COSTYEAR &" Cost ($/h)" -> 2011 Cost ($/h) | K5: =COSTYEAR&" Cost (MM$/yr)" -> 2011 Cost (MM$/yr) | L5: =COSTYEAR&" Cost (¢/GGE)" -> 2011 Cost (¢/GGE) | M5: Area
B6: Variable Operating Costs | O6: Cost on a dry basis | P6: 80 | Q6: /dry us ton
B7: Feedstock, Catalyst & Chemicals | O7: % feed moisture | P7: =VLOOKUP("CMIX.WATER.A100.100",INDIRECT(LU_SENS),2,FALSE)/(D8*2000) -> 0.1
B8: Feedstock - Wood Chips | C8: STRM.A100.100 | D8: =VLOOKUP(C8,INDIRECT(LU_SENS),2,FALSE)/2000 -> 102.0657405 | E8: US ton/h | F8: 72 | G8: /US ton | H8: 2011 | I8: =F8*VLOOKUP(COSTYEAR,INDIRECT(IX_CHEM),4,FALSE)/VLOOKUP(H8,INDIRECT(IX_CHEM),4,FALSE) -> 72 | J8: =D8*I8 -> 7348.733316 | K8: =($J8*OPHOURS/1000000) -> 57.93741346 | L8: =(K8*100)/ANNUALGGE -> 102.6275579 | M8: 100 | O8: Cost on wet basis | P8: =P6*(1-P7) -> 72 | Q8: /bulk us ton
B9: Sand Makeup | C9: STRM.A200.A211.217P | D9: =VLOOKUP(C9,INDIRECT(LU_SENS),2,FALSE) -> 157.374827 | E9: lb/h | F9: 0.2073015873 | G9: /lb | H9: 2011 | I9: 0.2073015873 | J9: =D9*I9 -> 32.62405144 | K9: 0.2572080215 | L9: 0.4556059641 | M9: 200 | P9: =D8*(1-P7)*OPHOURS -> 724217.6683 | Q9: Dry Tons/yr
B10: VPU Zeolite Catalyst | C10: STRM.A200.A261.277 | D10: =VLOOKUP(C10,INDIRECT(LU_SENS),2,FALSE)+128 -> 229.056959 | E10: lb/h | F10: 9.75 | G10: /lb | H10: 2011 | I10: 9.75 | J10: =D10*I10 -> 2233.30535 | K10: 17.60737938 | L10: 31.1888681 | M10: 200 | O10: Operating Hours | P10: 7884 | Q10: hrs/year
B11: CFP Zeolite Catalyst | C11: STRM.A200.A201.217 | D11: =VLOOKUP(C11,INDIRECT(LU_SENS),2,FALSE) -> 0 | E11: lb/h | F11: 9.75 | G11: /lb | H11: 2011 | I11: 9.75 | J11: 0 | K11: 0 | L11: 0 | M11: 200
B12: Natural Gas to SMR | C12: STRM.502 | D12: 103.55 | E12: lb/h | F12: 0.119426364 | G12: /lb | H12: 2011 | I12: 0.119426364 | J12: 12.3666 | K12: 0.09749827437 | L12: 0.1727037712 | M12: 500 | P12: Plant Electricity Demand
B13: 50 wt% Caustic | C13: CMIX.SO2.A100.112 | D13: =VLOOKUP(C13,INDIRECT(LU_SENS),2,FALSE)/64*2*40/0.5*1.1 -> 294.4705197 | E13: lb/h | F13: 0.075 | G13: /lb | H13: 2010 | I13: 0.08090500642 | J13: 23.82413929 | K13: 0.1878295142 | L13: 0.3327122007 | M13: 200
B14: Boiler Chemicals | C14: STRM.A600.600 | D14: 6477.00742 | E14: lb/h blowdn | F14: 75 | G14: /MM lb | H14: 2014 | I14: 70.2358841 | J14: =D14*I14/1000000 -> 0.4549183425 | K14: 0.003586576212 | L14: 0.006353089236 | M14: 600 | O14: A900.WPLANT | P14: =VLOOKUP(O14,INDIRECT(LU_WORK),2,FALSE) -> 55080.9555 | Q14: HP
B15: Cooling Tower Chemicals | C15: A700.QCTOTAL | D15: =VLOOKUP(C15,INDIRECT(LU_HEAT),2,FALSE)/1000000*83.3 -> 4760.606462 | E15: ton cool | F15: 33.84 | G15: /ton cool/yr | H15: 2014 | I15: 31.69043091 | J15: =K15*1000000/OPHOURS -> 19.13567607 | K15: =D15*I15/1000000 -> 0.1508656702 | L15: 0.2672362187 | M15: 700 | N15: Based on 0.5 LbMol / Hr SO2 in total flue gas.
B16: Regeneration Gas: FP | C16: STRM.A200.A211.CHAR-COM.220p | D16: =VLOOKUP(C16,INDIRECT(LU_SENS),2,FALSE) -> 1.604276e-05 | E16: lb/h | F16: 0.119426364 | G16: /lb | H16: 2011 | I16: 0.119426364 | J16: =D16*I16/100/2000 -> 9.57964248e-12 | K16: =($J16*OPHOURS/1000000) -> 7.552590131e-14 | L16: 1.337829624e-13 | M16: 200 | N16: NaOH (lb/hr) = 0.5 * 2 * (22.99+15.99+1.0079)
B17: Regeneration Gas: CFP | C17: STRM.A200.A201.CHAR-COM.220 | D17: =VLOOKUP(C17,INDIRECT(LU_SENS),2,FALSE) -> 0 | E17: lb/h | F17: 0.119426364 | G17: /lb | H17: 2011 | I17: 0.119426364 | J17: =D17*I17/100/2000 -> 0 | K17: =($J17*OPHOURS/1000000) -> 0 | L17: 0 | M17: 200
B18: Regeneration Gas: VPU | C18: STRM.A200.A261.CATREGEN.280 | D18: =VLOOKUP(C18,INDIRECT(LU_SENS),2,FALSE) -> 1.604276e-05 | E18: lb/h | F18: 0.119426364 | G18: /lb | H18: 2011 | I18: 0.119426364 | J18: =D18*I18/100/2000 -> 9.57964248e-12 | K18: =($J18*OPHOURS/1000000) -> 7.552590131e-14 | L18: 1.337829624e-13 | M18: 200
B19: Net Water Makeup | D19: 41495.15691 | E19: lb/h | F19: 19.95826907 | G19: lb/h | H19: 2001 | I19: 31.76439163 | J19: =D19*I19/100/2000 -> 6.590342073 | K19: =($J19*OPHOURS/1000000) -> 0.05195825691 | L19: 0.09203636648 | M19: 700
B20: Diesel Fuel | C20: Assumed rate of 10 gal / hr | D20: =10*8.34*0.85 -> 70.89 | E20: lb/h | F20: 0.4029432443 | G20: /lb | H20: 2011 | I20: 0.4029432443 | J20: =D20*I20 -> 28.56464659 | K20: =($J20*OPHOURS/1000000) -> 0.2252036737 | L20: 0.398914996 | M20: 100
B21: Subtotal | J21: =SUM(J8:J20) -> 9705.59904 | K21: =SUM(K8:K20) -> 76.51894283 | L21: =SUM(L8:L20) -> 135.5419886
B22: Waste Streams | L22: =(K22*100)/ANNUALGGE -> 0 | N22: Assumed 10 gal/hr consumption rate and specific gravity of 0.85.
B23: FP Purge | C23: STRM.A200.A211.CHAR-COM.235P | D23: =VLOOKUP(C23,INDIRECT(LU_SENS),2,FALSE) -> 2037.56998 | E23: lb/h | F23: 0.01632949288 | G23: /lb | H23: 1998 | I23: =F23*VLOOKUP(COSTYEAR,INDIRECT(IX_CHEM),4,FALSE)/VLOOKUP(H23,INDIRECT(IX_CHEM),4,FALSE) -> 0.02768436553 | J23: =D23*I23 -> 56.40883212 | K23: =($J23*OPHOURS/1000000)*VLOOKUP(COSTYEAR,INDIRECT(IX_CHEM),4,FALSE)/VLOOKUP(COSTYEAR,INDIRECT(IX_CHEM),4,FALSE) -> 0.4447272325 | L23: 0.7877685086 | M23: 200
B24: CFP Purge | C24: STRM.A200.A201.CHAR-COM.235 | D24: 0 | E24: lb/h | F24: 0.01632949288 | G24: /lb | H24: 1998 | I24: =F24*VLOOKUP(COSTYEAR,INDIRECT(IX_CHEM),4,FALSE)/VLOOKUP(H24,INDIRECT(IX_CHEM),4,FALSE) -> 0.02768436553 | J24: =D24*I24 -> 0 | K24: =($J24*OPHOURS/1000000)*VLOOKUP(COSTYEAR,INDIRECT(IX_CHEM),4,FALSE)/VLOOKUP(COSTYEAR,INDIRECT(IX_CHEM),4,FALSE) -> 0 | L24: 0 | M24: 200
B25: VPU Purge | C25: STRM.A200.A261.CATREGEN.295 | D25: =VLOOKUP(C25,INDIRECT(LU_SENS),2,FALSE)+159 -> 261.263404 | E25: lb/h | F25: 0.01632949288 | G25: /lb | H25: 1998 | I25: =F25*VLOOKUP(COSTYEAR,INDIRECT(IX_CHEM),4,FALSE)/VLOOKUP(H25,INDIRECT(IX_CHEM),4,FALSE) -> 0.02768436553 | J25: 7.232911577 | K25: =($J25*OPHOURS/1000000)*VLOOKUP(COSTYEAR,INDIRECT(IX_CHEM),4,FALSE)/VLOOKUP(COSTYEAR,INDIRECT(IX_CHEM),4,FALSE) -> 0.05702427487 | L25: 0.1010100679 | M25: 200
B26: Quench Filter Solids | C26: STRM.A300.335 | D26: =VLOOKUP(C26,INDIRECT(LU_SENS),2,FALSE) -> 35.6578011 | E26: lb/h | F26: 0.01632949288 | G26: /lb | H26: 1998 | I26: =F26*VLOOKUP(COSTYEAR,INDIRECT(IX_CHEM),4,FALSE)/VLOOKUP(H26,INDIRECT(IX_CHEM),4,FALSE) -> 0.02768436553 | J26: 0.9871635997 | K26: =($J26*OPHOURS/1000000)*VLOOKUP(COSTYEAR,INDIRECT(IX_CHEM),4,FALSE)/VLOOKUP(COSTYEAR,INDIRECT(IX_CHEM),4,FALSE) -> 0.00778279782 | L26: 0.01378607511 | M26: 300
B27: WWT Cost | D27: 20707.93383 | E27: lb/h | F27: 0.00264 | G27: /lb | H27: 2011 | I27: =F27*VLOOKUP(COSTYEAR,INDIRECT(IX_CHEM),4,FALSE)/VLOOKUP(H27,INDIRECT(IX_CHEM),4,FALSE) -> 0.00264 | J27: 54.66894531 | K27: =($J27*OPHOURS/1000000)*VLOOKUP(COSTYEAR,INDIRECT(IX_CHEM),4,FALSE)/VLOOKUP(COSTYEAR,INDIRECT(IX_CHEM),4,FALSE) -> 0.4310099649 | L27: 0.7634703981 | M27: 800
B28: Subtotal | J28: =SUM(J23:J27) -> 119.2978526 | K28: =SUM(K23:K27) -> 0.94054427 | L28: =SUM(L23:L27) -> 1.66603505
B29: Coproduct Credits
B30: Electricity | C30: WNET | D30: =ABS(VLOOKUP(C30,INDIRECT(LU_WORK),2,FALSE)*0.7457) -> 3186.619347 | E30: kW | F30: 5.85196448 | G30: /kWh | H30: 2011 | I30: =F30*VLOOKUP(COSTYEAR,INDIRECT(IX_CHEM),4,FALSE)/VLOOKUP(H30,INDIRECT(IX_CHEM),4,FALSE) -> 5.85196448 | J30: =-D30*F30/100 -> -186.4798323 | K30: =($J30*OPHOURS/1000000)*VLOOKUP(COSTYEAR,INDIRECT(IX_CHEM),4,FALSE)/VLOOKUP($H$30,INDIRECT(IX_CHEM),4,FALSE) -> -1.470206998 | L30: =(K30*100)/ANNUALGGE -> -2.604254225
B31: Subtotal | J31: =SUM(J30) -> -186.4798323 | K31: =SUM(K30) -> -1.470206998 | L31: =SUM(L30) -> -2.604254225
B33: Total Variable Operating Costs | J33: =J28+J21+J31 -> 9638.41706 | K33: =K28+K21+K31 -> 75.9892801 | L33: =L28+L21+L31 -> 134.6037694 | P33: Diesel | Q33: Gasoline | R33: Total
O34: Production (lb/hr) | P34: =VLOOKUP("strm.a400.456",INDIRECT(LU_SENS),2,FALSE) -> 24923.4894 | Q34: =VLOOKUP("strm.a400.453",INDIRECT(LU_SENS),2,FALSE) -> 20231.6595
B35: Fixed Operating Costs | O35: Production (MMlb/yr) | P35: =P34*OPHOURS/1000000 -> 196.4967904 | Q35: =Q34*OPHOURS/1000000 -> 159.5064035
D36: 2007 Salary | E36: # Positions | F36: 2011 Cost | H36: 2011 Hourly Wage | O36: LHV (Btu/gal) | P36: =VLOOKUP("A400.A450.HV-DIESL.QNET",INDIRECT(LU_HEAT),2,FALSE)/P34*6.982 -> 128702.8662 | Q36: =VLOOKUP("A400.A450.HV-GASOL.QNET",INDIRECT(LU_HEAT),2,FALSE)/Q34*6.215 -> 114227.5967
B37: Plant Manager | D37: 147000 | E37: 1 | F37: =E37*D37/VLOOKUP(2007,INDIRECT(IX_LABOR),4,FALSE)*VLOOKUP(2011,INDIRECT(IX_LABOR),4,FALSE) -> 161361.6368 | H37: =D37/2080 -> 70.67307692 | O37: MMGGE/yr | P37: =P36/116090*(P35/6.982) -> 31.20103669 | Q37: =Q36/116090*(Q35/6.215) -> 25.25301391 | R37: =Q37+P37 -> 56.4540506
B38: Plant Engineer | D38: 70000 | E38: 1 | F38: 76838.87468 | H38: =D38/2080 -> 33.65384615
B39: Maintenance Supr | D39: 57000 | E39: 1 | F39: 62568.79795 | H39: 27.40384615
B40: Lab Manager | D40: 56000 | E40: 1 | F40: 61471.09974 | H40: 26.92307692
B41: Shift Supervisor | D41: 48000 | E41: 5 | F41: 263447.5703 | H41: 23.07692308
B42: Lab Technician | D42: 40000 | E42: 2 | F42: 87815.85678 | H42: 19.23076923
B43: Maintenance Tech | D43: 40000 | E43: 16 | F43: 702526.8542 | H43: 19.23076923
B44: Shift Operators | D44: 48000 | E44: 20 | F44: 1053790.281 | H44: 23.07692308
B45: Yard Employees | D45: 28000 | E45: 12 | F45: 368826.5985 | H45: 13.46153846
B46: Clerks & Secretaries | D46: 36000 | E46: 3 | F46: 118551.4066 | H46: 17.30769231
B47: Total Salaries | E47: =SUM(E37:E46) -> 62 | F47: =SUM(F37:F46) -> 2957198.977 | K47: =(F47/1000000)*VLOOKUP(COSTYEAR,INDIRECT(IX_LABOR),4,FALSE)/VLOOKUP(2007,INDIRECT(IX_LABOR),4,FALSE) -> 3.246112023 | L47: =K47*100/ANNUALGGE -> 5.750007286
I48: Avg Salary (w/ Benefits)
B49: Overhead and Benefits | D49: % of Labor & Supervison = | E49: 0.9 | F49: =E49*K47*1000000 -> 2921500.821 | H49: =H50/2080 -> 45.58545128 | I49: per Hour | K49: =F49/1000000 -> 2.921500821 | L49: =(K49*100)/ANNUALGGE -> 5.175006557
B50: Maintenance | D50: % of FCI = | E50: 0.03 | F50: =FCI*E50 -> 16885376.63 | H50: =(F49+F47)/E47 -> 94817.73867 | I50: per Year | K50: =F50/1000000 -> 16.88537663 | L50: =(K50*100)/ANNUALGGE -> 29.90994703
B51: Insurance & Taxes | D51: % of FCI = | E51: 0.007 | F51: =FCI*E51 -> 3939921.214 | K51: =F51/1000000 -> 3.939921214 | L51: =(K51*100)/ANNUALGGE -> 6.97898764
B53: Total Fixed Operating Costs | K53: =SUM(K37:K51) -> 26.99291069 | L53: =SUM(L37:L51) -> 47.81394851
B55: Total Operating Costs | K55: =K53+K33 -> 102.9821908 | L55: =L53+L33 -> 182.4177179
B57: Annual Capital Charge | K57: =0.176*FCI/1000000 -> 99.06087623 | L57: =K57*100/ANNUALGGE -> 175.4716892
